Workbook

Sheet 説明
B2: サンプルシートの説明
S6: ■使用手順
S7: ①ストキャスティクス表示シートの銘柄コード欄に調べたい銘柄コードを入力します。
S9: ②ストキャスティクス計算シートの足種を設定し、ヒストリカルデータ取得ボタンをクリックします。
S10: ストキャスティクスが計算され、ストキャスティク表示シートに反映されます。
S11: (足種：15m、30m、60m、1D、1W)
S12: ※m=分、D=日、W=週
S14: ③ストキャスティクス表示シートのヒストリカルデータ取得ボタンをクリックします。
S16: ④「以上」の欄に入力した値に達すると1が立ち、「以下」の欄に入力した値に達すると2が立ちます。
S18: ⑤シートを閉じる際はストキャスティクス計算シートのレコードクリアボタンをクリックしてください。
S20: ■使用例
S21: 逆張り戦略での投資を行っており、ストキャスティクスが20%以下となる価格で購入するルールで運用をしたい
S22: 「以下」の入力欄に20を入れ、閾値以下になるとフラグが立つようにし、
S23: このフラグを利用して、自動で成行注文が発注されるようにする
S25: ★発注式の例
S26: ※ネオトレAPIでは発注トリガーがあり、FALSE: 待機、TRUE: 発注を設定値としているため、
S27: 以下の設定を行うことで自動発注を実現できます。
S29: ①ストキャスティク表示シートでIF文を使用し、フラグを表示させるセルが2を表示していたら、TRUEを返すようにする
S30: ※この例では、IF文入力セルはH6、フラグを表示させるセルはG6と仮定する
S31: =IF(G6=2,TRUE,FALSE)
S33: ②上記IF文の結果がTRUEの場合、発注されるようにする
S34: ※銘柄はコードはB6セルを参照
S35: =SNT.EqtyOrder(1,H6,B6,3,0,100,0,,1,1,,1,)
S37: 関数のご使用方法は以下のリンクの4.情報参照-取得関数、6.照会-取得関数をご参照ください。
S38: https://www.sbineotrade.jp/tool/api/operation.html
S39: サンプルシート使用上の注意事項
S41: 当サンプルシートは、特定の銘柄や商品の勧誘や売買の推奨等を目的としたものではありません。
S42: 当サンプルシートは、株式全般の推奨や株価動向の上昇または下落を示唆するものではありません。
S43: 投資にあたっての最終判断はお客様ご自身でお願いいたします。

Sheet ストキャスティクス表示シート
J4: 閾値 | K4: %K %D共に | L4: 80 | M4: 以上になったら
A5: # | B5: 銘柄コード | C5: 銘柄名称 | D5: 現値 | E5: ％K | F5: ％D | G5: 閾値判定 | J5: 閾値 | K5: %K %D共に | L5: 20 | M5: 以下になったら
A6: 1 | B6: 9405 | C6: =IF($B6="","← 銘柄コード",_xll.SNT.StockInst($B6,"銘柄名称")) -> =IF($B6="","← 銘柄コード",SNT.StockInst($B6,"銘柄名称")) => 銘柄情報取得中 | D6: =IF(B6="","",_xll.SNT.StockInst(B6,$D$5)) -> =IF(B6="","",SNT.StockInst(B6,$D$5)) => 銘柄情報取得中 | E6: =INDEX(ストキャスティクス計算シート!$E$27:$ZZ$27, 1, 1 + (ROW()-6)*6) -> 90.90909091 | F6: =INDEX(ストキャスティクス計算シート!$E$28:$ZZ$28, 1, 1 + (ROW()-6)*6) ->  | G6: =IF(OR(E6="", F6=""), "", IF(AND(E6>=$L$4, F6>=$L$4), 1, IF(AND(E6<=$L$5, F6<=$L$5), 2, ""))) -> 
A7: 2 | B7: 4825 | C7: =IF($B7="","← 銘柄コード",_xll.SNT.StockInst($B7,"銘柄名称")) -> =IF($B7="","← 銘柄コード",SNT.StockInst($B7,"銘柄名称")) => 銘柄情報取得中 | D7: =IF(B7="","",_xll.SNT.StockInst(B7,$D$5)) -> =IF(B7="","",SNT.StockInst(B7,$D$5)) => 銘柄情報取得中 | E7: =INDEX(ストキャスティクス計算シート!$E$27:$ZZ$27, 1, 1 + (ROW()-6)*6) -> 10.30927835 | F7: =INDEX(ストキャスティクス計算シート!$E$28:$ZZ$28, 1, 1 + (ROW()-6)*6) -> 11.34020619 | G7: =IF(OR(E7="", F7=""), "", IF(AND(E7>=$L$4, F7>=$L$4), 1, IF(AND(E7<=$L$5, F7<=$L$5), 2, ""))) -> 2
A8: 3 | B8: 9946 | C8: =IF($B8="","← 銘柄コード",_xll.SNT.StockInst($B8,"銘柄名称")) -> =IF($B8="","← 銘柄コード",SNT.StockInst($B8,"銘柄名称")) => 銘柄情報取得中 | D8: =IF(B8="","",_xll.SNT.StockInst(B8,$D$5)) -> =IF(B8="","",SNT.StockInst(B8,$D$5)) => 銘柄情報取得中 | E8: =INDEX(ストキャスティクス計算シート!$E$27:$ZZ$27, 1, 1 + (ROW()-6)*6) -> 77.7173913 | F8: =INDEX(ストキャスティクス計算シート!$E$28:$ZZ$28, 1, 1 + (ROW()-6)*6) -> 76.86251469
A9: 4 | B9: 7730 | C9: =IF($B9="","← 銘柄コード",_xll.SNT.StockInst($B9,"銘柄名称")) -> =IF($B9="","← 銘柄コード",SNT.StockInst($B9,"銘柄名称")) => 銘柄情報取得中 | D9: =IF(B9="","",_xll.SNT.StockInst(B9,$D$5)) -> =IF(B9="","",SNT.StockInst(B9,$D$5)) => 銘柄情報取得中 | E9: =INDEX(ストキャスティクス計算シート!$E$27:$ZZ$27, 1, 1 + (ROW()-6)*6) -> 61.80124224 | F9: =INDEX(ストキャスティクス計算シート!$E$28:$ZZ$28, 1, 1 + (ROW()-6)*6) -> 62.1877103
A10: 5 | B10: 2918 | C10: =IF($B10="","← 銘柄コード",_xll.SNT.StockInst($B10,"銘柄名称")) -> わらべ日洋 | D10: =IF(B10="","",_xll.SNT.StockInst(B10,$D$5)) ->  | E10: =INDEX(ストキャスティクス計算シート!$E$27:$ZZ$27, 1, 1 + (ROW()-6)*6) -> 30.43478261 | F10: =INDEX(ストキャスティクス計算シート!$E$28:$ZZ$28, 1, 1 + (ROW()-6)*6) -> 23.91304348
A11: 6 | B11: 4229 | C11: =IF($B11="","← 銘柄コード",_xll.SNT.StockInst($B11,"銘柄名称")) -> =IF($B11="","← 銘柄コード",SNT.StockInst($B11,"銘柄名称")) => 銘柄情報取得中 | D11: =IF(B11="","",_xll.SNT.StockInst(B11,$D$5)) -> =IF(B11="","",SNT.StockInst(B11,$D$5)) => 銘柄情報取得中 | E11: =INDEX(ストキャスティクス計算シート!$E$27:$ZZ$27, 1, 1 + (ROW()-6)*6) -> 100 | F11: =INDEX(ストキャスティクス計算シート!$E$28:$ZZ$28, 1, 1 + (ROW()-6)*6) -> 
A12: 7 | B12: 6844 | C12: =IF($B12="","← 銘柄コード",_xll.SNT.StockInst($B12,"銘柄名称")) -> =IF($B12="","← 銘柄コード",SNT.StockInst($B12,"銘柄名称")) => 銘柄情報取得中 | D12: =IF(B12="","",_xll.SNT.StockInst(B12,$D$5)) -> =IF(B12="","",SNT.StockInst(B12,$D$5)) => 銘柄情報取得中 | E12: =INDEX(ストキャスティクス計算シート!$E$27:$ZZ$27, 1, 1 + (ROW()-6)*6) -> 57.14285714 | F12: =INDEX(ストキャスティクス計算シート!$E$28:$ZZ$28, 1, 1 + (ROW()-6)*6) -> 60.71428571
A13: 8 | B13: 6157 | C13: =IF($B13="","← 銘柄コード",_xll.SNT.StockInst($B13,"銘柄名称")) -> =IF($B13="","← 銘柄コード",SNT.StockInst($B13,"銘柄名称")) => 銘柄情報取得中 | D13: =IF(B13="","",_xll.SNT.StockInst(B13,$D$5)) -> =IF(B13="","",SNT.StockInst(B13,$D$5)) => 銘柄情報取得中 | E13: =INDEX(ストキャスティクス計算シート!$E$27:$ZZ$27, 1, 1 + (ROW()-6)*6) -> 55.55555556 | F13: =INDEX(ストキャスティクス計算シート!$E$28:$ZZ$28, 1, 1 + (ROW()-6)*6) -> 59.25925926
A14: 9 | B14: 8079 | C14: =IF($B14="","← 銘柄コード",_xll.SNT.StockInst($B14,"銘柄名称")) -> =IF($B14="","← 銘柄コード",SNT.StockInst($B14,"銘柄名称")) => 銘柄情報取得中 | D14: =IF(B14="","",_xll.SNT.StockInst(B14,$D$5)) -> =IF(B14="","",SNT.StockInst(B14,$D$5)) => 銘柄情報取得中 | E14: =INDEX(ストキャスティクス計算シート!$E$27:$ZZ$27, 1, 1 + (ROW()-6)*6) -> 11.11111111 | F14: =INDEX(ストキャスティクス計算シート!$E$28:$ZZ$28, 1, 1 + (ROW()-6)*6) -> 18.51851852 | G14: 2
A15: 10 | B15: 7244 | C15: =IF($B15="","← 銘柄コード",_xll.SNT.StockInst($B15,"銘柄名称")) -> =IF($B15="","← 銘柄コード",SNT.StockInst($B15,"銘柄名称")) => 銘柄情報取得中 | D15: =IF(B15="","",_xll.SNT.StockInst(B15,$D$5)) -> =IF(B15="","",SNT.StockInst(B15,$D$5)) => 銘柄情報取得中 | E15: =INDEX(ストキャスティクス計算シート!$E$27:$ZZ$27, 1, 1 + (ROW()-6)*6) -> 85.71428571 | F15: =INDEX(ストキャスティクス計算シート!$E$28:$ZZ$28, 1, 1 + (ROW()-6)*6) -> 86.72161172 | G15: 1
A16: 11 | B16: 2307 | C16: =IF($B16="","← 銘柄コード",_xll.SNT.StockInst($B16,"銘柄名称")) -> =IF($B16="","← 銘柄コード",SNT.StockInst($B16,"銘柄名称")) => 銘柄情報取得中 | D16: =IF(B16="","",_xll.SNT.StockInst(B16,$D$5)) -> =IF(B16="","",SNT.StockInst(B16,$D$5)) => 銘柄情報取得中 | E16: =INDEX(ストキャスティクス計算シート!$E$27:$ZZ$27, 1, 1 + (ROW()-6)*6) -> 78.94736842 | F16: =INDEX(ストキャスティクス計算シート!$E$28:$ZZ$28, 1, 1 + (ROW()-6)*6) -> 
A17: 12 | B17: 6183 | C17: =IF($B17="","← 銘柄コード",_xll.SNT.StockInst($B17,"銘柄名称")) -> =IF($B17="","← 銘柄コード",SNT.StockInst($B17,"銘柄名称")) => 銘柄情報取得中 | D17: =IF(B17="","",_xll.SNT.StockInst(B17,$D$5)) -> =IF(B17="","",SNT.StockInst(B17,$D$5)) => 銘柄情報取得中 | E17: =INDEX(ストキャスティクス計算シート!$E$27:$ZZ$27, 1, 1 + (ROW()-6)*6) -> 15.55555556 | F17: =INDEX(ストキャスティクス計算シート!$E$28:$ZZ$28, 1, 1 + (ROW()-6)*6) -> 19.74658869 | G17: 2
A18: 13 | B18: 2670 | C18: =IF($B18="","← 銘柄コード",_xll.SNT.StockInst($B18,"銘柄名称")) -> ＡＢＣマート | D18: =IF(B18="","",_xll.SNT.StockInst(B18,$D$5)) ->  | E18: =INDEX(ストキャスティクス計算シート!$E$27:$ZZ$27, 1, 1 + (ROW()-6)*6) -> 4.15879017 | F18: =INDEX(ストキャスティクス計算シート!$E$28:$ZZ$28, 1, 1 + (ROW()-6)*6) -> 3.170892919 | G18: 2
A19: 14 | B19: 75505 | C19: =IF($B19="","← 銘柄コード",_xll.SNT.StockInst($B19,"銘柄名称")) -> =IF($B19="","← 銘柄コード",SNT.StockInst($B19,"銘柄名称")) => 銘柄情報取得中 | D19: =IF(B19="","",_xll.SNT.StockInst(B19,$D$5)) -> =IF(B19="","",SNT.StockInst(B19,$D$5)) => 銘柄情報取得中 | E19: =INDEX(ストキャスティクス計算シート!$E$27:$ZZ$27, 1, 1 + (ROW()-6)*6) -> 0 | F19: =INDEX(ストキャスティクス計算シート!$E$28:$ZZ$28, 1, 1 + (ROW()-6)*6) -> 
A20: 15 | B20: 2540 | C20: =IF($B20="","← 銘柄コード",_xll.SNT.StockInst($B20,"銘柄名称")) -> 養命酒 | D20: =IF(B20="","",_xll.SNT.StockInst(B20,$D$5)) ->  | E20: =INDEX(ストキャスティクス計算シート!$E$27:$ZZ$27, 1, 1 + (ROW()-6)*6) -> 52.94117647 | F20: =INDEX(ストキャスティクス計算シート!$E$28:$ZZ$28, 1, 1 + (ROW()-6)*6) -> 59.31372549
A21: 16 | B21: 4410 | C21: =IF($B21="","← 銘柄コード",_xll.SNT.StockInst($B21,"銘柄名称")) -> =IF($B21="","← 銘柄コード",SNT.StockInst($B21,"銘柄名称")) => 銘柄情報取得中 | D21: =IF(B21="","",_xll.SNT.StockInst(B21,$D$5)) -> =IF(B21="","",SNT.StockInst(B21,$D$5)) => 銘柄情報取得中 | E21: =INDEX(ストキャスティクス計算シート!$E$27:$ZZ$27, 1, 1 + (ROW()-6)*6) -> 58.33333333 | F21: =INDEX(ストキャスティクス計算シート!$E$28:$ZZ$28, 1, 1 + (ROW()-6)*6) -> 61.11111111
A22: 17 | B22: 6590 | C22: =IF($B22="","← 銘柄コード",_xll.SNT.StockInst($B22,"銘柄名称")) -> 芝浦 | D22: =IF(B22="","",_xll.SNT.StockInst(B22,$D$5)) ->  | E22: =INDEX(ストキャスティクス計算シート!$E$27:$ZZ$27, 1, 1 + (ROW()-6)*6) -> 84.81012658 | F22: =INDEX(ストキャスティクス計算シート!$E$28:$ZZ$28, 1, 1 + (ROW()-6)*6) -> 88.8761028 | G22: 1
A23: 18 | B23: 9832 | C23: =IF($B23="","← 銘柄コード",_xll.SNT.StockInst($B23,"銘柄名称")) -> =IF($B23="","← 銘柄コード",SNT.StockInst($B23,"銘柄名称")) => 銘柄情報取得中 | D23: =IF(B23="","",_xll.SNT.StockInst(B23,$D$5)) -> =IF(B23="","",SNT.StockInst(B23,$D$5)) => 銘柄情報取得中 | E23: =INDEX(ストキャスティクス計算シート!$E$27:$ZZ$27, 1, 1 + (ROW()-6)*6) -> 54.54545455 | F23: =INDEX(ストキャスティクス計算シート!$E$28:$ZZ$28, 1, 1 + (ROW()-6)*6) -> 60.60606061
A24: 19 | B24: 6740 | C24: =IF($B24="","← 銘柄コード",_xll.SNT.StockInst($B24,"銘柄名称")) -> =IF($B24="","← 銘柄コード",SNT.StockInst($B24,"銘柄名称")) => 銘柄情報取得中 | D24: =IF(B24="","",_xll.SNT.StockInst(B24,$D$5)) -> =IF(B24="","",SNT.StockInst(B24,$D$5)) => 銘柄情報取得中 | E24: =INDEX(ストキャスティクス計算シート!$E$27:$ZZ$27, 1, 1 + (ROW()-6)*6) -> 0 | F24: =INDEX(ストキャスティクス計算シート!$E$28:$ZZ$28, 1, 1 + (ROW()-6)*6) -> 50
A25: 20 | B25: 3676 | C25: =IF($B25="","← 銘柄コード",_xll.SNT.StockInst($B25,"銘柄名称")) -> =IF($B25="","← 銘柄コード",SNT.StockInst($B25,"銘柄名称")) => 銘柄情報取得中 | D25: =IF(B25="","",_xll.SNT.StockInst(B25,$D$5)) -> =IF(B25="","",SNT.StockInst(B25,$D$5)) => 銘柄情報取得中 | E25: =INDEX(ストキャスティクス計算シート!$E$27:$ZZ$27, 1, 1 + (ROW()-6)*6) -> 35.71428571 | F25: =INDEX(ストキャスティクス計算シート!$E$28:$ZZ$28, 1, 1 + (ROW()-6)*6) -> 
A26: 21 | B26: 5632 | C26: =IF($B26="","← 銘柄コード",_xll.SNT.StockInst($B26,"銘柄名称")) -> =IF($B26="","← 銘柄コード",SNT.StockInst($B26,"銘柄名称")) => 銘柄情報取得中 | D26: =IF(B26="","",_xll.SNT.StockInst(B26,$D$5)) -> =IF(B26="","",SNT.StockInst(B26,$D$5)) => 銘柄情報取得中 | E26: =INDEX(ストキャスティクス計算シート!$E$27:$ZZ$27, 1, 1 + (ROW()-6)*6) -> 0 | F26: =INDEX(ストキャスティクス計算シート!$E$28:$ZZ$28, 1, 1 + (ROW()-6)*6) -> 3.720238095 | G26: 2
A27: 22 | B27: 6387 | C27: =IF($B27="","← 銘柄コード",_xll.SNT.StockInst($B27,"銘柄名称")) -> =IF($B27="","← 銘柄コード",SNT.StockInst($B27,"銘柄名称")) => 銘柄情報取得中 | D27: =IF(B27="","",_xll.SNT.StockInst(B27,$D$5)) -> =IF(B27="","",SNT.StockInst(B27,$D$5)) => 銘柄情報取得中 | E27: =INDEX(ストキャスティクス計算シート!$E$27:$ZZ$27, 1, 1 + (ROW()-6)*6) -> 60.75949367 | F27: =INDEX(ストキャスティクス計算シート!$E$28:$ZZ$28, 1, 1 + (ROW()-6)*6) -> 67.4076361
A28: 23 | B28: 9716 | C28: =IF($B28="","← 銘柄コード",_xll.SNT.StockInst($B28,"銘柄名称")) -> =IF($B28="","← 銘柄コード",SNT.StockInst($B28,"銘柄名称")) => 銘柄情報取得中 | D28: =IF(B28="","",_xll.SNT.StockInst(B28,$D$5)) -> =IF(B28="","",SNT.StockInst(B28,$D$5)) => 銘柄情報取得中 | E28: =INDEX(ストキャスティクス計算シート!$E$27:$ZZ$27, 1, 1 + (ROW()-6)*6) -> 3.333333333 | F28: =INDEX(ストキャスティクス計算シート!$E$28:$ZZ$28, 1, 1 + (ROW()-6)*6) -> 5.873015873 | G28: 2
A29: 24 | B29: 8095 | C29: =IF($B29="","← 銘柄コード",_xll.SNT.StockInst($B29,"銘柄名称")) -> =IF($B29="","← 銘柄コード",SNT.StockInst($B29,"銘柄名称")) => 銘柄情報取得中 | D29: =IF(B29="","",_xll.SNT.StockInst(B29,$D$5)) -> =IF(B29="","",SNT.StockInst(B29,$D$5)) => 銘柄情報取得中 | E29: =INDEX(ストキャスティクス計算シート!$E$27:$ZZ$27, 1, 1 + (ROW()-6)*6) -> 84.61538462 | F29: =INDEX(ストキャスティクス計算シート!$E$28:$ZZ$28, 1, 1 + (ROW()-6)*6) -> 82.05128205 | G29: 1
A30: 25 | B30: 3093 | C30: =IF($B30="","← 銘柄コード",_xll.SNT.StockInst($B30,"銘柄名称")) -> トレファク | D30: =IF(B30="","",_xll.SNT.StockInst(B30,$D$5)) ->  | E30: =INDEX(ストキャスティクス計算シート!$E$27:$ZZ$27, 1, 1 + (ROW()-6)*6) -> 20.3125 | F30: =INDEX(ストキャスティクス計算シート!$E$28:$ZZ$28, 1, 1 + (ROW()-6)*6) -> 14.58333333
A31: 26 | B31: 9536 | C31: =IF($B31="","← 銘柄コード",_xll.SNT.StockInst($B31,"銘柄名称")) -> =IF($B31="","← 銘柄コード",SNT.StockInst($B31,"銘柄名称")) => 銘柄情報取得中 | D31: =IF(B31="","",_xll.SNT.StockInst(B31,$D$5)) -> =IF(B31="","",SNT.StockInst(B31,$D$5)) => 銘柄情報取得中 | E31: =INDEX(ストキャスティクス計算シート!$E$27:$ZZ$27, 1, 1 + (ROW()-6)*6) -> 78.18181818 | F31: =INDEX(ストキャスティクス計算シート!$E$28:$ZZ$28, 1, 1 + (ROW()-6)*6) -> 
A32: 27 | B32: 7888 | C32: =IF($B32="","← 銘柄コード",_xll.SNT.StockInst($B32,"銘柄名称")) -> =IF($B32="","← 銘柄コード",SNT.StockInst($B32,"銘柄名称")) => 銘柄情報取得中 | D32: =IF(B32="","",_xll.SNT.StockInst(B32,$D$5)) -> =IF(B32="","",SNT.StockInst(B32,$D$5)) => 銘柄情報取得中 | E32: =INDEX(ストキャスティクス計算シート!$E$27:$ZZ$27, 1, 1 + (ROW()-6)*6) -> 43.75 | F32: =INDEX(ストキャスティクス計算シート!$E$28:$ZZ$28, 1, 1 + (ROW()-6)*6) -> 38.7254902
A33: 28 | B33: 9247 | C33: =IF($B33="","← 銘柄コード",_xll.SNT.StockInst($B33,"銘柄名称")) -> =IF($B33="","← 銘柄コード",SNT.StockInst($B33,"銘柄名称")) => 銘柄情報取得中 | D33: =IF(B33="","",_xll.SNT.StockInst(B33,$D$5)) -> =IF(B33="","",SNT.StockInst(B33,$D$5)) => 銘柄情報取得中 | E33: =INDEX(ストキャスティクス計算シート!$E$27:$ZZ$27, 1, 1 + (ROW()-6)*6) -> 67.56756757 | F33: =INDEX(ストキャスティクス計算シート!$E$28:$ZZ$28, 1, 1 + (ROW()-6)*6) -> 68.46846847
A34: 29 | B34: 8103 | C34: =IF($B34="","← 銘柄コード",_xll.SNT.StockInst($B34,"銘柄名称")) -> =IF($B34="","← 銘柄コード",SNT.StockInst($B34,"銘柄名称")) => 銘柄情報取得中 | D34: =IF(B34="","",_xll.SNT.StockInst(B34,$D$5)) -> =IF(B34="","",SNT.StockInst(B34,$D$5)) => 銘柄情報取得中 | E34: =INDEX(ストキャスティクス計算シート!$E$27:$ZZ$27, 1, 1 + (ROW()-6)*6) -> 82.60869565 | F34: =INDEX(ストキャスティクス計算シート!$E$28:$ZZ$28, 1, 1 + (ROW()-6)*6) -> 
A35: 30 | B35: 3179 | C35: =IF($B35="","← 銘柄コード",_xll.SNT.StockInst($B35,"銘柄名称")) -> =IF($B35="","← 銘柄コード",SNT.StockInst($B35,"銘柄名称")) => 銘柄情報取得中 | D35: =IF(B35="","",_xll.SNT.StockInst(B35,$D$5)) -> =IF(B35="","",SNT.StockInst(B35,$D$5)) => 銘柄情報取得中 | E35: =INDEX(ストキャスティクス計算シート!$E$27:$ZZ$27, 1, 1 + (ROW()-6)*6) -> 81.48148148 | F35: =INDEX(ストキャスティクス計算シート!$E$28:$ZZ$28, 1, 1 + (ROW()-6)*6) -> 82.71604938 | G35: 1
A36: 31 | B36: 3141 | C36: =IF($B36="","← 銘柄コード",_xll.SNT.StockInst($B36,"銘柄名称")) -> =IF($B36="","← 銘柄コード",SNT.StockInst($B36,"銘柄名称")) => 銘柄情報取得中 | D36: =IF(B36="","",_xll.SNT.StockInst(B36,$D$5)) -> =IF(B36="","",SNT.StockInst(B36,$D$5)) => 銘柄情報取得中 | E36: =INDEX(ストキャスティクス計算シート!$E$27:$ZZ$27, 1, 1 + (ROW()-6)*6) -> 96.98275862 | F36: =INDEX(ストキャスティクス計算シート!$E$28:$ZZ$28, 1, 1 + (ROW()-6)*6) -> 94.73261251 | G36: 1
A37: 32 | B37: 3546 | C37: =IF($B37="","← 銘柄コード",_xll.SNT.StockInst($B37,"銘柄名称")) -> =IF($B37="","← 銘柄コード",SNT.StockInst($B37,"銘柄名称")) => 銘柄情報取得中 | D37: =IF(B37="","",_xll.SNT.StockInst(B37,$D$5)) -> =IF(B37="","",SNT.StockInst(B37,$D$5)) => 銘柄情報取得中 | E37: =INDEX(ストキャスティクス計算シート!$E$27:$ZZ$27, 1, 1 + (ROW()-6)*6) -> 10 | F37: =INDEX(ストキャスティクス計算シート!$E$28:$ZZ$28, 1, 1 + (ROW()-6)*6) -> 9.267676768 | G37: 2
A38: 33 | B38: 2269 | C38: =IF($B38="","← 銘柄コード",_xll.SNT.StockInst($B38,"銘柄名称")) -> 明治ＨＤ | D38: =IF(B38="","",_xll.SNT.StockInst(B38,$D$5)) -> 2948.5 | E38: =INDEX(ストキャスティクス計算シート!$E$27:$ZZ$27, 1, 1 + (ROW()-6)*6) -> 19.04761905 | F38: =INDEX(ストキャスティクス計算シート!$E$28:$ZZ$28, 1, 1 + (ROW()-6)*6) -> 14.20634921 | G38: 2
A39: 34 | B39: 2930 | C39: =IF($B39="","← 銘柄コード",_xll.SNT.StockInst($B39,"銘柄名称")) -> 北の達人 | D39: =IF(B39="","",_xll.SNT.StockInst(B39,$D$5)) ->  | E39: =INDEX(ストキャスティクス計算シート!$E$27:$ZZ$27, 1, 1 + (ROW()-6)*6) -> 50 | F39: =INDEX(ストキャスティクス計算シート!$E$28:$ZZ$28, 1, 1 + (ROW()-6)*6) -> 16.66666667
A40: 35 | B40: 5032 | C40: =IF($B40="","← 銘柄コード",_xll.SNT.StockInst($B40,"銘柄名称")) -> =IF($B40="","← 銘柄コード",SNT.StockInst($B40,"銘柄名称")) => 銘柄情報取得中 | D40: =IF(B40="","",_xll.SNT.StockInst(B40,$D$5)) -> =IF(B40="","",SNT.StockInst(B40,$D$5)) => 銘柄情報取得中 | E40: =INDEX(ストキャスティクス計算シート!$E$27:$ZZ$27, 1, 1 + (ROW()-6)*6) -> 61.11111111 | F40: =INDEX(ストキャスティクス計算シート!$E$28:$ZZ$28, 1, 1 + (ROW()-6)*6) -> 71.84472934
A41: 36 | B41: 3073 | C41: =IF($B41="","← 銘柄コード",_xll.SNT.StockInst($B41,"銘柄名称")) -> ＤＤグループ | D41: =IF(B41="","",_xll.SNT.StockInst(B41,$D$5)) ->  | E41: =INDEX(ストキャスティクス計算シート!$E$27:$ZZ$27, 1, 1 + (ROW()-6)*6) -> 50 | F41: =INDEX(ストキャスティクス計算シート!$E$28:$ZZ$28, 1, 1 + (ROW()-6)*6) -> 
A42: 37 | B42: 3679 | C42: =IF($B42="","← 銘柄コード",_xll.SNT.StockInst($B42,"銘柄名称")) -> じげん | D42: =IF(B42="","",_xll.SNT.StockInst(B42,$D$5)) -> 527 | E42: =INDEX(ストキャスティクス計算シート!$E$27:$ZZ$27, 1, 1 + (ROW()-6)*6) -> 20 | F42: =INDEX(ストキャスティクス計算シート!$E$28:$ZZ$28, 1, 1 + (ROW()-6)*6) -> 13.33333333 | G42: 2
A43: 38 | B43: 2491 | C43: =IF($B43="","← 銘柄コード",_xll.SNT.StockInst($B43,"銘柄名称")) -> =IF($B43="","← 銘柄コード",SNT.StockInst($B43,"銘柄名称")) => 銘柄情報取得中 | D43: =IF(B43="","",_xll.SNT.StockInst(B43,$D$5)) -> =IF(B43="","",SNT.StockInst(B43,$D$5)) => 銘柄情報取得中 | E43: =INDEX(ストキャスティクス計算シート!$E$27:$ZZ$27, 1, 1 + (ROW()-6)*6) -> 0 | F43: =INDEX(ストキャスティクス計算シート!$E$28:$ZZ$28, 1, 1 + (ROW()-6)*6) -> 2.666666667 | G43: 2
A44: 39 | B44: 8919 | C44: =IF($B44="","← 銘柄コード",_xll.SNT.StockInst($B44,"銘柄名称")) -> =IF($B44="","← 銘柄コード",SNT.StockInst($B44,"銘柄名称")) => 銘柄情報取得中 | D44: =IF(B44="","",_xll.SNT.StockInst(B44,$D$5)) -> =IF(B44="","",SNT.StockInst(B44,$D$5)) => 銘柄情報取得中 | E44: =INDEX(ストキャスティクス計算シート!$E$27:$ZZ$27, 1, 1 + (ROW()-6)*6) -> 72.91666667 | F44: =INDEX(ストキャスティクス計算シート!$E$28:$ZZ$28, 1, 1 + (ROW()-6)*6) -> 73.50979959
A45: 40 | B45: 4714 | C45: =IF($B45="","← 銘柄コード",_xll.SNT.StockInst($B45,"銘柄名称")) -> リソー教育Ｇ | D45: =IF(B45="","",_xll.SNT.StockInst(B45,$D$5)) -> 208 | E45: =INDEX(ストキャスティクス計算シート!$E$27:$ZZ$27, 1, 1 + (ROW()-6)*6) -> 66.66666667 | F45: =INDEX(ストキャスティクス計算シート!$E$28:$ZZ$28, 1, 1 + (ROW()-6)*6) -> 55.55555556
A46: 41 | B46: 3543 | C46: =IF($B46="","← 銘柄コード",_xll.SNT.StockInst($B46,"銘柄名称")) -> コメダ | D46: =IF(B46="","",_xll.SNT.StockInst(B46,$D$5)) ->  | E46: =INDEX(ストキャスティクス計算シート!$E$27:$ZZ$27, 1, 1 + (ROW()-6)*6) -> 0 | F46: =INDEX(ストキャスティクス計算シート!$E$28:$ZZ$28, 1, 1 + (ROW()-6)*6) -> 6.060606061 | G46: 2
A47: 42 | B47: 7596 | C47: =IF($B47="","← 銘柄コード",_xll.SNT.StockInst($B47,"銘柄名称")) -> =IF($B47="","← 銘柄コード",SNT.StockInst($B47,"銘柄名称")) => 銘柄情報取得中 | D47: =IF(B47="","",_xll.SNT.StockInst(B47,$D$5)) -> =IF(B47="","",SNT.StockInst(B47,$D$5)) => 銘柄情報取得中 | E47: =INDEX(ストキャスティクス計算シート!$E$27:$ZZ$27, 1, 1 + (ROW()-6)*6) -> 8.571428571 | F47: =INDEX(ストキャスティクス計算シート!$E$28:$ZZ$28, 1, 1 + (ROW()-6)*6) -> 9.694749695 | G47: 2
A48: 43 | B48: 9715 | C48: =IF($B48="","← 銘柄コード",_xll.SNT.StockInst($B48,"銘柄名称")) -> =IF($B48="","← 銘柄コード",SNT.StockInst($B48,"銘柄名称")) => 銘柄情報取得中 | D48: =IF(B48="","",_xll.SNT.StockInst(B48,$D$5)) -> =IF(B48="","",SNT.StockInst(B48,$D$5)) => 銘柄情報取得中 | E48: =INDEX(ストキャスティクス計算シート!$E$27:$ZZ$27, 1, 1 + (ROW()-6)*6) -> 33.33333333 | F48: =INDEX(ストキャスティクス計算シート!$E$28:$ZZ$28, 1, 1 + (ROW()-6)*6) -> 31.94444444
A49: 44 | B49: 9600 | C49: =IF($B49="","← 銘柄コード",_xll.SNT.StockInst($B49,"銘柄名称")) -> =IF($B49="","← 銘柄コード",SNT.StockInst($B49,"銘柄名称")) => 銘柄情報取得中 | D49: =IF(B49="","",_xll.SNT.StockInst(B49,$D$5)) -> =IF(B49="","",SNT.StockInst(B49,$D$5)) => 銘柄情報取得中 | E49: =INDEX(ストキャスティクス計算シート!$E$27:$ZZ$27, 1, 1 + (ROW()-6)*6) -> 33.33333333 | F49: =INDEX(ストキャスティクス計算シート!$E$28:$ZZ$28, 1, 1 + (ROW()-6)*6) -> 44.44444444
A50: 45 | B50: 2791 | C50: =IF($B50="","← 銘柄コード",_xll.SNT.StockInst($B50,"銘柄名称")) -> =IF($B50="","← 銘柄コード",SNT.StockInst($B50,"銘柄名称")) => 銘柄情報取得中 | D50: =IF(B50="","",_xll.SNT.StockInst(B50,$D$5)) -> =IF(B50="","",SNT.StockInst(B50,$D$5)) => 銘柄情報取得中 | E50: =INDEX(ストキャスティクス計算シート!$E$27:$ZZ$27, 1, 1 + (ROW()-6)*6) -> 31.25 | F50: =INDEX(ストキャスティクス計算シート!$E$28:$ZZ$28, 1, 1 + (ROW()-6)*6) -> 
A51: 46 | B51: 4719 | C51: =IF($B51="","← 銘柄コード",_xll.SNT.StockInst($B51,"銘柄名称")) -> =IF($B51="","← 銘柄コード",SNT.StockInst($B51,"銘柄名称")) => 銘柄情報取得中 | D51: =IF(B51="","",_xll.SNT.StockInst(B51,$D$5)) -> =IF(B51="","",SNT.StockInst(B51,$D$5)) => 銘柄情報取得中 | E51: =INDEX(ストキャスティクス計算シート!$E$27:$ZZ$27, 1, 1 + (ROW()-6)*6) -> 88.88888889 | F51: =INDEX(ストキャスティクス計算シート!$E$28:$ZZ$28, 1, 1 + (ROW()-6)*6) -> 66.66666667
A52: 47 | B52: 6445 | C52: =IF($B52="","← 銘柄コード",_xll.SNT.StockInst($B52,"銘柄名称")) -> =IF($B52="","← 銘柄コード",SNT.StockInst($B52,"銘柄名称")) => 銘柄情報取得中 | D52: =IF(B52="","",_xll.SNT.StockInst(B52,$D$5)) -> =IF(B52="","",SNT.StockInst(B52,$D$5)) => 銘柄情報取得中 | E52: =INDEX(ストキャスティクス計算シート!$E$27:$ZZ$27, 1, 1 + (ROW()-6)*6) -> 0 | F52: =INDEX(ストキャスティクス計算シート!$E$28:$ZZ$28, 1, 1 + (ROW()-6)*6) -> 7.142857143 | G52: 2
A53: 48 | B53: 8203 | C53: =IF($B53="","← 銘柄コード",_xll.SNT.StockInst($B53,"銘柄名称")) -> =IF($B53="","← 銘柄コード",SNT.StockInst($B53,"銘柄名称")) => 銘柄情報取得中 | D53: =IF(B53="","",_xll.SNT.StockInst(B53,$D$5)) -> =IF(B53="","",SNT.StockInst(B53,$D$5)) => 銘柄情報取得中 | E53: =INDEX(ストキャスティクス計算シート!$E$27:$ZZ$27, 1, 1 + (ROW()-6)*6) -> 47.61904762 | F53: =INDEX(ストキャスティクス計算シート!$E$28:$ZZ$28, 1, 1 + (ROW()-6)*6) -> 44.44444444
A54: 49 | B54: 6506 | C54: =IF($B54="","← 銘柄コード",_xll.SNT.StockInst($B54,"銘柄名称")) -> =IF($B54="","← 銘柄コード",SNT.StockInst($B54,"銘柄名称")) => 銘柄情報取得中 | D54: =IF(B54="","",_xll.SNT.StockInst(B54,$D$5)) -> =IF(B54="","",SNT.StockInst(B54,$D$5)) => 銘柄情報取得中 | E54: =INDEX(ストキャスティクス計算シート!$E$27:$ZZ$27, 1, 1 + (ROW()-6)*6) -> 85.71428571 | F54: =INDEX(ストキャスティクス計算シート!$E$28:$ZZ$28, 1, 1 + (ROW()-6)*6) -> 80.04806918 | G54: 1
A55: 50 | B55: 2471 | C55: =IF($B55="","← 銘柄コード",_xll.SNT.StockInst($B55,"銘柄名称")) -> =IF($B55="","← 銘柄コード",SNT.StockInst($B55,"銘柄名称")) => 銘柄情報取得中 | D55: =IF(B55="","",_xll.SNT.StockInst(B55,$D$5)) -> =IF(B55="","",SNT.StockInst(B55,$D$5)) => 銘柄情報取得中 | E55: =INDEX(ストキャスティクス計算シート!$E$27:$ZZ$27, 1, 1 + (ROW()-6)*6) -> 0 | F55: =INDEX(ストキャスティクス計算シート!$E$28:$ZZ$28, 1, 1 + (ROW()-6)*6) -> 

Sheet ストキャスティクス計算シート
A1: ヒストリカルデータ 複数銘柄一括取得
A2: 足種別 | B2: 15m | C2: 取得本数 | D2: 16 | AP2: =IF(MOD(COLUMN()-COLUMN($A$4),6)=0, INT((COLUMN()-COLUMN($A$4))/6)+1, "") -> 
A4: 1 | B4: =IFERROR(LEFT(A5,4),"") -> 9405 | C4: =IFERROR(_xll.SNT.StockInst(B4,"銘柄名称"),"") -> =IFERROR(SNT.StockInst(B4,"銘柄名称"),"") => 銘柄情報取得中 | G4: 2 | H4: =IFERROR(LEFT(G5,4),"") -> 4825 | I4: =IFERROR(_xll.SNT.StockInst(H4,"銘柄名称"),"") -> =IFERROR(SNT.StockInst(H4,"銘柄名称"),"") => 銘柄情報取得中 | M4: 3 | N4: =IFERROR(LEFT(M5,4),"") -> 9946 | O4: =IFERROR(_xll.SNT.StockInst(N4,"銘柄名称"),"") -> =IFERROR(SNT.StockInst(N4,"銘柄名称"),"") => 銘柄情報取得中 | S4: 4 | T4: =IFERROR(LEFT(S5,4),"") -> 7730 | U4: =IFERROR(_xll.SNT.StockInst(T4,"銘柄名称"),"") -> =IFERROR(SNT.StockInst(T4,"銘柄名称"),"") => 銘柄情報取得中 | Y4: 5 | Z4: =IFERROR(LEFT(Y5,4),"") -> 2918 | AA4: =IFERROR(_xll.SNT.StockInst(Z4,"銘柄名称"),"") -> わらべ日洋 | AE4: 6 | AF4: =IFERROR(LEFT(AE5,4),"") -> 4229 | AG4: =IFERROR(_xll.SNT.StockInst(AF4,"銘柄名称"),"") -> =IFERROR(SNT.StockInst(AF4,"銘柄名称"),"") => 銘柄情報取得中 | AK4: 7 | AL4: =IFERROR(LEFT(AK5,4),"") -> 6844 | AM4: =IFERROR(_xll.SNT.StockInst(AL4,"銘柄名称"),"") -> =IFERROR(SNT.StockInst(AL4,"銘柄名称"),"") => 銘柄情報取得中 | AQ4: 8 | AR4: =IFERROR(LEFT(AQ5,4),"") -> 6157 | AS4: =IFERROR(_xll.SNT.StockInst(AR4,"銘柄名称"),"") -> =IFERROR(SNT.StockInst(AR4,"銘柄名称"),"") => 銘柄情報取得中 | AW4: 9 | AX4: =IFERROR(LEFT(AW5,4),"") -> 8079 | AY4: =IFERROR(_xll.SNT.StockInst(AX4,"銘柄名称"),"") -> =IFERROR(SNT.StockInst(AX4,"銘柄名称"),"") => 銘柄情報取得中 | BC4: 10 | BD4: =IFERROR(LEFT(BC5,4),"") -> 7244 | BE4: =IFERROR(_xll.SNT.StockInst(BD4,"銘柄名称"),"") -> =IFERROR(SNT.StockInst(BD4,"銘柄名称"),"") => 銘柄情報取得中 | BI4: 11 | BJ4: =IFERROR(LEFT(BI5,4),"") -> 2307 | BK4: =IFERROR(_xll.SNT.StockInst(BJ4,"銘柄名称"),"") -> =IFERROR(SNT.StockInst(BJ4,"銘柄名称"),"") => 銘柄情報取得中 | BO4: 12 | BP4: =IFERROR(LEFT(BO5,4),"") -> 6183 | BQ4: =IFERROR(_xll.SNT.StockInst(BP4,"銘柄名称"),"") -> =IFERROR(SNT.StockInst(BP4,"銘柄名称"),"") => 銘柄情報取得中 | BU4: 13 | BV4: =IFERROR(LEFT(BU5,4),"") -> 2670 | BW4: =IFERROR(_xll.SNT.StockInst(BV4,"銘柄名称"),"") -> ＡＢＣマート | CA4: 14 | CB4: =IFERROR(LEFT(CA5,4),"") -> 7550 | CC4: =IFERROR(_xll.SNT.StockInst(CB4,"銘柄名称"),"") -> =IFERROR(SNT.StockInst(CB4,"銘柄名称"),"") => 銘柄情報取得中 | CG4: 15 | CH4: =IFERROR(LEFT(CG5,4),"") -> 2540 | CI4: =IFERROR(_xll.SNT.StockInst(CH4,"銘柄名称"),"") -> 養命酒 | CM4: 16 | CN4: =IFERROR(LEFT(CM5,4),"") -> 4410 | CO4: =IFERROR(_xll.SNT.StockInst(CN4,"銘柄名称"),"") -> =IFERROR(SNT.StockInst(CN4,"銘柄名称"),"") => 銘柄情報取得中 | CS4: 17 | CT4: =IFERROR(LEFT(CS5,4),"") -> 6590 | CU4: =IFERROR(_xll.SNT.StockInst(CT4,"銘柄名称"),"") -> 芝浦 | CY4: 18 | CZ4: =IFERROR(LEFT(CY5,4),"") -> 9832 | DA4: =IFERROR(_xll.SNT.StockInst(CZ4,"銘柄名称"),"") -> =IFERROR(SNT.StockInst(CZ4,"銘柄名称"),"") => 銘柄情報取得中 | DE4: 19 | DF4: =IFERROR(LEFT(DE5,4),"") -> 6740 | DG4: =IFERROR(_xll.SNT.StockInst(DF4,"銘柄名称"),"") -> =IFERROR(SNT.StockInst(DF4,"銘柄名称"),"") => 銘柄情報取得中 | DK4: 20 | DL4: =IFERROR(LEFT(DK5,4),"") -> 3676 | DM4: =IFERROR(_xll.SNT.StockInst(DL4,"銘柄名称"),"") -> =IFERROR(SNT.StockInst(DL4,"銘柄名称"),"") => 銘柄情報取得中 | DQ4: 21 | DR4: =IFERROR(LEFT(DQ5,4),"") -> 5632 | DS4: =IFERROR(_xll.SNT.StockInst(DR4,"銘柄名称"),"") -> =IFERROR(SNT.StockInst(DR4,"銘柄名称"),"") => 銘柄情報取得中 | DW4: 22 | DX4: =IFERROR(LEFT(DW5,4),"") -> 6387 | DY4: =IFERROR(_xll.SNT.StockInst(DX4,"銘柄名称"),"") -> =IFERROR(SNT.StockInst(DX4,"銘柄名称"),"") => 銘柄情報取得中 | EC4: 23 | ED4: =IFERROR(LEFT(EC5,4),"") -> 9716 | EE4: =IFERROR(_xll.SNT.StockInst(ED4,"銘柄名称"),"") -> =IFERROR(SNT.StockInst(ED4,"銘柄名称"),"") => 銘柄情報取得中 | EI4: 24 | EJ4: =IFERROR(LEFT(EI5,4),"") -> 8095 | EK4: =IFERROR(_xll.SNT.StockInst(EJ4,"銘柄名称"),"") -> =IFERROR(SNT.StockInst(EJ4,"銘柄名称"),"") => 銘柄情報取得中 | EO4: 25 | EP4: =IFERROR(LEFT(EO5,4),"") -> 3093 | EQ4: =IFERROR(_xll.SNT.StockInst(EP4,"銘柄名称"),"") -> トレファク | EU4: 26 | EV4: =IFERROR(LEFT(EU5,4),"") -> 9536 | EW4: =IFERROR(_xll.SNT.StockInst(EV4,"銘柄名称"),"") -> =IFERROR(SNT.StockInst(EV4,"銘柄名称"),"") => 銘柄情報取得中 | FA4: 27 | FB4: =IFERROR(LEFT(FA5,4),"") -> 7888 | FC4: =IFERROR(_xll.SNT.StockInst(FB4,"銘柄名称"),"") -> =IFERROR(SNT.StockInst(FB4,"銘柄名称"),"") => 銘柄情報取得中 | FG4: 28 | FH4: =IFERROR(LEFT(FG5,4),"") -> 9247 | FI4: =IFERROR(_xll.SNT.StockInst(FH4,"銘柄名称"),"") -> =IFERROR(SNT.StockInst(FH4,"銘柄名称"),"") => 銘柄情報取得中 | FM4: 29 | FN4: =IFERROR(LEFT(FM5,4),"") -> 8103 | FO4: =IFERROR(_xll.SNT.StockInst(FN4,"銘柄名称"),"") -> =IFERROR(SNT.StockInst(FN4,"銘柄名称"),"") => 銘柄情報取得中 | FS4: 30 | FT4: =IFERROR(LEFT(FS5,4),"") -> 3179 | FU4: =IFERROR(_xll.SNT.StockInst(FT4,"銘柄名称"),"") -> =IFERROR(SNT.StockInst(FT4,"銘柄名称"),"") => 銘柄情報取得中 | FY4: 31 | FZ4: =IFERROR(LEFT(FY5,4),"") -> 3141 | GA4: =IFERROR(_xll.SNT.StockInst(FZ4,"銘柄名称"),"") -> =IFERROR(SNT.StockInst(FZ4,"銘柄名称"),"") => 銘柄情報取得中 | GE4: 32 | GF4: =IFERROR(LEFT(GE5,4),"") -> 3546 | GG4: =IFERROR(_xll.SNT.StockInst(GF4,"銘柄名称"),"") -> =IFERROR(SNT.StockInst(GF4,"銘柄名称"),"") => 銘柄情報取得中 | GK4: 33 | GL4: =IFERROR(LEFT(GK5,4),"") -> 2269 | GM4: =IFERROR(_xll.SNT.StockInst(GL4,"銘柄名称"),"") -> 明治ＨＤ | GQ4: 34 | GR4: =IFERROR(LEFT(GQ5,4),"") -> 2930 | GS4: =IFERROR(_xll.SNT.StockInst(GR4,"銘柄名称"),"") -> 北の達人 | GW4: 35 | GX4: =IFERROR(LEFT(GW5,4),"") -> 5032 | GY4: =IFERROR(_xll.SNT.StockInst(GX4,"銘柄名称"),"") -> =IFERROR(SNT.StockInst(GX4,"銘柄名称"),"") => 銘柄情報取得中 | HC4: 36 | HD4: =IFERROR(LEFT(HC5,4),"") -> 3073 | HE4: =IFERROR(_xll.SNT.StockInst(HD4,"銘柄名称"),"") -> ＤＤグループ | HI4: 37 | HJ4: =IFERROR(LEFT(HI5,4),"") -> 3679 | HK4: =IFERROR(_xll.SNT.StockInst(HJ4,"銘柄名称"),"") -> じげん | HO4: 38 | HP4: =IFERROR(LEFT(HO5,4),"") -> 2491 | HQ4: =IFERROR(_xll.SNT.StockInst(HP4,"銘柄名称"),"") -> =IFERROR(SNT.StockInst(HP4,"銘柄名称"),"") => 銘柄情報取得中 | HU4: 39 | HV4: =IFERROR(LEFT(HU5,4),"") -> 8919 | HW4: =IFERROR(_xll.SNT.StockInst(HV4,"銘柄名称"),"") -> =IFERROR(SNT.StockInst(HV4,"銘柄名称"),"") => 銘柄情報取得中 | IA4: 40 | IB4: =IFERROR(LEFT(IA5,4),"") -> 4714 | IC4: =IFERROR(_xll.SNT.StockInst(IB4,"銘柄名称"),"") -> リソー教育Ｇ | IG4: 41 | IH4: =IFERROR(LEFT(IG5,4),"") -> 3543 | II4: =IFERROR(_xll.SNT.StockInst(IH4,"銘柄名称"),"") -> コメダ | IM4: 42 | IN4: =IFERROR(LEFT(IM5,4),"") -> 7596 | IO4: =IFERROR(_xll.SNT.StockInst(IN4,"銘柄名称"),"") -> =IFERROR(SNT.StockInst(IN4,"銘柄名称"),"") => 銘柄情報取得中 | IS4: 43 | IT4: =IFERROR(LEFT(IS5,4),"") -> 9715 | IU4: =IFERROR(_xll.SNT.StockInst(IT4,"銘柄名称"),"") -> =IFERROR(SNT.StockInst(IT4,"銘柄名称"),"") => 銘柄情報取得中 | IY4: 44 | IZ4: =IFERROR(LEFT(IY5,4),"") -> 9600 | JA4: =IFERROR(_xll.SNT.StockInst(IZ4,"銘柄名称"),"") -> =IFERROR(SNT.StockInst(IZ4,"銘柄名称"),"") => 銘柄情報取得中 | JE4: 45 | JF4: =IFERROR(LEFT(JE5,4),"") -> 2791 | JG4: =IFERROR(_xll.SNT.StockInst(JF4,"銘柄名称"),"") -> =IFERROR(SNT.StockInst(JF4,"銘柄名称"),"") => 銘柄情報取得中 | JK4: 46 | JL4: =IFERROR(LEFT(JK5,4),"") -> 4719 | JM4: =IFERROR(_xll.SNT.StockInst(JL4,"銘柄名称"),"") -> =IFERROR(SNT.StockInst(JL4,"銘柄名称"),"") => 銘柄情報取得中 | JQ4: 47 | JR4: =IFERROR(LEFT(JQ5,4),"") -> 6445 | JS4: =IFERROR(_xll.SNT.StockInst(JR4,"銘柄名称"),"") -> =IFERROR(SNT.StockInst(JR4,"銘柄名称"),"") => 銘柄情報取得中 | JW4: 48 | JX4: =IFERROR(LEFT(JW5,4),"") -> 8203 | JY4: =IFERROR(_xll.SNT.StockInst(JX4,"銘柄名称"),"") -> =IFERROR(SNT.StockInst(JX4,"銘柄名称"),"") => 銘柄情報取得中 | KC4: 49 | KD4: =IFERROR(LEFT(KC5,4),"") -> 6506 | KE4: =IFERROR(_xll.SNT.StockInst(KD4,"銘柄名称"),"") -> =IFERROR(SNT.StockInst(KD4,"銘柄名称"),"") => 銘柄情報取得中 | KI4: 50 | KJ4: =IFERROR(LEFT(KI5,4),"") -> 2471 | KK4: =IFERROR(_xll.SNT.StockInst(KJ4,"銘柄名称"),"") -> =IFERROR(SNT.StockInst(KJ4,"銘柄名称"),"") => 銘柄情報取得中
A5: 9405:日付 | B5: 9405:始値 | C5: 9405:高値 | D5: 9405:安値 | E5: 9405:終値 | G5: 4825:日付 | H5: 4825:始値 | I5: 4825:高値 | J5: 4825:安値 | K5: 4825:終値 | M5: 9946:日付 | N5: 9946:始値 | O5: 9946:高値 | P5: 9946:安値 | Q5: 9946:終値 | S5: 7730:日付 | T5: 7730:始値 | U5: 7730:高値 | V5: 7730:安値 | W5: 7730:終値 | Y5: 2918:日付 | Z5: 2918:始値 | AA5: 2918:高値 | AB5: 2918:安値 | AC5: 2918:終値 | AE5: 4229:日付 | AF5: 4229:始値 | AG5: 4229:高値 | AH5: 4229:安値 | AI5: 4229:終値 | AK5: 6844:日付 | AL5: 6844:始値 | AM5: 6844:高値 | AN5: 6844:安値 | AO5: 6844:終値 | AQ5: 6157:日付 | AR5: 6157:始値 | AS5: 6157:高値 | AT5: 6157:安値 | AU5: 6157:終値 | AW5: 8079:日付 | AX5: 8079:始値 | AY5: 8079:高値 | AZ5: 8079:安値 | BA5: 8079:終値 | BC5: 7244:日付 | BD5: 7244:始値 | BE5: 7244:高値 | BF5: 7244:安値 | BG5: 7244:終値 | BI5: 2307:日付 | BJ5: 2307:始値 | BK5: 2307:高値 | BL5: 2307:安値 | BM5: 2307:終値 | BO5: 6183:日付 | BP5: 6183:始値 | BQ5: 6183:高値 | BR5: 6183:安値 | BS5: 6183:終値 | BU5: 2670:日付 | BV5: 2670:始値 | BW5: 2670:高値 | BX5: 2670:安値 | BY5: 2670:終値 | CA5: 75505:日付 | CB5: 75505:始値 | CC5: 75505:高値 | CD5: 75505:安値 | CE5: 75505:終値 | CG5: 2540:日付 | CH5: 2540:始値 | CI5: 2540:高値 | CJ5: 2540:安値 | CK5: 2540:終値 | CM5: 4410:日付 | CN5: 4410:始値 | CO5: 4410:高値 | CP5: 4410:安値 | CQ5: 4410:終値 | CS5: 6590:日付 | CT5: 6590:始値 | CU5: 6590:高値 | CV5: 6590:安値 | CW5: 6590:終値 | CY5: 9832:日付 | CZ5: 9832:始値 | DA5: 9832:高値 | DB5: 9832:安値 | DC5: 9832:終値 | DE5: 6740:日付 | DF5: 6740:始値 | DG5: 6740:高値 | DH5: 6740:安値 | DI5: 6740:終値 | DK5: 3676:日付 | DL5: 3676:始値 | DM5: 3676:高値 | DN5: 3676:安値 | DO5: 3676:終値 | DQ5: 5632:日付 | DR5: 5632:始値 | DS5: 5632:高値 | DT5: 5632:安値 | DU5: 5632:終値 | DW5: 6387:日付 | DX5: 6387:始値 | DY5: 6387:高値 | DZ5: 6387:安値 | EA5: 6387:終値 | EC5: 9716:日付 | ED5: 9716:始値 | EE5: 9716:高値 | EF5: 9716:安値 | EG5: 9716:終値 | EI5: 8095:日付 | EJ5: 8095:始値 | EK5: 8095:高値 | EL5: 8095:安値 | EM5: 8095:終値 | EO5: 3093:日付 | EP5: 3093:始値 | EQ5: 3093:高値 | ER5: 3093:安値 | ES5: 3093:終値 | EU5: 9536:日付 | EV5: 9536:始値 | EW5: 9536:高値 | EX5: 9536:安値 | EY5: 9536:終値 | FA5: 7888:日付 | FB5: 7888:始値 | FC5: 7888:高値 | FD5: 7888:安値 | FE5: 7888:終値 | FG5: 9247:日付 | FH5: 9247:始値 | FI5: 9247:高値 | FJ5: 9247:安値 | FK5: 9247:終値 | FM5: 8103:日付 | FN5: 8103:始値 | FO5: 8103:高値 | FP5: 8103:安値 | FQ5: 8103:終値 | FS5: 3179:日付 | FT5: 3179:始値 | FU5: 3179:高値 | FV5: 3179:安値 | FW5: 3179:終値 | FY5: 3141:日付 | FZ5: 3141:始値 | GA5: 3141:高値 | GB5: 3141:安値 | GC5: 3141:終値 | GE5: 3546:日付 | GF5: 3546:始値 | GG5: 3546:高値 | GH5: 3546:安値 | GI5: 3546:終値 | GK5: 2269:日付 | GL5: 2269:始値 | GM5: 2269:高値 | GN5: 2269:安値 | GO5: 2269:終値 | GQ5: 2930:日付 | GR5: 2930:始値 | GS5: 2930:高値 | GT5: 2930:安値 | GU5: 2930:終値 | GW5: 5032:日付 | GX5: 5032:始値 | GY5: 5032:高値 | GZ5: 5032:安値 | HA5: 5032:終値 | HC5: 3073:日付 | HD5: 3073:始値 | HE5: 3073:高値 | HF5: 3073:安値 | HG5: 3073:終値 | HI5: 3679:日付 | HJ5: 3679:始値 | HK5: 3679:高値 | HL5: 3679:安値 | HM5: 3679:終値 | HO5: 2491:日付 | HP5: 2491:始値 | HQ5: 2491:高値 | HR5: 2491:安値 | HS5: 2491:終値 | HU5: 8919:日付 | HV5: 8919:始値 | HW5: 8919:高値 | HX5: 8919:安値 | HY5: 8919:終値 | IA5: 4714:日付 | IB5: 4714:始値 | IC5: 4714:高値 | ID5: 4714:安値 | IE5: 4714:終値 | IG5: 3543:日付 | IH5: 3543:始値 | II5: 3543:高値 | IJ5: 3543:安値 | IK5: 3543:終値 | IM5: 7596:日付 | IN5: 7596:始値 | IO5: 7596:高値 | IP5: 7596:安値 | IQ5: 7596:終値 | IS5: 9715:日付 | IT5: 9715:始値 | IU5: 9715:高値 | IV5: 9715:安値 | IW5: 9715:終値 | IY5: 9600:日付 | IZ5: 9600:始値 | JA5: 9600:高値 | JB5: 9600:安値 | JC5: 9600:終値 | JE5: 2791:日付 | JF5: 2791:始値 | JG5: 2791:高値 | JH5: 2791:安値 | JI5: 2791:終値 | JK5: 4719:日付 | JL5: 4719:始値 | JM5: 4719:高値 | JN5: 4719:安値 | JO5: 4719:終値 | JQ5: 6445:日付 | JR5: 6445:始値 | JS5: 6445:高値 | JT5: 6445:安値 | JU5: 6445:終値 | JW5: 8203:日付 | JX5: 8203:始値 | JY5: 8203:高値 | JZ5: 8203:安値 | KA5: 8203:終値 | KC5: 6506:日付 | KD5: 6506:始値 | KE5: 6506:高値 | KF5: 6506:安値 | KG5: 6506:終値 | KI5: 2471:日付 | KJ5: 2471:始値 | KK5: 2471:高値 | KL5: 2471:安値 | KM5: 2471:終値
A6: 2025-10-08T15:00:00 | B6: 746 | C6: 746 | D6: 744 | E6: 745 | G6: 2025-10-08T15:00:00 | H6: 4765 | I6: 4785 | J6: 4760 | K6: 4765 | M6: 2025-10-08T15:00:00 | N6: 1959 | O6: 1960 | P6: 1955 | Q6: 1960 | S6: 2025-10-08T15:00:00 | T6: 1296.5 | U6: 1301 | V6: 1295 | W6: 1300.5 | Y6: 2025-10-08T15:00:00 | AE6: 2025-10-08T14:45:00 | AF6: 3330 | AG6: 3330 | AH6: 3330 | AI6: 3330 | AK6: 2025-10-08T15:00:00 | AL6: 3255 | AM6: 3260 | AN6: 3255 | AO6: 3260 | AQ6: 2025-10-08T15:00:00 | AR6: 782 | AS6: 783 | AT6: 782 | AU6: 783 | AW6: 2025-10-08T15:00:00 | AX6: 4190 | AY6: 4195 | AZ6: 4185 | BA6: 4185 | BC6: 2025-10-08T15:00:00 | BD6: 443 | BE6: 443 | BF6: 442 | BG6: 443 | BI6: 2025-10-08T15:00:00 | BJ6: 1155 | BK6: 1155 | BL6: 1154 | BM6: 1155 | BO6: 2025-10-08T15:00:00 | BP6: 1342 | BQ6: 1344 | BR6: 1340 | BS6: 1344 | BU6: 2025-10-08T15:00:00 | BV6: 2913 | BW6: 2917 | BX6: 2910 | BY6: 2911 | CA6: 2025-10-08T11:15:00 | CG6: 2025-10-08T15:00:00 | CH6: 3990 | CI6: 3990 | CJ6: 3980 | CK6: 3985 | CM6: 2025-10-08T15:00:00 | CN6: 892 | CO6: 893 | CP6: 892 | CQ6: 892 | CS6: 2025-10-08T15:00:00 | CT6: 14930 | CU6: 14940 | CV6: 14870 | CW6: 14870 | CY6: 2025-10-08T15:00:00 | CZ6: 1545 | DA6: 1545 | DB6: 1543 | DC6: 1543 | DE6: 2025-10-08T15:00:00 | DF6: 19 | DG6: 20 | DH6: 18 | DI6: 18 | DK6: 2025-10-08T15:00:00 | DL6: 981 | DM6: 981 | DN6: 977 | DO6: 978 | DQ6: 2025-10-08T15:00:00 | DR6: 1921 | DS6: 1928 | DT6: 1914 | DU6: 1916 | DW6: 2025-10-08T15:00:00 | DX6: 4045 | DY6: 4045 | DZ6: 4025 | EA6: 4025 | EC6: 2025-10-08T15:00:00 | ED6: 1061 | EE6: 1061 | EF6: 1055 | EG6: 1055 | EI6: 2025-10-08T15:00:00 | EJ6: 525 | EK6: 525 | EL6: 523 | EM6: 523 | EO6: 2025-10-08T15:00:00 | EP6: 1796 | EQ6: 1796 | ER6: 1789 | ES6: 1789 | EU6: 2025-10-08T14:45:00 | EV6: 1946 | EW6: 1946 | EX6: 1945 | EY6: 1945 | FA6: 2025-10-08T15:00:00 | FB6: 903 | FC6: 903 | FD6: 898 | FE6: 900 | FG6: 2025-10-08T15:00:00 | FH6: 1516 | FI6: 1516 | FJ6: 1511 | FK6: 1511 | FM6: 2025-10-08T15:00:00 | FN6: 844 | FO6: 845 | FP6: 842 | FQ6: 843 | FS6: 2025-10-08T15:00:00 | FT6: 1254 | FU6: 1254 | FV6: 1254 | FW6: 1254 | FY6: 2025-10-08T15:00:00 | FZ6: 2712.5 | GA6: 2716.5 | GB6: 2705.5 | GC6: 2707 | GE6: 2025-10-08T15:00:00 | GF6: 1059 | GG6: 1060 | GH6: 1059 | GI6: 1059 | GK6: 2025-10-08T15:00:00 | GL6: 3029 | GM6: 3030 | GN6: 3022 | GO6: 3022 | GQ6: 2025-10-08T15:00:00 | GR6: 144 | GS6: 145 | GT6: 144 | GU6: 144 | GW6: 2025-10-08T15:00:00 | GX6: 5760 | GY6: 5760 | GZ6: 5730 | HA6: 5740 | HC6: 2025-10-08T15:00:00 | HD6: 1690 | HE6: 1690 | HF6: 1690 | HG6: 1690 | HI6: 2025-10-08T15:00:00 | HJ6: 536 | HK6: 536 | HL6: 534 | HM6: 535 | HO6: 2025-10-08T15:00:00 | HP6: 747 | HQ6: 748 | HR6: 747 | HS6: 747 | HU6: 2025-10-08T15:00:00 | HV6: 2741 | HW6: 2742 | HX6: 2735 | HY6: 2735 | IA6: 2025-10-08T15:00:00 | IB6: 217 | IC6: 218 | ID6: 217 | IE6: 217 | IG6: 2025-10-08T15:00:00 | IH6: 3060 | II6: 3065 | IJ6: 3055 | IK6: 3055 | IM6: 2025-10-08T15:00:00 | IN6: 2376 | IO6: 2376 | IP6: 2375 | IQ6: 2375 | IS6: 2025-10-08T15:00:00 | IT6: 3630 | IU6: 3635 | IV6: 3625 | IW6: 3630 | IY6: 2025-10-08T15:00:00 | IZ6: 2529 | JA6: 2529 | JB6: 2528 | JC6: 2528 | JE6: 2025-10-08T14:45:00 | JF6: 7060 | JG6: 7060 | JH6: 7050 | JI6: 7050 | JK6: 2025-10-08T15:00:00 | JL6: 3720 | JM6: 3720 | JN6: 3705 | JO6: 3715 | JQ6: 2025-10-08T15:00:00 | JR6: 1116 | JS6: 1117 | JT6: 1116 | JU6: 1116 | JW6: 2025-10-08T15:00:00 | JX6: 878 | JY6: 879 | JZ6: 877 | KA6: 877 | KC6: 2025-10-08T15:00:00 | KD6: 3663 | KE6: 3667 | KF6: 3647 | KG6: 3657 | KI6: 2025-10-08T15:00:00 | KJ6: 345 | KK6: 345 | KL6: 344 | KM6: 344
A7: 2025-10-08T15:15:00 | B7: 745 | C7: 747 | D7: 745 | E7: 746 | G7: 2025-10-08T15:15:00 | H7: 4765 | I7: 4790 | J7: 4750 | K7: 4785 | M7: 2025-10-08T15:15:00 | N7: 1959 | O7: 1962 | P7: 1958 | Q7: 1960 | S7: 2025-10-08T15:15:00 | T7: 1301 | U7: 1304 | V7: 1298 | W7: 1302 | Y7: 2025-10-08T15:15:00 | AE7: 2025-10-08T15:00:00 | AF7: 3330 | AG7: 3330 | AH7: 3325 | AI7: 3325 | AK7: 2025-10-08T15:15:00 | AL7: 3255 | AM7: 3265 | AN7: 3255 | AO7: 3260 | AQ7: 2025-10-08T15:15:00 | AR7: 782 | AS7: 782 | AT7: 781 | AU7: 782 | AW7: 2025-10-08T15:15:00 | AX7: 4190 | AY7: 4195 | AZ7: 4190 | BA7: 4190 | BC7: 2025-10-08T15:15:00 | BD7: 442 | BE7: 442 | BF7: 442 | BG7: 442 | BI7: 2025-10-08T15:15:00 | BJ7: 1155 | BK7: 1159 | BL7: 1155 | BM7: 1159 | BO7: 2025-10-08T15:15:00 | BP7: 1344 | BQ7: 1349 | BR7: 1342 | BS7: 1349 | BU7: 2025-10-08T15:15:00 | BV7: 2910.5 | BW7: 2918 | BX7: 2907.5 | BY7: 2918 | CA7: 2025-10-08T11:30:00 | CG7: 2025-10-08T15:15:00 | CH7: 3980 | CI7: 3980 | CJ7: 3975 | CK7: 3980 | CM7: 2025-10-08T15:15:00 | CN7: 892 | CO7: 893 | CP7: 892 | CQ7: 893 | CS7: 2025-10-08T15:15:00 | CT7: 14870 | CU7: 14900 | CV7: 14860 | CW7: 14880 | CY7: 2025-10-08T15:15:00 | CZ7: 1543 | DA7: 1544 | DB7: 1541 | DC7: 1544 | DE7: 2025-10-08T15:15:00 | DF7: 18 | DG7: 19 | DH7: 18 | DI7: 19 | DK7: 2025-10-08T15:15:00 | DL7: 980 | DM7: 984 | DN7: 980 | DO7: 984 | DQ7: 2025-10-08T15:15:00 | DR7: 1917 | DS7: 1924 | DT7: 1916 | DU7: 1923 | DW7: 2025-10-08T15:15:00 | DX7: 4030 | DY7: 4035 | DZ7: 4025 | EA7: 4035 | EC7: 2025-10-08T15:15:00 | ED7: 1055 | EE7: 1057 | EF7: 1052 | EG7: 1052 | EI7: 2025-10-08T15:15:00 | EJ7: 523 | EK7: 523 | EL7: 523 | EM7: 523 | EO7: 2025-10-08T15:15:00 | EP7: 1789 | EQ7: 1796 | ER7: 1785 | ES7: 1794 | EU7: 2025-10-08T15:00:00 | EV7: 1945 | EW7: 1945 | EX7: 1944 | EY7: 1945 | FA7: 2025-10-08T15:15:00 | FB7: 900 | FC7: 904 | FD7: 900 | FE7: 902 | FG7: 2025-10-08T15:15:00 | FH7: 1511 | FI7: 1512 | FJ7: 1506 | FK7: 1509 | FM7: 2025-10-08T15:15:00 | FN7: 843 | FO7: 844 | FP7: 841 | FQ7: 844 | FS7: 2025-10-08T15:15:00 | FT7: 1254 | FU7: 1255 | FV7: 1253 | FW7: 1255 | FY7: 2025-10-08T15:15:00 | FZ7: 2707.5 | GA7: 2717.5 | GB7: 2707 | GC7: 2714.5 | GE7: 2025-10-08T15:15:00 | GF7: 1058 | GG7: 1058 | GH7: 1056 | GI7: 1058 | GK7: 2025-10-08T15:15:00 | GL7: 3022 | GM7: 3023 | GN7: 3020 | GO7: 3021 | GQ7: 2025-10-08T15:15:00 | GR7: 144 | GS7: 145 | GT7: 144 | GU7: 145 | GW7: 2025-10-08T15:15:00 | GX7: 5740 | GY7: 5760 | GZ7: 5740 | HA7: 5750 | HC7: 2025-10-08T15:15:00 | HD7: 1689 | HE7: 1689 | HF7: 1689 | HG7: 1689 | HI7: 2025-10-08T15:15:00 | HJ7: 534 | HK7: 536 | HL7: 534 | HM7: 536 | HO7: 2025-10-08T15:15:00 | HP7: 747 | HQ7: 747 | HR7: 746 | HS7: 747 | HU7: 2025-10-08T15:15:00 | HV7: 2735 | HW7: 2736 | HX7: 2727 | HY7: 2729 | IA7: 2025-10-08T15:15:00 | IB7: 217 | IC7: 218 | ID7: 217 | IE7: 217 | IG7: 2025-10-08T15:15:00 | IH7: 3055 | II7: 3065 | IJ7: 3055 | IK7: 3060 | IM7: 2025-10-08T15:15:00 | IN7: 2375 | IO7: 2376 | IP7: 2372 | IQ7: 2375 | IS7: 2025-10-08T15:15:00 | IT7: 3630 | IU7: 3635 | IV7: 3625 | IW7: 3635 | IY7: 2025-10-08T15:15:00 | IZ7: 2528 | JA7: 2529 | JB7: 2528 | JC7: 2529 | JE7: 2025-10-08T15:00:00 | JF7: 7050 | JG7: 7050 | JH7: 7040 | JI7: 7050 | JK7: 2025-10-08T15:15:00 | JL7: 3710 | JM7: 3710 | JN7: 3710 | JO7: 3710 | JQ7: 2025-10-08T15:15:00 | JR7: 1116 | JS7: 1117 | JT7: 1116 | JU7: 1116 | JW7: 2025-10-08T15:15:00 | JX7: 877 | JY7: 877 | JZ7: 875 | KA7: 877 | KC7: 2025-10-08T15:15:00 | KD7: 3656 | KE7: 3700 | KF7: 3655 | KG7: 3699 | KI7: 2025-10-08T15:15:00 | KJ7: 345 | KK7: 345 | KL7: 344 | KM7: 345
A8: 2025-10-08T15:30:00 | B8: 746 | C8: 746 | D8: 746 | E8: 746 | G8: 2025-10-08T15:30:00 | H8: 4790 | I8: 4790 | J8: 4790 | K8: 4790 | M8: 2025-10-08T15:30:00 | N8: 1956 | O8: 1956 | P8: 1956 | Q8: 1956 | S8: 2025-10-08T15:30:00 | T8: 1307.5 | U8: 1307.5 | V8: 1307.5 | W8: 1307.5 | Y8: 2025-10-08T15:30:00 | Z8: 3460 | AA8: 3460 | AB8: 3460 | AC8: 3460 | AE8: 2025-10-08T15:15:00 | AF8: 3325 | AG8: 3325 | AH8: 3325 | AI8: 3325 | AK8: 2025-10-08T15:30:00 | AL8: 3255 | AM8: 3255 | AN8: 3255 | AO8: 3255 | AQ8: 2025-10-08T15:30:00 | AR8: 781 | AS8: 781 | AT8: 781 | AU8: 781 | AW8: 2025-10-08T15:30:00 | AX8: 4185 | AY8: 4185 | AZ8: 4185 | BA8: 4185 | BC8: 2025-10-08T15:30:00 | BD8: 442 | BE8: 442 | BF8: 442 | BG8: 442 | BI8: 2025-10-08T15:30:00 | BJ8: 1158 | BK8: 1158 | BL8: 1158 | BM8: 1158 | BO8: 2025-10-08T15:30:00 | BP8: 1348 | BQ8: 1348 | BR8: 1348 | BS8: 1348 | BU8: 2025-10-08T15:30:00 | BV8: 2906 | BW8: 2906 | BX8: 2906 | BY8: 2906 | CA8: 2025-10-08T12:30:00 | CG8: 2025-10-08T15:30:00 | CH8: 3990 | CI8: 3990 | CJ8: 3990 | CK8: 3990 | CM8: 2025-10-08T15:30:00 | CN8: 892 | CO8: 892 | CP8: 892 | CQ8: 892 | CS8: 2025-10-08T15:30:00 | CT8: 14910 | CU8: 14910 | CV8: 14910 | CW8: 14910 | CY8: 2025-10-08T15:30:00 | CZ8: 1545 | DA8: 1545 | DB8: 1545 | DC8: 1545 | DE8: 2025-10-08T15:30:00 | DF8: 19 | DG8: 19 | DH8: 19 | DI8: 19 | DK8: 2025-10-08T15:30:00 | DL8: 987 | DM8: 987 | DN8: 987 | DO8: 987 | DQ8: 2025-10-08T15:30:00 | DR8: 1923 | DS8: 1923 | DT8: 1923 | DU8: 1923 | DW8: 2025-10-08T15:30:00 | DX8: 4040 | DY8: 4040 | DZ8: 4040 | EA8: 4040 | EC8: 2025-10-08T15:30:00 | ED8: 1050 | EE8: 1050 | EF8: 1050 | EG8: 1050 | EI8: 2025-10-08T15:30:00 | EJ8: 523 | EK8: 523 | EL8: 523 | EM8: 523 | EO8: 2025-10-08T15:30:00 | EP8: 1791 | EQ8: 1791 | ER8: 1791 | ES8: 1791 | EU8: 2025-10-08T15:15:00 | EV8: 1944 | EW8: 1946 | EX8: 1944 | EY8: 1945 | FA8: 2025-10-08T15:30:00 | FB8: 900 | FC8: 900 | FD8: 900 | FE8: 900 | FG8: 2025-10-08T15:30:00 | FH8: 1506 | FI8: 1506 | FJ8: 1506 | FK8: 1506 | FM8: 2025-10-08T15:30:00 | FN8: 840 | FO8: 840 | FP8: 840 | FQ8: 840 | FS8: 2025-10-08T15:30:00 | FT8: 1252 | FU8: 1252 | FV8: 1252 | FW8: 1252 | FY8: 2025-10-08T15:30:00 | FZ8: 2699.5 | GA8: 2699.5 | GB8: 2699.5 | GC8: 2699.5 | GE8: 2025-10-08T15:30:00 | GF8: 1056 | GG8: 1056 | GH8: 1056 | GI8: 1056 | GK8: 2025-10-08T15:30:00 | GL8: 3016 | GM8: 3016 | GN8: 3016 | GO8: 3016 | GQ8: 2025-10-08T15:30:00 | GR8: 144 | GS8: 144 | GT8: 144 | GU8: 144 | GW8: 2025-10-08T15:30:00 | GX8: 5770 | GY8: 5770 | GZ8: 5770 | HA8: 5770 | HC8: 2025-10-08T15:30:00 | HD8: 1689 | HE8: 1689 | HF8: 1689 | HG8: 1689 | HI8: 2025-10-08T15:30:00 | HJ8: 534 | HK8: 534 | HL8: 534 | HM8: 534 | HO8: 2025-10-08T15:30:00 | HP8: 745 | HQ8: 745 | HR8: 745 | HS8: 745 | HU8: 2025-10-08T15:30:00 | HV8: 2729 | HW8: 2729 | HX8: 2729 | HY8: 2729 | IA8: 2025-10-08T15:30:00 | IB8: 217 | IC8: 217 | ID8: 217 | IE8: 217 | IG8: 2025-10-08T15:30:00 | IH8: 3050 | II8: 3050 | IJ8: 3050 | IK8: 3050 | IM8: 2025-10-08T15:30:00 | IN8: 2372 | IO8: 2372 | IP8: 2372 | IQ8: 2372 | IS8: 2025-10-08T15:30:00 | IT8: 3650 | IU8: 3650 | IV8: 3650 | IW8: 3650 | IY8: 2025-10-08T15:30:00 | IZ8: 2528 | JA8: 2528 | JB8: 2528 | JC8: 2528 | JE8: 2025-10-08T15:15:00 | JF8: 7040 | JG8: 7050 | JH8: 7030 | JI8: 7030 | JK8: 2025-10-08T15:30:00 | JL8: 3720 | JM8: 3720 | JN8: 3720 | JO8: 3720 | JQ8: 2025-10-08T15:30:00 | JR8: 1116 | JS8: 1116 | JT8: 1116 | JU8: 1116 | JW8: 2025-10-08T15:30:00 | JX8: 875 | JY8: 875 | JZ8: 875 | KA8: 875 | KC8: 2025-10-08T15:30:00 | KD8: 3680 | KE8: 3680 | KF8: 3680 | KG8: 3680 | KI8: 2025-10-08T15:30:00 | KJ8: 345 | KK8: 345 | KL8: 345 | KM8: 345
A9: 2025-10-09T09:00:00 | B9: 740 | C9: 748 | D9: 740 | E9: 745 | G9: 2025-10-09T09:00:00 | H9: 4780 | I9: 4790 | J9: 4520 | K9: 4535 | M9: 2025-10-09T09:00:00 | N9: 2100 | O9: 2125 | P9: 2054 | Q9: 2125 | S9: 2025-10-09T09:00:00 | T9: 1456.5 | U9: 1468.5 | V9: 1407.5 | W9: 1430.5 | Y9: 2025-10-09T09:00:00 | Z9: 3550 | AA9: 3560 | AB9: 3330 | AC9: 3395 | AE9: 2025-10-08T15:30:00 | AF9: 3315 | AG9: 3315 | AH9: 3315 | AI9: 3315 | AK9: 2025-10-09T09:00:00 | AL9: 3280 | AM9: 3380 | AN9: 3275 | AO9: 3360 | AQ9: 2025-10-09T09:00:00 | AR9: 780 | AS9: 784 | AT9: 777 | AU9: 779 | AW9: 2025-10-09T09:00:00 | AX9: 4190 | AY9: 4200 | AZ9: 4190 | BA9: 4195 | BC9: 2025-10-09T09:00:00 | BD9: 448 | BE9: 455 | BF9: 444 | BG9: 455 | BI9: 2025-10-09T09:00:00 | BJ9: 1154 | BK9: 1159 | BL9: 1152 | BM9: 1152 | BO9: 2025-10-09T09:00:00 | BP9: 1349 | BQ9: 1368 | BR9: 1334 | BS9: 1348 | BU9: 2025-10-09T09:00:00 | BV9: 2706 | BW9: 2724 | BX9: 2694 | BY9: 2701.5 | CA9: 2025-10-08T12:45:00 | CG9: 2025-10-09T09:00:00 | CH9: 4020 | CI9: 4060 | CJ9: 4020 | CK9: 4060 | CM9: 2025-10-09T09:00:00 | CN9: 911 | CO9: 916 | CP9: 905 | CQ9: 905 | CS9: 2025-10-09T09:00:00 | CT9: 15300 | CU9: 15700 | CV9: 15250 | CW9: 15700 | CY9: 2025-10-09T09:00:00 | CZ9: 1545 | DA9: 1546 | DB9: 1537 | DC9: 1537 | DE9: 2025-10-09T09:00:00 | DF9: 20 | DG9: 20 | DH9: 19 | DI9: 20 | DK9: 2025-10-09T09:00:00 | DL9: 1014 | DM9: 1015 | DN9: 1002 | DO9: 1005 | DQ9: 2025-10-09T09:00:00 | DR9: 1938 | DS9: 1986 | DT9: 1930 | DU9: 1944 | DW9: 2025-10-09T09:00:00 | DX9: 4285 | DY9: 4300 | DZ9: 4210 | EA9: 4250 | EC9: 2025-10-09T09:00:00 | ED9: 1060 | EE9: 1061 | EF9: 1038 | EG9: 1043 | EI9: 2025-10-09T09:00:00 | EJ9: 525 | EK9: 528 | EL9: 525 | EM9: 525 | EO9: 2025-10-09T09:00:00 | EP9: 1825 | EQ9: 1830 | ER9: 1777 | ES9: 1786 | EU9: 2025-10-08T15:30:00 | EV9: 1944 | EW9: 1944 | EX9: 1944 | EY9: 1944 | FA9: 2025-10-09T09:00:00 | FB9: 905 | FC9: 915 | FD9: 899 | FE9: 899 | FG9: 2025-10-09T09:00:00 | FH9: 1555 | FI9: 1580 | FJ9: 1555 | FK9: 1577 | FM9: 2025-10-09T09:00:00 | FN9: 847 | FO9: 856 | FP9: 847 | FQ9: 853 | FS9: 2025-10-09T09:00:00 | FT9: 1269 | FU9: 1269 | FV9: 1259 | FW9: 1261 | FY9: 2025-10-09T09:00:00 | FZ9: 2749 | GA9: 2764.5 | GB9: 2723.5 | GC9: 2754.5 | GE9: 2025-10-09T09:00:00 | GF9: 1053 | GG9: 1053 | GH9: 1041 | GI9: 1045 | GK9: 2025-10-09T09:00:00 | GL9: 3000 | GM9: 3009 | GN9: 2995 | GO9: 3000 | GQ9: 2025-10-09T09:00:00 | GR9: 143 | GS9: 144 | GT9: 142 | GU9: 142 | GW9: 2025-10-09T09:00:00 | GX9: 5850 | GY9: 5990 | GZ9: 5840 | HA9: 5980 | HC9: 2025-10-09T09:00:00 | HD9: 1690 | HE9: 1691 | HF9: 1689 | HG9: 1689 | HI9: 2025-10-09T09:00:00 | HJ9: 534 | HK9: 539 | HL9: 534 | HM9: 537 | HO9: 2025-10-09T09:00:00 | HP9: 745 | HQ9: 747 | HR9: 742 | HS9: 742 | HU9: 2025-10-09T09:00:00 | HV9: 2701 | HW9: 2716 | HX9: 2691 | HY9: 2694 | IA9: 2025-10-09T09:00:00 | IB9: 216 | IC9: 218 | ID9: 215 | IE9: 216 | IG9: 2025-10-09T09:00:00 | IH9: 3035 | II9: 3055 | IJ9: 3015 | IK9: 3045 | IM9: 2025-10-09T09:00:00 | IN9: 2370 | IO9: 2372 | IP9: 2351 | IQ9: 2351 | IS9: 2025-10-09T09:00:00 | IT9: 3630 | IU9: 3705 | IV9: 3630 | IW9: 3655 | IY9: 2025-10-09T09:00:00 | IZ9: 2528 | JA9: 2529 | JB9: 2527 | JC9: 2528 | JE9: 2025-10-08T15:30:00 | JF9: 7030 | JG9: 7030 | JH9: 7030 | JI9: 7030 | JK9: 2025-10-09T09:00:00 | JL9: 3725 | JM9: 3725 | JN9: 3695 | JO9: 3695 | JQ9: 2025-10-09T09:00:00 | JR9: 1118 | JS9: 1120 | JT9: 1106 | JU9: 1110 | JW9: 2025-10-09T09:00:00 | JX9: 890 | JY9: 890 | JZ9: 880 | KA9: 885 | KC9: 2025-10-09T09:00:00 | KD9: 3878 | KE9: 3932 | KF9: 3810 | KG9: 3929 | KI9: 2025-10-09T09:00:00 | KJ9: 346 | KK9: 347 | KL9: 345 | KM9: 346
A10: 2025-10-09T09:15:00 | B10: 747 | C10: 747 | D10: 746 | E10: 746 | G10: 2025-10-09T09:15:00 | H10: 4525 | I10: 4525 | J10: 4410 | K10: 4425 | M10: 2025-10-09T09:15:00 | N10: 2125 | O10: 2140 | P10: 2081 | Q10: 2109 | S10: 2025-10-09T09:15:00 | T10: 1430 | U10: 1468.5 | V10: 1423 | W10: 1432 | Y10: 2025-10-09T09:15:00 | Z10: 3395 | AA10: 3460 | AB10: 3375 | AC10: 3380 | AE10: 2025-10-09T09:00:00 | AF10: 3315 | AG10: 3405 | AH10: 3315 | AI10: 3365 | AK10: 2025-10-09T09:15:00 | AL10: 3360 | AM10: 3395 | AN10: 3360 | AO10: 3370 | AQ10: 2025-10-09T09:15:00 | AR10: 782 | AS10: 783 | AT10: 775 | AU10: 780 | AW10: 2025-10-09T09:15:00 | AX10: 4190 | AY10: 4190 | AZ10: 4185 | BA10: 4185 | BC10: 2025-10-09T09:15:00 | BD10: 455 | BE10: 460 | BF10: 455 | BG10: 460 | BI10: 2025-10-09T09:15:00 | BJ10: 1152 | BK10: 1152 | BL10: 1140 | BM10: 1144 | BO10: 2025-10-09T09:15:00 | BP10: 1348 | BQ10: 1370 | BR10: 1335 | BS10: 1336 | BU10: 2025-10-09T09:15:00 | BV10: 2701.5 | BW10: 2701.5 | BX10: 2671 | BY10: 2686 | CA10: 2025-10-08T13:00:00 | CG10: 2025-10-09T09:15:00 | CH10: 4055 | CI10: 4075 | CJ10: 4055 | CK10: 4070 | CM10: 2025-10-09T09:15:00 | CN10: 906 | CO10: 910 | CP10: 906 | CQ10: 908 | CS10: 2025-10-09T09:15:00 | CT10: 15700 | CU10: 16380 | CV10: 15660 | CW10: 16340 | CY10: 2025-10-09T09:15:00 | CZ10: 1537 | DA10: 1537 | DB10: 1524 | DC10: 1529 | DE10: 2025-10-09T09:15:00 | DF10: 20 | DG10: 20 | DH10: 19 | DI10: 19 | DK10: 2025-10-09T09:15:00 | DL10: 1006 | DM10: 1011 | DN10: 1004 | DO10: 1004 | DQ10: 2025-10-09T09:15:00 | DR10: 1944 | DS10: 1966 | DT10: 1942 | DU10: 1945 | DW10: 2025-10-09T09:15:00 | DX10: 4240 | DY10: 4350 | DZ10: 4240 | EA10: 4290 | EC10: 2025-10-09T09:15:00 | ED10: 1042 | EE10: 1046 | EF10: 1039 | EG10: 1039 | EI10: 2025-10-09T09:15:00 | EJ10: 526 | EK10: 531 | EL10: 526 | EM10: 529 | EO10: 2025-10-09T09:15:00 | EP10: 1785 | EQ10: 1795 | ER10: 1770 | ES10: 1773 | EU10: 2025-10-09T09:00:00 | EV10: 1984 | EW10: 1999 | EX10: 1970 | EY10: 1980 | FA10: 2025-10-09T09:15:00 | FB10: 900 | FC10: 910 | FD10: 899 | FE10: 900 | FG10: 2025-10-09T09:15:00 | FH10: 1576 | FI10: 1576 | FJ10: 1564 | FK10: 1565 | FM10: 2025-10-09T09:15:00 | FN10: 854 | FO10: 858 | FP10: 854 | FQ10: 855 | FS10: 2025-10-09T09:15:00 | FT10: 1260 | FU10: 1279 | FV10: 1260 | FW10: 1265 | FY10: 2025-10-09T09:15:00 | FZ10: 2752.5 | GA10: 2783 | GB10: 2735 | GC10: 2777 | GE10: 2025-10-09T09:15:00 | GF10: 1044 | GG10: 1045 | GH10: 1041 | GI10: 1041 | GK10: 2025-10-09T09:15:00 | GL10: 3000 | GM10: 3008 | GN10: 2997 | GO10: 3006 | GQ10: 2025-10-09T09:15:00 | GR10: 143 | GS10: 143 | GT10: 142 | GU10: 142 | GW10: 2025-10-09T09:15:00 | GX10: 5980 | GY10: 6080 | GZ10: 5970 | HA10: 6050 | HC10: 2025-10-09T09:15:00 | HD10: 1689 | HE10: 1689 | HF10: 1689 | HG10: 1689 | HI10: 2025-10-09T09:15:00 | HJ10: 537 | HK10: 539 | HL10: 535 | HM10: 537 | HO10: 2025-10-09T09:15:00 | HP10: 742 | HQ10: 742 | HR10: 738 | HS10: 738 | HU10: 2025-10-09T09:15:00 | HV10: 2693 | HW10: 2704 | HX10: 2692 | HY10: 2700 | IA10: 2025-10-09T09:15:00 | IB10: 216 | IC10: 217 | ID10: 216 | IE10: 217 | IG10: 2025-10-09T09:15:00 | IH10: 3040 | II10: 3055 | IJ10: 3025 | IK10: 3025 | IM10: 2025-10-09T09:15:00 | IN10: 2350 | IO10: 2355 | IP10: 2350 | IQ10: 2353 | IS10: 2025-10-09T09:15:00 | IT10: 3660 | IU10: 3705 | IV10: 3660 | IW10: 3690 | IY10: 2025-10-09T09:15:00 | IZ10: 2529 | JA10: 2529 | JB10: 2527 | JC10: 2528 | JE10: 2025-10-09T09:00:00 | JF10: 7030 | JG10: 7030 | JH10: 6920 | JI10: 6930 | JK10: 2025-10-09T09:15:00 | JL10: 3690 | JM10: 3690 | JN10: 3685 | JO10: 3685 | JQ10: 2025-10-09T09:15:00 | JR10: 1109 | JS10: 1113 | JT10: 1109 | JU10: 1112 | JW10: 2025-10-09T09:15:00 | JX10: 885 | JY10: 885 | JZ10: 875 | KA10: 876 | KC10: 2025-10-09T09:15:00 | KD10: 3930 | KE10: 3987 | KF10: 3924 | KG10: 3977 | KI10: 2025-10-09T09:15:00 | KJ10: 347 | KK10: 347 | KL10: 345 | KM10: 345
A11: 2025-10-09T09:30:00 | B11: 746 | C11: 746 | D11: 746 | E11: 746 | G11: 2025-10-09T09:30:00 | H11: 4420 | I11: 4440 | J11: 4360 | K11: 4385 | M11: 2025-10-09T09:30:00 | N11: 2109 | O11: 2116 | P11: 2083 | Q11: 2106 | S11: 2025-10-09T09:30:00 | T11: 1433 | U11: 1444.5 | V11: 1431 | W11: 1432.5 | Y11: 2025-10-09T09:30:00 | Z11: 3385 | AA11: 3395 | AB11: 3350 | AC11: 3380 | AE11: 2025-10-09T09:15:00 | AK11: 2025-10-09T09:30:00 | AL11: 3375 | AM11: 3375 | AN11: 3335 | AO11: 3345 | AQ11: 2025-10-09T09:30:00 | AR11: 779 | AS11: 779 | AT11: 777 | AU11: 778 | AW11: 2025-10-09T09:30:00 | AX11: 4180 | AY11: 4185 | AZ11: 4180 | BA11: 4185 | BC11: 2025-10-09T09:30:00 | BD11: 459 | BE11: 463 | BF11: 457 | BG11: 461 | BI11: 2025-10-09T09:30:00 | BJ11: 1146 | BK11: 1154 | BL11: 1146 | BM11: 1149 | BO11: 2025-10-09T09:30:00 | BP11: 1334 | BQ11: 1344 | BR11: 1332 | BS11: 1340 | BU11: 2025-10-09T09:30:00 | BV11: 2686.5 | BW11: 2691.5 | BX11: 2674 | BY11: 2684 | CA11: 2025-10-08T13:15:00 | CG11: 2025-10-09T09:30:00 | CH11: 4065 | CI11: 4065 | CJ11: 4025 | CK11: 4025 | CM11: 2025-10-09T09:30:00 | CN11: 906 | CO11: 909 | CP11: 905 | CQ11: 907 | CS11: 2025-10-09T09:30:00 | CT11: 16340 | CU11: 17020 | CV11: 16330 | CW11: 16780 | CY11: 2025-10-09T09:30:00 | CZ11: 1528 | DA11: 1534 | DB11: 1528 | DC11: 1532 | DE11: 2025-10-09T09:30:00 | DF11: 19 | DG11: 20 | DH11: 19 | DI11: 19 | DK11: 2025-10-09T09:30:00 | DL11: 1003 | DM11: 1003 | DN11: 993 | DO11: 997 | DQ11: 2025-10-09T09:30:00 | DR11: 1945 | DS11: 1948 | DT11: 1930 | DU11: 1936 | DW11: 2025-10-09T09:30:00 | DX11: 4310 | DY11: 4390 | DZ11: 4305 | EA11: 4385 | EC11: 2025-10-09T09:30:00 | ED11: 1040 | EE11: 1042 | EF11: 1035 | EG11: 1041 | EI11: 2025-10-09T09:30:00 | EJ11: 530 | EK11: 534 | EL11: 528 | EM11: 533 | EO11: 2025-10-09T09:30:00 | EP11: 1774 | EQ11: 1779 | ER11: 1773 | ES11: 1776 | EU11: 2025-10-09T09:15:00 | EV11: 1980 | EW11: 1989 | EX11: 1978 | EY11: 1982 | FA11: 2025-10-09T09:30:00 | FB11: 900 | FC11: 907 | FD11: 899 | FE11: 905 | FG11: 2025-10-09T09:30:00 | FH11: 1567 | FI11: 1577 | FJ11: 1563 | FK11: 1575 | FM11: 2025-10-09T09:30:00 | FN11: 854 | FO11: 856 | FP11: 851 | FQ11: 856 | FS11: 2025-10-09T09:30:00 | FT11: 1262 | FU11: 1262 | FV11: 1260 | FW11: 1261 | FY11: 2025-10-09T09:30:00 | FZ11: 2775.5 | GA11: 2777.5 | GB11: 2757 | GC11: 2761.5 | GE11: 2025-10-09T09:30:00 | GF11: 1041 | GG11: 1041 | GH11: 1037 | GI11: 1037 | GK11: 2025-10-09T09:30:00 | GL11: 3004 | GM11: 3005 | GN11: 2999 | GO11: 3002 | GQ11: 2025-10-09T09:30:00 | GR11: 142 | GS11: 143 | GT11: 142 | GU11: 143 | GW11: 2025-10-09T09:30:00 | GX11: 6050 | GY11: 6110 | GZ11: 6040 | HA11: 6100 | HC11: 2025-10-09T09:30:00 | HD11: 1689 | HE11: 1689 | HF11: 1689 | HG11: 1689 | HI11: 2025-10-09T09:30:00 | HJ11: 536 | HK11: 536 | HL11: 529 | HM11: 534 | HO11: 2025-10-09T09:30:00 | HP11: 738 | HQ11: 738 | HR11: 730 | HS11: 730 | HU11: 2025-10-09T09:30:00 | HV11: 2700 | HW11: 2700 | HX11: 2684 | HY11: 2692 | IA11: 2025-10-09T09:30:00 | IB11: 217 | IC11: 217 | ID11: 216 | IE11: 217 | IG11: 2025-10-09T09:30:00 | IH11: 3025 | II11: 3040 | IJ11: 3025 | IK11: 3030 | IM11: 2025-10-09T09:30:00 | IN11: 2351 | IO11: 2351 | IP11: 2341 | IQ11: 2341 | IS11: 2025-10-09T09:30:00 | IT11: 3685 | IU11: 3685 | IV11: 3665 | IW11: 3665 | IY11: 2025-10-09T09:30:00 | IZ11: 2527 | JA11: 2529 | JB11: 2526 | JC11: 2528 | JE11: 2025-10-09T09:15:00 | JF11: 6930 | JG11: 6950 | JH11: 6900 | JI11: 6950 | JK11: 2025-10-09T09:30:00 | JL11: 3690 | JM11: 3690 | JN11: 3680 | JO11: 3690 | JQ11: 2025-10-09T09:30:00 | JR11: 1111 | JS11: 1111 | JT11: 1109 | JU11: 1109 | JW11: 2025-10-09T09:30:00 | JX11: 876 | JY11: 877 | JZ11: 869 | KA11: 871 | KC11: 2025-10-09T09:30:00 | KD11: 3979 | KE11: 3995 | KF11: 3940 | KG11: 3993 | KI11: 2025-10-09T09:30:00 | KJ11: 345 | KK11: 346 | KL11: 345 | KM11: 346
A12: 2025-10-09T09:45:00 | B12: 746 | C12: 746 | D12: 746 | E12: 746 | G12: 2025-10-09T09:45:00 | H12: 4385 | I12: 4430 | J12: 4380 | K12: 4385 | M12: 2025-10-09T09:45:00 | N12: 2106 | O12: 2110 | P12: 2091 | Q12: 2091 | S12: 2025-10-09T09:45:00 | T12: 1433 | U12: 1444.5 | V12: 1429 | W12: 1439.5 | Y12: 2025-10-09T09:45:00 | Z12: 3375 | AA12: 3405 | AB12: 3360 | AC12: 3390 | AE12: 2025-10-09T09:30:00 | AF12: 3370 | AG12: 3370 | AH12: 3370 | AI12: 3370 | AK12: 2025-10-09T09:45:00 | AL12: 3335 | AM12: 3355 | AN12: 3335 | AO12: 3355 | AQ12: 2025-10-09T09:45:00 | AR12: 777 | AS12: 779 | AT12: 777 | AU12: 779 | AW12: 2025-10-09T09:45:00 | AX12: 4180 | AY12: 4180 | AZ12: 4175 | BA12: 4175 | BC12: 2025-10-09T09:45:00 | BD12: 461 | BE12: 463 | BF12: 460 | BG12: 461 | BI12: 2025-10-09T09:45:00 | BJ12: 1149 | BK12: 1152 | BL12: 1148 | BM12: 1152 | BO12: 2025-10-09T09:45:00 | BP12: 1341 | BQ12: 1349 | BR12: 1339 | BS12: 1340 | BU12: 2025-10-09T09:45:00 | BV12: 2684.5 | BW12: 2689.5 | BX12: 2666 | BY12: 2685.5 | CA12: 2025-10-08T13:30:00 | CG12: 2025-10-09T09:45:00 | CH12: 4015 | CI12: 4015 | CJ12: 4015 | CK12: 4015 | CM12: 2025-10-09T09:45:00 | CN12: 907 | CO12: 908 | CP12: 906 | CQ12: 907 | CS12: 2025-10-09T09:45:00 | CT12: 16760 | CU12: 17160 | CV12: 16750 | CW12: 17070 | CY12: 2025-10-09T09:45:00 | CZ12: 1533 | DA12: 1533 | DB12: 1530 | DC12: 1533 | DE12: 2025-10-09T09:45:00 | DF12: 19 | DG12: 20 | DH12: 19 | DI12: 20 | DK12: 2025-10-09T09:45:00 | DL12: 995 | DM12: 1000 | DN12: 995 | DO12: 999 | DQ12: 2025-10-09T09:45:00 | DR12: 1935 | DS12: 1937 | DT12: 1927 | DU12: 1930 | DW12: 2025-10-09T09:45:00 | DX12: 4385 | DY12: 4435 | DZ12: 4360 | EA12: 4360 | EC12: 2025-10-09T09:45:00 | ED12: 1040 | EE12: 1044 | EF12: 1034 | EG12: 1035 | EI12: 2025-10-09T09:45:00 | EJ12: 534 | EK12: 534 | EL12: 532 | EM12: 532 | EO12: 2025-10-09T09:45:00 | EP12: 1776 | EQ12: 1779 | ER12: 1771 | ES12: 1777 | EU12: 2025-10-09T09:30:00 | EV12: 1983 | EW12: 1983 | EX12: 1978 | EY12: 1978 | FA12: 2025-10-09T09:45:00 | FB12: 905 | FC12: 911 | FD12: 903 | FE12: 904 | FG12: 2025-10-09T09:45:00 | FH12: 1574 | FI12: 1574 | FJ12: 1561 | FK12: 1561 | FM12: 2025-10-09T09:45:00 | FN12: 854 | FO12: 854 | FP12: 853 | FQ12: 854 | FS12: 2025-10-09T09:45:00 | FT12: 1261 | FU12: 1262 | FV12: 1257 | FW12: 1258 | FY12: 2025-10-09T09:45:00 | FZ12: 2761 | GA12: 2770.5 | GB12: 2757 | GC12: 2760.5 | GE12: 2025-10-09T09:45:00 | GF12: 1038 | GG12: 1043 | GH12: 1038 | GI12: 1043 | GK12: 2025-10-09T09:45:00 | GL12: 3002 | GM12: 3002 | GN12: 2995 | GO12: 3000 | GQ12: 2025-10-09T09:45:00 | GR12: 142 | GS12: 143 | GT12: 142 | GU12: 142 | GW12: 2025-10-09T09:45:00 | GX12: 6100 | GY12: 6130 | GZ12: 6090 | HA12: 6130 | HC12: 2025-10-09T09:45:00 | HD12: 1689 | HE12: 1689 | HF12: 1689 | HG12: 1689 | HI12: 2025-10-09T09:45:00 | HJ12: 533 | HK12: 534 | HL12: 532 | HM12: 534 | HO12: 2025-10-09T09:45:00 | HP12: 731 | HQ12: 732 | HR12: 728 | HS12: 730 | HU12: 2025-10-09T09:45:00 | HV12: 2691 | HW12: 2710 | HX12: 2691 | HY12: 2710 | IA12: 2025-10-09T09:45:00 | IB12: 217 | IC12: 217 | ID12: 216 | IE12: 216 | IG12: 2025-10-09T09:45:00 | IH12: 3030 | II12: 3030 | IJ12: 3020 | IK12: 3020 | IM12: 2025-10-09T09:45:00 | IN12: 2340 | IO12: 2344 | IP12: 2339 | IQ12: 2344 | IS12: 2025-10-09T09:45:00 | IT12: 3665 | IU12: 3665 | IV12: 3655 | IW12: 3655 | IY12: 2025-10-09T09:45:00 | IZ12: 2528 | JA12: 2528 | JB12: 2527 | JC12: 2527 | JE12: 2025-10-09T09:30:00 | JF12: 6950 | JG12: 6950 | JH12: 6930 | JI12: 6930 | JK12: 2025-10-09T09:45:00 | JL12: 3695 | JM12: 3700 | JN12: 3695 | JO12: 3700 | JQ12: 2025-10-09T09:45:00 | JR12: 1109 | JS12: 1112 | JT12: 1109 | JU12: 1112 | JW12: 2025-10-09T09:45:00 | JX12: 870 | JY12: 875 | JZ12: 869 | KA12: 871 | KC12: 2025-10-09T09:45:00 | KD12: 3993 | KE12: 4048 | KF12: 3989 | KG12: 4040 | KI12: 2025-10-09T09:45:00 | KJ12: 345 | KK12: 349 | KL12: 345 | KM12: 348
A13: 2025-10-09T10:00:00 | B13: 746 | C13: 748 | D13: 746 | E13: 748 | G13: 2025-10-09T10:00:00 | H13: 4390 | I13: 4390 | J13: 4350 | K13: 4365 | M13: 2025-10-09T10:00:00 | N13: 2091 | O13: 2098 | P13: 2086 | Q13: 2093 | S13: 2025-10-09T10:00:00 | T13: 1438 | U13: 1450.5 | V13: 1431.5 | W13: 1444.5 | Y13: 2025-10-09T10:00:00 | Z13: 3385 | AA13: 3410 | AB13: 3380 | AC13: 3405 | AE13: 2025-10-09T09:45:00 | AF13: 3380 | AG13: 3385 | AH13: 3380 | AI13: 3385 | AK13: 2025-10-09T10:00:00 | AL13: 3365 | AM13: 3380 | AN13: 3360 | AO13: 3380 | AQ13: 2025-10-09T10:00:00 | AR13: 778 | AS13: 780 | AT13: 778 | AU13: 780 | AW13: 2025-10-09T10:00:00 | AX13: 4175 | AY13: 4175 | AZ13: 4155 | BA13: 4165 | BC13: 2025-10-09T10:00:00 | BD13: 462 | BE13: 463 | BF13: 461 | BG13: 463 | BI13: 2025-10-09T10:00:00 | BJ13: 1152 | BK13: 1156 | BL13: 1149 | BM13: 1154 | BO13: 2025-10-09T10:00:00 | BP13: 1339 | BQ13: 1347 | BR13: 1337 | BS13: 1345 | BU13: 2025-10-09T10:00:00 | BV13: 2685 | BW13: 2691.5 | BX13: 2666 | BY13: 2676.5 | CA13: 2025-10-08T13:45:00 | CG13: 2025-10-09T10:00:00 | CH13: 4015 | CI13: 4025 | CJ13: 4015 | CK13: 4025 | CM13: 2025-10-09T10:00:00 | CN13: 908 | CO13: 909 | CP13: 908 | CQ13: 909 | CS13: 2025-10-09T10:00:00 | CT13: 17060 | CU13: 17210 | CV13: 16860 | CW13: 17140 | CY13: 2025-10-09T10:00:00 | CZ13: 1534 | DA13: 1535 | DB13: 1530 | DC13: 1535 | DE13: 2025-10-09T10:00:00 | DF13: 19 | DG13: 20 | DH13: 19 | DI13: 20 | DK13: 2025-10-09T10:00:00 | DL13: 998 | DM13: 1002 | DN13: 997 | DO13: 1002 | DQ13: 2025-10-09T10:00:00 | DR13: 1929 | DS13: 1939 | DT13: 1922 | DU13: 1936 | DW13: 2025-10-09T10:00:00 | DX13: 4365 | DY13: 4365 | DZ13: 4300 | EA13: 4325 | EC13: 2025-10-09T10:00:00 | ED13: 1035 | EE13: 1040 | EF13: 1033 | EG13: 1040 | EI13: 2025-10-09T10:00:00 | EJ13: 532 | EK13: 536 | EL13: 532 | EM13: 536 | EO13: 2025-10-09T10:00:00 | EP13: 1776 | EQ13: 1778 | ER13: 1766 | ES13: 1774 | EU13: 2025-10-09T09:45:00 | EV13: 1980 | EW13: 1983 | EX13: 1979 | EY13: 1983 | FA13: 2025-10-09T10:00:00 | FB13: 904 | FC13: 910 | FD13: 903 | FE13: 910 | FG13: 2025-10-09T10:00:00 | FH13: 1561 | FI13: 1566 | FJ13: 1560 | FK13: 1566 | FM13: 2025-10-09T10:00:00 | FN13: 854 | FO13: 857 | FP13: 854 | FQ13: 857 | FS13: 2025-10-09T10:00:00 | FT13: 1260 | FU13: 1264 | FV13: 1260 | FW13: 1264 | FY13: 2025-10-09T10:00:00 | FZ13: 2761.5 | GA13: 2773.5 | GB13: 2760.5 | GC13: 2766 | GE13: 2025-10-09T10:00:00 | GF13: 1043 | GG13: 1043 | GH13: 1042 | GI13: 1042 | GK13: 2025-10-09T10:00:00 | GL13: 3001 | GM13: 3005 | GN13: 3001 | GO13: 3004 | GQ13: 2025-10-09T10:00:00 | GR13: 143 | GS13: 143 | GT13: 142 | GU13: 142 | GW13: 2025-10-09T10:00:00 | GX13: 6120 | GY13: 6120 | GZ13: 6080 | HA13: 6120 | HC13: 2025-10-09T10:00:00 | HD13: 1690 | HE13: 1690 | HF13: 1690 | HG13: 1690 | HI13: 2025-10-09T10:00:00 | HJ13: 534 | HK13: 534 | HL13: 533 | HM13: 534 | HO13: 2025-10-09T10:00:00 | HP13: 730 | HQ13: 730 | HR13: 727 | HS13: 730 | HU13: 2025-10-09T10:00:00 | HV13: 2712 | HW13: 2724 | HX13: 2707 | HY13: 2724 | IA13: 2025-10-09T10:00:00 | IB13: 217 | IC13: 217 | ID13: 217 | IE13: 217 | IG13: 2025-10-09T10:00:00 | IH13: 3020 | II13: 3030 | IJ13: 3020 | IK13: 3030 | IM13: 2025-10-09T10:00:00 | IN13: 2342 | IO13: 2343 | IP13: 2340 | IQ13: 2343 | IS13: 2025-10-09T10:00:00 | IT13: 3655 | IU13: 3665 | IV13: 3650 | IW13: 3660 | IY13: 2025-10-09T10:00:00 | IZ13: 2528 | JA13: 2528 | JB13: 2527 | JC13: 2528 | JE13: 2025-10-09T09:45:00 | JF13: 6920 | JG13: 6930 | JH13: 6910 | JI13: 6930 | JK13: 2025-10-09T10:00:00 | JL13: 3705 | JM13: 3720 | JN13: 3700 | JO13: 3710 | JQ13: 2025-10-09T10:00:00 | JR13: 1113 | JS13: 1113 | JT13: 1109 | JU13: 1112 | JW13: 2025-10-09T10:00:00 | JX13: 872 | JY13: 877 | JZ13: 871 | KA13: 875 | KC13: 2025-10-09T10:00:00 | KD13: 4039 | KE13: 4060 | KF13: 4028 | KG13: 4043 | KI13: 2025-10-09T10:00:00 | KJ13: 348 | KK13: 348 | KL13: 346 | KM13: 346
A14: 2025-10-09T10:15:00 | B14: 749 | C14: 750 | D14: 749 | E14: 750 | G14: 2025-10-09T10:15:00 | H14: 4360 | I14: 4360 | J14: 4330 | K14: 4340 | M14: 2025-10-09T10:15:00 | N14: 2092 | O14: 2100 | P14: 2090 | Q14: 2095 | S14: 2025-10-09T10:15:00 | T14: 1445 | U14: 1448 | V14: 1436.5 | W14: 1436.5 | Y14: 2025-10-09T10:15:00 | Z14: 3405 | AA14: 3410 | AB14: 3360 | AC14: 3375 | AE14: 2025-10-09T10:00:00 | AF14: 3375 | AG14: 3385 | AH14: 3370 | AI14: 3385 | AK14: 2025-10-09T10:15:00 | AL14: 3375 | AM14: 3375 | AN14: 3355 | AO14: 3355 | AQ14: 2025-10-09T10:15:00 | AR14: 782 | AS14: 783 | AT14: 781 | AU14: 781 | AW14: 2025-10-09T10:15:00 | AX14: 4165 | AY14: 4170 | AZ14: 4165 | BA14: 4165 | BC14: 2025-10-09T10:15:00 | BD14: 463 | BE14: 468 | BF14: 463 | BG14: 467 | BI14: 2025-10-09T10:15:00 | BO14: 2025-10-09T10:15:00 | BP14: 1344 | BQ14: 1348 | BR14: 1339 | BS14: 1340 | BU14: 2025-10-09T10:15:00 | BV14: 2676 | BW14: 2681 | BX14: 2672 | BY14: 2674.5 | CA14: 2025-10-08T14:00:00 | CG14: 2025-10-09T10:15:00 | CH14: 4025 | CI14: 4065 | CJ14: 4025 | CK14: 4065 | CM14: 2025-10-09T10:15:00 | CN14: 909 | CO14: 909 | CP14: 909 | CQ14: 909 | CS14: 2025-10-09T10:15:00 | CT14: 17140 | CU14: 17150 | CV14: 16860 | CW14: 16970 | CY14: 2025-10-09T10:15:00 | CZ14: 1535 | DA14: 1536 | DB14: 1533 | DC14: 1536 | DE14: 2025-10-09T10:15:00 | DF14: 20 | DG14: 20 | DH14: 20 | DI14: 20 | DK14: 2025-10-09T10:15:00 | DL14: 1002 | DM14: 1003 | DN14: 1000 | DO14: 1000 | DQ14: 2025-10-09T10:15:00 | DR14: 1935 | DS14: 1935 | DT14: 1920 | DU14: 1920 | DW14: 2025-10-09T10:15:00 | DX14: 4320 | DY14: 4325 | DZ14: 4270 | EA14: 4325 | EC14: 2025-10-09T10:15:00 | ED14: 1040 | EE14: 1044 | EF14: 1040 | EG14: 1041 | EI14: 2025-10-09T10:15:00 | EJ14: 535 | EK14: 535 | EL14: 534 | EM14: 534 | EO14: 2025-10-09T10:15:00 | EP14: 1775 | EQ14: 1783 | ER14: 1772 | ES14: 1779 | EU14: 2025-10-09T10:00:00 | EV14: 1981 | EW14: 1989 | EX14: 1981 | EY14: 1987 | FA14: 2025-10-09T10:15:00 | FB14: 909 | FC14: 910 | FD14: 905 | FE14: 907 | FG14: 2025-10-09T10:15:00 | FH14: 1567 | FI14: 1568 | FJ14: 1564 | FK14: 1564 | FM14: 2025-10-09T10:15:00 | FN14: 857 | FO14: 859 | FP14: 857 | FQ14: 857 | FS14: 2025-10-09T10:15:00 | FT14: 1265 | FU14: 1266 | FV14: 1265 | FW14: 1266 | FY14: 2025-10-09T10:15:00 | FZ14: 2765.5 | GA14: 2777 | GB14: 2764 | GC14: 2770 | GE14: 2025-10-09T10:15:00 | GF14: 1041 | GG14: 1043 | GH14: 1041 | GI14: 1041 | GK14: 2025-10-09T10:15:00 | GL14: 3003 | GM14: 3004 | GN14: 3000 | GO14: 3000 | GQ14: 2025-10-09T10:15:00 | GR14: 143 | GS14: 143 | GT14: 142 | GU14: 143 | GW14: 2025-10-09T10:15:00 | GX14: 6120 | GY14: 6130 | GZ14: 6080 | HA14: 6080 | HC14: 2025-10-09T10:15:00 | HD14: 1690 | HE14: 1690 | HF14: 1690 | HG14: 1690 | HI14: 2025-10-09T10:15:00 | HJ14: 534 | HK14: 535 | HL14: 534 | HM14: 535 | HO14: 2025-10-09T10:15:00 | HP14: 729 | HQ14: 730 | HR14: 728 | HS14: 728 | HU14: 2025-10-09T10:15:00 | HV14: 2724 | HW14: 2727 | HX14: 2722 | HY14: 2725 | IA14: 2025-10-09T10:15:00 | IB14: 217 | IC14: 217 | ID14: 216 | IE14: 217 | IG14: 2025-10-09T10:15:00 | IH14: 3030 | II14: 3035 | IJ14: 3025 | IK14: 3025 | IM14: 2025-10-09T10:15:00 | IN14: 2343 | IO14: 2343 | IP14: 2341 | IQ14: 2343 | IS14: 2025-10-09T10:15:00 | IT14: 3660 | IU14: 3675 | IV14: 3660 | IW14: 3665 | IY14: 2025-10-09T10:15:00 | IZ14: 2527 | JA14: 2528 | JB14: 2527 | JC14: 2528 | JE14: 2025-10-09T10:00:00 | JF14: 6920 | JG14: 6930 | JH14: 6920 | JI14: 6930 | JK14: 2025-10-09T10:15:00 | JQ14: 2025-10-09T10:15:00 | JR14: 1112 | JS14: 1113 | JT14: 1111 | JU14: 1111 | JW14: 2025-10-09T10:15:00 | JX14: 875 | JY14: 880 | JZ14: 874 | KA14: 877 | KC14: 2025-10-09T10:15:00 | KD14: 4043 | KE14: 4065 | KF14: 4038 | KG14: 4059 | KI14: 2025-10-09T10:15:00 | KJ14: 346 | KK14: 347 | KL14: 345 | KM14: 347
A15: 2025-10-09T10:30:00 | B15: 749 | C15: 749 | D15: 749 | E15: 749 | G15: 2025-10-09T10:30:00 | H15: 4340 | I15: 4360 | J15: 4335 | K15: 4350 | M15: 2025-10-09T10:30:00 | N15: 2092 | O15: 2106 | P15: 2092 | Q15: 2098 | S15: 2025-10-09T10:30:00 | T15: 1436 | U15: 1437.5 | V15: 1415 | W15: 1423 | Y15: 2025-10-09T10:30:00 | Z15: 3375 | AA15: 3410 | AB15: 3350 | AC15: 3405 | AE15: 2025-10-09T10:15:00 | AF15: 3385 | AG15: 3385 | AH15: 3385 | AI15: 3385 | AK15: 2025-10-09T10:30:00 | AL15: 3360 | AM15: 3365 | AN15: 3360 | AO15: 3360 | AQ15: 2025-10-09T10:30:00 | AR15: 781 | AS15: 781 | AT15: 780 | AU15: 780 | AW15: 2025-10-09T10:30:00 | AX15: 4160 | AY15: 4170 | AZ15: 4160 | BA15: 4170 | BC15: 2025-10-09T10:30:00 | BD15: 466 | BE15: 466 | BF15: 464 | BG15: 465 | BI15: 2025-10-09T10:30:00 | BJ15: 1154 | BK15: 1154 | BL15: 1154 | BM15: 1154 | BO15: 2025-10-09T10:30:00 | BP15: 1339 | BQ15: 1348 | BR15: 1336 | BS15: 1344 | BU15: 2025-10-09T10:30:00 | BV15: 2674 | BW15: 2682.5 | BX15: 2662.5 | BY15: 2667.5 | CA15: 2025-10-08T14:15:00 | CG15: 2025-10-09T10:30:00 | CH15: 4055 | CI15: 4055 | CJ15: 4040 | CK15: 4040 | CM15: 2025-10-09T10:30:00 | CN15: 909 | CO15: 909 | CP15: 909 | CQ15: 909 | CS15: 2025-10-09T10:30:00 | CT15: 16970 | CU15: 17070 | CV15: 16930 | CW15: 17010 | CY15: 2025-10-09T10:30:00 | CZ15: 1535 | DA15: 1537 | DB15: 1534 | DC15: 1535 | DE15: 2025-10-09T10:30:00 | DF15: 20 | DG15: 20 | DH15: 19 | DI15: 20 | DK15: 2025-10-09T10:30:00 | DL15: 999 | DM15: 1000 | DN15: 998 | DO15: 999 | DQ15: 2025-10-09T10:30:00 | DR15: 1919 | DS15: 1928 | DT15: 1917 | DU15: 1926 | DW15: 2025-10-09T10:30:00 | DX15: 4330 | DY15: 4340 | DZ15: 4315 | EA15: 4320 | EC15: 2025-10-09T10:30:00 | ED15: 1040 | EE15: 1041 | EF15: 1038 | EG15: 1039 | EI15: 2025-10-09T10:30:00 | EJ15: 534 | EK15: 534 | EL15: 533 | EM15: 533 | EO15: 2025-10-09T10:30:00 | EP15: 1776 | EQ15: 1793 | ER15: 1775 | ES15: 1781 | EU15: 2025-10-09T10:15:00 | EV15: 1988 | EW15: 1988 | EX15: 1985 | EY15: 1987 | FA15: 2025-10-09T10:30:00 | FB15: 907 | FC15: 911 | FD15: 907 | FE15: 908 | FG15: 2025-10-09T10:30:00 | FH15: 1565 | FI15: 1566 | FJ15: 1561 | FK15: 1563 | FM15: 2025-10-09T10:30:00 | FN15: 858 | FO15: 858 | FP15: 855 | FQ15: 858 | FS15: 2025-10-09T10:30:00 | FT15: 1265 | FU15: 1269 | FV15: 1264 | FW15: 1269 | FY15: 2025-10-09T10:30:00 | FZ15: 2772 | GA15: 2778.5 | GB15: 2770.5 | GC15: 2778.5 | GE15: 2025-10-09T10:30:00 | GF15: 1042 | GG15: 1043 | GH15: 1042 | GI15: 1043 | GK15: 2025-10-09T10:30:00 | GL15: 3000 | GM15: 3003 | GN15: 3000 | GO15: 3002 | GQ15: 2025-10-09T10:30:00 | GR15: 143 | GS15: 143 | GT15: 143 | GU15: 143 | GW15: 2025-10-09T10:30:00 | GX15: 6090 | GY15: 6100 | GZ15: 6040 | HA15: 6050 | HC15: 2025-10-09T10:30:00 | HD15: 1689 | HE15: 1689 | HF15: 1689 | HG15: 1689 | HI15: 2025-10-09T10:30:00 | HJ15: 535 | HK15: 535 | HL15: 533 | HM15: 534 | HO15: 2025-10-09T10:30:00 | HP15: 727 | HQ15: 728 | HR15: 724 | HS15: 724 | HU15: 2025-10-09T10:30:00 | HV15: 2725 | HW15: 2731 | HX15: 2720 | HY15: 2723 | IA15: 2025-10-09T10:30:00 | IB15: 217 | IC15: 217 | ID15: 216 | IE15: 217 | IG15: 2025-10-09T10:30:00 | IH15: 3020 | II15: 3030 | IJ15: 3020 | IK15: 3030 | IM15: 2025-10-09T10:30:00 | IN15: 2343 | IO15: 2343 | IP15: 2340 | IQ15: 2341 | IS15: 2025-10-09T10:30:00 | IT15: 3665 | IU15: 3665 | IV15: 3650 | IW15: 3655 | IY15: 2025-10-09T10:30:00 | IZ15: 2527 | JA15: 2528 | JB15: 2527 | JC15: 2527 | JE15: 2025-10-09T10:15:00 | JF15: 6930 | JG15: 6940 | JH15: 6930 | JI15: 6930 | JK15: 2025-10-09T10:30:00 | JQ15: 2025-10-09T10:30:00 | JR15: 1111 | JS15: 1112 | JT15: 1110 | JU15: 1110 | JW15: 2025-10-09T10:30:00 | JX15: 876 | JY15: 877 | JZ15: 874 | KA15: 877 | KC15: 2025-10-09T10:30:00 | KD15: 4060 | KE15: 4062 | KF15: 4039 | KG15: 4050 | KI15: 2025-10-09T10:30:00 | KJ15: 346 | KK15: 347 | KL15: 346 | KM15: 346
A16: 2025-10-09T10:45:00 | B16: 748 | C16: 748 | D16: 748 | E16: 748 | G16: 2025-10-09T10:45:00 | H16: 4345 | I16: 4350 | J16: 4305 | K16: 4345 | M16: 2025-10-09T10:45:00 | N16: 2102 | O16: 2106 | P16: 2093 | Q16: 2093 | S16: 2025-10-09T10:45:00 | T16: 1422.5 | U16: 1422.5 | V16: 1416 | W16: 1419.5 | Y16: 2025-10-09T10:45:00 | Z16: 3405 | AA16: 3405 | AB16: 3360 | AC16: 3375 | AE16: 2025-10-09T10:30:00 | AF16: 3385 | AG16: 3390 | AH16: 3385 | AI16: 3390 | AK16: 2025-10-09T10:45:00 | AL16: 3360 | AM16: 3365 | AN16: 3360 | AO16: 3365 | AQ16: 2025-10-09T10:45:00 | AR16: 781 | AS16: 782 | AT16: 780 | AU16: 780 | AW16: 2025-10-09T10:45:00 | AX16: 4165 | AY16: 4170 | AZ16: 4165 | BA16: 4170 | BC16: 2025-10-09T10:45:00 | BD16: 464 | BE16: 466 | BF16: 463 | BG16: 466 | BI16: 2025-10-09T10:45:00 | BJ16: 1154 | BK16: 1154 | BL16: 1154 | BM16: 1154 | BO16: 2025-10-09T10:45:00 | BP16: 1343 | BQ16: 1353 | BR16: 1343 | BS16: 1347 | BU16: 2025-10-09T10:45:00 | BV16: 2667 | BW16: 2679.5 | BX16: 2665.5 | BY16: 2678.5 | CA16: 2025-10-08T14:30:00 | CB16: 5245 | CC16: 5245 | CD16: 5245 | CE16: 5245 | CG16: 2025-10-09T10:45:00 | CH16: 4035 | CI16: 4035 | CJ16: 4035 | CK16: 4035 | CM16: 2025-10-09T10:45:00 | CS16: 2025-10-09T10:45:00 | CT16: 17030 | CU16: 17160 | CV16: 16940 | CW16: 17150 | CY16: 2025-10-09T10:45:00 | CZ16: 1536 | DA16: 1540 | DB16: 1536 | DC16: 1539 | DE16: 2025-10-09T10:45:00 | DF16: 20 | DG16: 20 | DH16: 19 | DI16: 20 | DK16: 2025-10-09T10:45:00 | DL16: 999 | DM16: 1000 | DN16: 998 | DO16: 1000 | DQ16: 2025-10-09T10:45:00 | DR16: 1928 | DS16: 1928 | DT16: 1913 | DU16: 1918 | DW16: 2025-10-09T10:45:00 | DX16: 4320 | DY16: 4340 | DZ16: 4315 | EA16: 4330 | EC16: 2025-10-09T10:45:00 | ED16: 1039 | EE16: 1042 | EF16: 1038 | EG16: 1038 | EI16: 2025-10-09T10:45:00 | EJ16: 535 | EK16: 535 | EL16: 534 | EM16: 535 | EO16: 2025-10-09T10:45:00 | EP16: 1780 | EQ16: 1784 | ER16: 1769 | ES16: 1772 | EU16: 2025-10-09T10:30:00 | EV16: 1987 | EW16: 1992 | EX16: 1986 | EY16: 1987 | FA16: 2025-10-09T10:45:00 | FB16: 910 | FC16: 913 | FD16: 910 | FE16: 910 | FG16: 2025-10-09T10:45:00 | FH16: 1564 | FI16: 1566 | FJ16: 1556 | FK16: 1559 | FM16: 2025-10-09T10:45:00 | FN16: 858 | FO16: 858 | FP16: 858 | FQ16: 858 | FS16: 2025-10-09T10:45:00 | FT16: 1270 | FU16: 1272 | FV16: 1270 | FW16: 1270 | FY16: 2025-10-09T10:45:00 | FZ16: 2778 | GA16: 2781.5 | GB16: 2770.5 | GC16: 2775.5 | GE16: 2025-10-09T10:45:00 | GK16: 2025-10-09T10:45:00 | GL16: 3002 | GM16: 3004 | GN16: 2999 | GO16: 2999.5 | GQ16: 2025-10-09T10:45:00 | GR16: 143 | GS16: 143 | GT16: 142 | GU16: 143 | GW16: 2025-10-09T10:45:00 | GX16: 6040 | GY16: 6050 | GZ16: 5990 | HA16: 6020 | HC16: 2025-10-09T10:45:00 | HD16: 1689 | HE16: 1691 | HF16: 1689 | HG16: 1691 | HI16: 2025-10-09T10:45:00 | HJ16: 533 | HK16: 534 | HL16: 533 | HM16: 533 | HO16: 2025-10-09T10:45:00 | HP16: 724 | HQ16: 726 | HR16: 724 | HS16: 726 | HU16: 2025-10-09T10:45:00 | HV16: 2724 | HW16: 2728 | HX16: 2724 | HY16: 2727 | IA16: 2025-10-09T10:45:00 | IB16: 217 | IC16: 217 | ID16: 216 | IE16: 216 | IG16: 2025-10-09T10:45:00 | IH16: 3030 | II16: 3035 | IJ16: 3030 | IK16: 3035 | IM16: 2025-10-09T10:45:00 | IN16: 2341 | IO16: 2343 | IP16: 2341 | IQ16: 2343 | IS16: 2025-10-09T10:45:00 | IT16: 3655 | IU16: 3675 | IV16: 3655 | IW16: 3675 | IY16: 2025-10-09T10:45:00 | IZ16: 2528 | JA16: 2528 | JB16: 2527 | JC16: 2527 | JE16: 2025-10-09T10:30:00 | JF16: 6930 | JG16: 6930 | JH16: 6910 | JI16: 6910 | JK16: 2025-10-09T10:45:00 | JL16: 3705 | JM16: 3710 | JN16: 3700 | JO16: 3700 | JQ16: 2025-10-09T10:45:00 | JR16: 1111 | JS16: 1111 | JT16: 1109 | JU16: 1109 | JW16: 2025-10-09T10:45:00 | JX16: 878 | JY16: 880 | JZ16: 877 | KA16: 878 | KC16: 2025-10-09T10:45:00 | KD16: 4049 | KE16: 4051 | KF16: 3996 | KG16: 4001 | KI16: 2025-10-09T10:45:00 | KJ16: 346 | KK16: 347 | KL16: 346 | KM16: 346
A17: 2025-10-09T11:00:00 | B17: 748 | C17: 749 | D17: 748 | E17: 749 | G17: 2025-10-09T11:00:00 | H17: 4345 | I17: 4350 | J17: 4335 | K17: 4345 | M17: 2025-10-09T11:00:00 | N17: 2091 | O17: 2096 | P17: 2088 | Q17: 2088 | S17: 2025-10-09T11:00:00 | T17: 1419 | U17: 1426.5 | V17: 1415 | W17: 1416 | Y17: 2025-10-09T11:00:00 | Z17: 3370 | AA17: 3390 | AB17: 3355 | AC17: 3380 | AE17: 2025-10-09T10:45:00 | AK17: 2025-10-09T11:00:00 | AL17: 3365 | AM17: 3365 | AN17: 3345 | AO17: 3345 | AQ17: 2025-10-09T11:00:00 | AR17: 779 | AS17: 779 | AT17: 779 | AU17: 779 | AW17: 2025-10-09T11:00:00 | AX17: 4175 | AY17: 4175 | AZ17: 4175 | BA17: 4175 | BC17: 2025-10-09T11:00:00 | BD17: 466 | BE17: 467 | BF17: 466 | BG17: 466 | BI17: 2025-10-09T11:00:00 | BJ17: 1156 | BK17: 1156 | BL17: 1156 | BM17: 1156 | BO17: 2025-10-09T11:00:00 | BP17: 1348 | BQ17: 1349 | BR17: 1338 | BS17: 1342 | BU17: 2025-10-09T11:00:00 | BV17: 2679 | BW17: 2679 | BX17: 2666 | BY17: 2668 | CA17: 2025-10-08T14:45:00 | CG17: 2025-10-09T11:00:00 | CH17: 4035 | CI17: 4035 | CJ17: 4035 | CK17: 4035 | CM17: 2025-10-09T11:00:00 | CN17: 909 | CO17: 910 | CP17: 906 | CQ17: 906 | CS17: 2025-10-09T11:00:00 | CT17: 17150 | CU17: 17280 | CV17: 17040 | CW17: 17270 | CY17: 2025-10-09T11:00:00 | CZ17: 1539 | DA17: 1542 | DB17: 1539 | DC17: 1541 | DE17: 2025-10-09T11:00:00 | DF17: 20 | DG17: 20 | DH17: 19 | DI17: 20 | DK17: 2025-10-09T11:00:00 | DL17: 1000 | DM17: 1000 | DN17: 998 | DO17: 998 | DQ17: 2025-10-09T11:00:00 | DR17: 1916 | DS17: 1920 | DT17: 1904 | DU17: 1907 | DW17: 2025-10-09T11:00:00 | DX17: 4320 | DY17: 4325 | DZ17: 4290 | EA17: 4325 | EC17: 2025-10-09T11:00:00 | ED17: 1039 | EE17: 1044 | EF17: 1038 | EG17: 1039 | EI17: 2025-10-09T11:00:00 | EJ17: 535 | EK17: 536 | EL17: 534 | EM17: 535 | EO17: 2025-10-09T11:00:00 | EP17: 1770 | EQ17: 1774 | ER17: 1768 | ES17: 1770 | EU17: 2025-10-09T10:45:00 | EV17: 1989 | EW17: 1990 | EX17: 1985 | EY17: 1990 | FA17: 2025-10-09T11:00:00 | FB17: 910 | FC17: 915 | FD17: 909 | FE17: 911 | FG17: 2025-10-09T11:00:00 | FH17: 1559 | FI17: 1562 | FJ17: 1559 | FK17: 1560 | FM17: 2025-10-09T11:00:00 | FN17: 858 | FO17: 858 | FP17: 856 | FQ17: 857 | FS17: 2025-10-09T11:00:00 | FT17: 1268 | FU17: 1272 | FV17: 1267 | FW17: 1272 | FY17: 2025-10-09T11:00:00 | FZ17: 2775.5 | GA17: 2784 | GB17: 2774.5 | GC17: 2777.5 | GE17: 2025-10-09T11:00:00 | GF17: 1042 | GG17: 1042 | GH17: 1040 | GI17: 1040 | GK17: 2025-10-09T11:00:00 | GL17: 2999.5 | GM17: 3002 | GN17: 2999 | GO17: 3000 | GQ17: 2025-10-09T11:00:00 | GW17: 2025-10-09T11:00:00 | GX17: 6020 | GY17: 6040 | GZ17: 6010 | HA17: 6040 | HC17: 2025-10-09T11:00:00 | HD17: 1690 | HE17: 1690 | HF17: 1690 | HG17: 1690 | HI17: 2025-10-09T11:00:00 | HJ17: 533 | HK17: 534 | HL17: 533 | HM17: 534 | HO17: 2025-10-09T11:00:00 | HP17: 726 | HQ17: 727 | HR17: 724 | HS17: 724 | HU17: 2025-10-09T11:00:00 | HV17: 2727 | HW17: 2728 | HX17: 2722 | HY17: 2725 | IA17: 2025-10-09T11:00:00 | IB17: 217 | IC17: 217 | ID17: 216 | IE17: 217 | IG17: 2025-10-09T11:00:00 | IH17: 3035 | II17: 3035 | IJ17: 3015 | IK17: 3015 | IM17: 2025-10-09T11:00:00 | IN17: 2341 | IO17: 2344 | IP17: 2339 | IQ17: 2339 | IS17: 2025-10-09T11:00:00 | IT17: 3670 | IU17: 3670 | IV17: 3660 | IW17: 3660 | IY17: 2025-10-09T11:00:00 | IZ17: 2528 | JA17: 2528 | JB17: 2527 | JC17: 2527 | JE17: 2025-10-09T10:45:00 | JF17: 6920 | JG17: 6920 | JH17: 6920 | JI17: 6920 | JK17: 2025-10-09T11:00:00 | JL17: 3700 | JM17: 3700 | JN17: 3700 | JO17: 3700 | JQ17: 2025-10-09T11:00:00 | JR17: 1110 | JS17: 1111 | JT17: 1108 | JU17: 1108 | JW17: 2025-10-09T11:00:00 | JX17: 878 | JY17: 882 | JZ17: 878 | KA17: 881 | KC17: 2025-10-09T11:00:00 | KD17: 4001 | KE17: 4007 | KF17: 3941 | KG17: 3953 | KI17: 2025-10-09T11:00:00 | KJ17: 346 | KK17: 347 | KL17: 346 | KM17: 346
A18: 2025-10-09T11:15:00 | B18: 748 | C18: 749 | D18: 748 | E18: 749 | G18: 2025-10-09T11:15:00 | H18: 4345 | I18: 4365 | J18: 4345 | K18: 4365 | M18: 2025-10-09T11:15:00 | N18: 2087 | O18: 2100 | P18: 2087 | Q18: 2088 | S18: 2025-10-09T11:15:00 | T18: 1415.5 | U18: 1420 | V18: 1398.5 | W18: 1398.5 | Y18: 2025-10-09T11:15:00 | Z18: 3380 | AA18: 3380 | AB18: 3370 | AC18: 3370 | AE18: 2025-10-09T11:00:00 | AK18: 2025-10-09T11:15:00 | AL18: 3345 | AM18: 3355 | AN18: 3345 | AO18: 3350 | AQ18: 2025-10-09T11:15:00 | AR18: 778 | AS18: 780 | AT18: 778 | AU18: 780 | AW18: 2025-10-09T11:15:00 | AX18: 4165 | AY18: 4165 | AZ18: 4165 | BA18: 4165 | BC18: 2025-10-09T11:15:00 | BD18: 466 | BE18: 467 | BF18: 465 | BG18: 467 | BI18: 2025-10-09T11:15:00 | BJ18: 1151 | BK18: 1153 | BL18: 1151 | BM18: 1153 | BO18: 2025-10-09T11:15:00 | BP18: 1342 | BQ18: 1343 | BR18: 1339 | BS18: 1341 | BU18: 2025-10-09T11:15:00 | BV18: 2668 | BW18: 2668 | BX18: 2661 | BY18: 2664.5 | CA18: 2025-10-08T15:00:00 | CG18: 2025-10-09T11:15:00 | CH18: 4040 | CI18: 4045 | CJ18: 4035 | CK18: 4035 | CM18: 2025-10-09T11:15:00 | CN18: 907 | CO18: 908 | CP18: 907 | CQ18: 907 | CS18: 2025-10-09T11:15:00 | CT18: 17250 | CU18: 17280 | CV18: 17180 | CW18: 17270 | CY18: 2025-10-09T11:15:00 | CZ18: 1540 | DA18: 1540 | DB18: 1538 | DC18: 1538 | DE18: 2025-10-09T11:15:00 | DF18: 19 | DG18: 20 | DH18: 19 | DI18: 20 | DK18: 2025-10-09T11:15:00 | DL18: 997 | DM18: 997 | DN18: 994 | DO18: 994 | DQ18: 2025-10-09T11:15:00 | DR18: 1905 | DS18: 1911 | DT18: 1902 | DU18: 1906 | DW18: 2025-10-09T11:15:00 | DX18: 4310 | DY18: 4340 | DZ18: 4310 | EA18: 4330 | EC18: 2025-10-09T11:15:00 | ED18: 1038 | EE18: 1039 | EF18: 1034 | EG18: 1034 | EI18: 2025-10-09T11:15:00 | EJ18: 535 | EK18: 535 | EL18: 533 | EM18: 533 | EO18: 2025-10-09T11:15:00 | EP18: 1770 | EQ18: 1778 | ER18: 1769 | ES18: 1772 | EU18: 2025-10-09T11:00:00 | EV18: 1990 | EW18: 1992 | EX18: 1988 | EY18: 1988 | FA18: 2025-10-09T11:15:00 | FB18: 911 | FC18: 914 | FD18: 906 | FE18: 906 | FG18: 2025-10-09T11:15:00 | FH18: 1559 | FI18: 1562 | FJ18: 1557 | FK18: 1557 | FM18: 2025-10-09T11:15:00 | FN18: 857 | FO18: 862 | FP18: 857 | FQ18: 862 | FS18: 2025-10-09T11:15:00 | FT18: 1272 | FU18: 1274 | FV18: 1271 | FW18: 1274 | FY18: 2025-10-09T11:15:00 | FZ18: 2777.5 | GA18: 2788 | GB18: 2775.5 | GC18: 2782 | GE18: 2025-10-09T11:15:00 | GF18: 1040 | GG18: 1040 | GH18: 1036 | GI18: 1036 | GK18: 2025-10-09T11:15:00 | GL18: 3000 | GM18: 3000 | GN18: 2996.5 | GO18: 2998 | GQ18: 2025-10-09T11:15:00 | GR18: 142 | GS18: 143 | GT18: 142 | GU18: 143 | GW18: 2025-10-09T11:15:00 | GX18: 6030 | GY18: 6060 | GZ18: 6020 | HA18: 6040 | HC18: 2025-10-09T11:15:00 | HD18: 1690 | HE18: 1690 | HF18: 1690 | HG18: 1690 | HI18: 2025-10-09T11:15:00 | HJ18: 532 | HK18: 533 | HL18: 530 | HM18: 530 | HO18: 2025-10-09T11:15:00 | HP18: 724 | HQ18: 725 | HR18: 724 | HS18: 724 | HU18: 2025-10-09T11:15:00 | HV18: 2724 | HW18: 2726 | HX18: 2722 | HY18: 2726 | IA18: 2025-10-09T11:15:00 | IB18: 217 | IC18: 217 | ID18: 216 | IE18: 216 | IG18: 2025-10-09T11:15:00 | IH18: 3020 | II18: 3020 | IJ18: 3010 | IK18: 3015 | IM18: 2025-10-09T11:15:00 | IN18: 2338 | IO18: 2343 | IP18: 2337 | IQ18: 2343 | IS18: 2025-10-09T11:15:00 | IT18: 3660 | IU18: 3660 | IV18: 3650 | IW18: 3650 | IY18: 2025-10-09T11:15:00 | IZ18: 2528 | JA18: 2528 | JB18: 2527 | JC18: 2527 | JE18: 2025-10-09T11:00:00 | JF18: 6920 | JG18: 6920 | JH18: 6900 | JI18: 6900 | JK18: 2025-10-09T11:15:00 | JQ18: 2025-10-09T11:15:00 | JR18: 1107 | JS18: 1109 | JT18: 1107 | JU18: 1107 | JW18: 2025-10-09T11:15:00 | JX18: 880 | JY18: 881 | JZ18: 878 | KA18: 880 | KC18: 2025-10-09T11:15:00 | KD18: 3953 | KE18: 3986 | KF18: 3945 | KG18: 3950 | KI18: 2025-10-09T11:15:00 | KJ18: 345 | KK18: 346 | KL18: 345 | KM18: 345
A19: 2025-10-09T11:30:00 | G19: 2025-10-09T11:30:00 | H19: 4365 | I19: 4365 | J19: 4365 | K19: 4365 | M19: 2025-10-09T11:30:00 | N19: 2088 | O19: 2088 | P19: 2088 | Q19: 2088 | S19: 2025-10-09T11:30:00 | T19: 1398 | U19: 1398 | V19: 1398 | W19: 1398 | Y19: 2025-10-09T11:30:00 | Z19: 3365 | AA19: 3365 | AB19: 3365 | AC19: 3365 | AE19: 2025-10-09T11:15:00 | AF19: 3385 | AG19: 3390 | AH19: 3385 | AI19: 3390 | AK19: 2025-10-09T11:30:00 | AL19: 3350 | AM19: 3350 | AN19: 3350 | AO19: 3350 | AQ19: 2025-10-09T11:30:00 | AR19: 780 | AS19: 780 | AT19: 780 | AU19: 780 | AW19: 2025-10-09T11:30:00 | AX19: 4165 | AY19: 4165 | AZ19: 4165 | BA19: 4165 | BC19: 2025-10-09T11:30:00 | BD19: 466 | BE19: 466 | BF19: 466 | BG19: 466 | BI19: 2025-10-09T11:30:00 | BO19: 2025-10-09T11:30:00 | BP19: 1341 | BQ19: 1341 | BR19: 1341 | BS19: 1341 | BU19: 2025-10-09T11:30:00 | BV19: 2665 | BW19: 2665 | BX19: 2665 | BY19: 2665 | CA19: 2025-10-08T15:15:00 | CG19: 2025-10-09T11:30:00 | CH19: 4040 | CI19: 4040 | CJ19: 4040 | CK19: 4040 | CM19: 2025-10-09T11:30:00 | CN19: 908 | CO19: 908 | CP19: 908 | CQ19: 908 | CS19: 2025-10-09T11:30:00 | CT19: 17270 | CU19: 17270 | CV19: 17270 | CW19: 17270 | CY19: 2025-10-09T11:30:00 | CZ19: 1538 | DA19: 1538 | DB19: 1538 | DC19: 1538 | DE19: 2025-10-09T11:30:00 | DF19: 20 | DG19: 20 | DH19: 20 | DI19: 20 | DK19: 2025-10-09T11:30:00 | DQ19: 2025-10-09T11:30:00 | DR19: 1907 | DS19: 1907 | DT19: 1907 | DU19: 1907 | DW19: 2025-10-09T11:30:00 | DX19: 4325 | DY19: 4325 | DZ19: 4325 | EA19: 4325 | EC19: 2025-10-09T11:30:00 | ED19: 1033 | EE19: 1033 | EF19: 1033 | EG19: 1033 | EI19: 2025-10-09T11:30:00 | EJ19: 533 | EK19: 533 | EL19: 533 | EM19: 533 | EO19: 2025-10-09T11:30:00 | EP19: 1771 | EQ19: 1771 | ER19: 1771 | ES19: 1771 | EU19: 2025-10-09T11:15:00 | EV19: 1988 | EW19: 1992 | EX19: 1988 | EY19: 1989 | FA19: 2025-10-09T11:30:00 | FB19: 905 | FC19: 905 | FD19: 905 | FE19: 905 | FG19: 2025-10-09T11:30:00 | FH19: 1557 | FI19: 1557 | FJ19: 1557 | FK19: 1557 | FM19: 2025-10-09T11:30:00 | FS19: 2025-10-09T11:30:00 | FT19: 1275 | FU19: 1275 | FV19: 1275 | FW19: 1275 | FY19: 2025-10-09T11:30:00 | FZ19: 2780.5 | GA19: 2780.5 | GB19: 2780.5 | GC19: 2780.5 | GE19: 2025-10-09T11:30:00 | GF19: 1037 | GG19: 1037 | GH19: 1037 | GI19: 1037 | GK19: 2025-10-09T11:30:00 | GL19: 2997 | GM19: 2997 | GN19: 2997 | GO19: 2997 | GQ19: 2025-10-09T11:30:00 | GR19: 142 | GS19: 142 | GT19: 142 | GU19: 142 | GW19: 2025-10-09T11:30:00 | GX19: 6040 | GY19: 6040 | GZ19: 6040 | HA19: 6040 | HC19: 2025-10-09T11:30:00 | HI19: 2025-10-09T11:30:00 | HJ19: 530 | HK19: 530 | HL19: 530 | HM19: 530 | HO19: 2025-10-09T11:30:00 | HP19: 724 | HQ19: 724 | HR19: 724 | HS19: 724 | HU19: 2025-10-09T11:30:00 | HV19: 2725 | HW19: 2725 | HX19: 2725 | HY19: 2725 | IA19: 2025-10-09T11:30:00 | IB19: 217 | IC19: 217 | ID19: 217 | IE19: 217 | IG19: 2025-10-09T11:30:00 | IH19: 3015 | II19: 3015 | IJ19: 3015 | IK19: 3015 | IM19: 2025-10-09T11:30:00 | IN19: 2342 | IO19: 2342 | IP19: 2342 | IQ19: 2342 | IS19: 2025-10-09T11:30:00 | IT19: 3650 | IU19: 3650 | IV19: 3650 | IW19: 3650 | IY19: 2025-10-09T11:30:00 | IZ19: 2527 | JA19: 2527 | JB19: 2527 | JC19: 2527 | JE19: 2025-10-09T11:15:00 | JF19: 6900 | JG19: 6900 | JH19: 6890 | JI19: 6890 | JK19: 2025-10-09T11:30:00 | JL19: 3700 | JM19: 3700 | JN19: 3700 | JO19: 3700 | JQ19: 2025-10-09T11:30:00 | JR19: 1108 | JS19: 1108 | JT19: 1108 | JU19: 1108 | JW19: 2025-10-09T11:30:00 | JX19: 879 | JY19: 879 | JZ19: 879 | KA19: 879 | KC19: 2025-10-09T11:30:00 | KD19: 3952 | KE19: 3952 | KF19: 3952 | KG19: 3952 | KI19: 2025-10-09T11:30:00
A20: 2025-10-09T12:30:00 | B20: 749 | C20: 751 | D20: 749 | E20: 749 | G20: 2025-10-09T12:30:00 | H20: 4370 | I20: 4380 | J20: 4360 | K20: 4360 | M20: 2025-10-09T12:30:00 | N20: 2083 | O20: 2112 | P20: 2083 | Q20: 2105 | S20: 2025-10-09T12:30:00 | T20: 1399 | U20: 1420 | V20: 1399 | W20: 1409.5 | Y20: 2025-10-09T12:30:00 | Z20: 3365 | AA20: 3395 | AB20: 3350 | AC20: 3390 | AE20: 2025-10-09T11:30:00 | AK20: 2025-10-09T12:30:00 | AL20: 3350 | AM20: 3360 | AN20: 3335 | AO20: 3335 | AQ20: 2025-10-09T12:30:00 | AR20: 781 | AS20: 781 | AT20: 779 | AU20: 781 | AW20: 2025-10-09T12:30:00 | AX20: 4170 | AY20: 4170 | AZ20: 4160 | BA20: 4165 | BC20: 2025-10-09T12:30:00 | BD20: 463 | BE20: 470 | BF20: 463 | BG20: 465 | BI20: 2025-10-09T12:30:00 | BJ20: 1153 | BK20: 1154 | BL20: 1151 | BM20: 1152 | BO20: 2025-10-09T12:30:00 | BP20: 1343 | BQ20: 1343 | BR20: 1325 | BS20: 1334 | BU20: 2025-10-09T12:30:00 | BV20: 2663 | BW20: 2664 | BX20: 2641.5 | BY20: 2652 | CA20: 2025-10-08T15:30:00 | CG20: 2025-10-09T12:30:00 | CH20: 4040 | CI20: 4040 | CJ20: 4035 | CK20: 4035 | CM20: 2025-10-09T12:30:00 | CN20: 909 | CO20: 909 | CP20: 906 | CQ20: 906 | CS20: 2025-10-09T12:30:00 | CT20: 17200 | CU20: 17200 | CV20: 16810 | CW20: 16850 | CY20: 2025-10-09T12:30:00 | CZ20: 1538 | DA20: 1538 | DB20: 1536 | DC20: 1538 | DE20: 2025-10-09T12:30:00 | DF20: 20 | DG20: 20 | DH20: 19 | DI20: 19 | DK20: 2025-10-09T12:30:00 | DL20: 997 | DM20: 1004 | DN20: 995 | DO20: 999 | DQ20: 2025-10-09T12:30:00 | DR20: 1900 | DS20: 1900 | DT20: 1890 | DU20: 1895 | DW20: 2025-10-09T12:30:00 | DX20: 4335 | DY20: 4380 | DZ20: 4305 | EA20: 4305 | EC20: 2025-10-09T12:30:00 | ED20: 1035 | EE20: 1038 | EF20: 1035 | EG20: 1037 | EI20: 2025-10-09T12:30:00 | EJ20: 533 | EK20: 534 | EL20: 533 | EM20: 534 | EO20: 2025-10-09T12:30:00 | EP20: 1781 | EQ20: 1783 | ER20: 1773 | ES20: 1776 | EU20: 2025-10-09T11:30:00 | FA20: 2025-10-09T12:30:00 | FB20: 905 | FC20: 906 | FD20: 899 | FE20: 904 | FG20: 2025-10-09T12:30:00 | FH20: 1556 | FI20: 1558 | FJ20: 1554 | FK20: 1557 | FM20: 2025-10-09T12:30:00 | FN20: 863 | FO20: 863 | FP20: 859 | FQ20: 860 | FS20: 2025-10-09T12:30:00 | FT20: 1275 | FU20: 1277 | FV20: 1272 | FW20: 1274 | FY20: 2025-10-09T12:30:00 | FZ20: 2788 | GA20: 2815.5 | GB20: 2787.5 | GC20: 2810.5 | GE20: 2025-10-09T12:30:00 | GF20: 1038 | GG20: 1039 | GH20: 1036 | GI20: 1039 | GK20: 2025-10-09T12:30:00 | GL20: 2995 | GM20: 3002 | GN20: 2995 | GO20: 3000 | GQ20: 2025-10-09T12:30:00 | GR20: 142 | GS20: 142 | GT20: 142 | GU20: 142 | GW20: 2025-10-09T12:30:00 | GX20: 6040 | GY20: 6050 | GZ20: 6020 | HA20: 6040 | HC20: 2025-10-09T12:30:00 | HD20: 1690 | HE20: 1690 | HF20: 1690 | HG20: 1690 | HI20: 2025-10-09T12:30:00 | HJ20: 530 | HK20: 533 | HL20: 529 | HM20: 530 | HO20: 2025-10-09T12:30:00 | HP20: 723 | HQ20: 725 | HR20: 722 | HS20: 724 | HU20: 2025-10-09T12:30:00 | HV20: 2727 | HW20: 2732 | HX20: 2723 | HY20: 2724 | IA20: 2025-10-09T12:30:00 | IB20: 216 | IC20: 217 | ID20: 216 | IE20: 216 | IG20: 2025-10-09T12:30:00 | IH20: 3020 | II20: 3020 | IJ20: 3010 | IK20: 3015 | IM20: 2025-10-09T12:30:00 | IN20: 2338 | IO20: 2342 | IP20: 2338 | IQ20: 2340 | IS20: 2025-10-09T12:30:00 | IT20: 3660 | IU20: 3660 | IV20: 3645 | IW20: 3650 | IY20: 2025-10-09T12:30:00 | IZ20: 2527 | JA20: 2528 | JB20: 2527 | JC20: 2528 | JE20: 2025-10-09T11:30:00 | JK20: 2025-10-09T12:30:00 | JL20: 3725 | JM20: 3725 | JN20: 3705 | JO20: 3710 | JQ20: 2025-10-09T12:30:00 | JR20: 1108 | JS20: 1109 | JT20: 1107 | JU20: 1107 | JW20: 2025-10-09T12:30:00 | JX20: 882 | JY20: 882 | JZ20: 876 | KA20: 877 | KC20: 2025-10-09T12:30:00 | KD20: 3963 | KE20: 3995 | KF20: 3963 | KG20: 3989 | KI20: 2025-10-09T12:30:00 | KJ20: 345 | KK20: 346 | KL20: 344 | KM20: 345
A21: 2025-10-09T12:45:00 | B21: 749 | C21: 750 | D21: 749 | E21: 750 | G21: 2025-10-09T12:45:00 | H21: 4360 | I21: 4365 | J21: 4355 | K21: 4355 | M21: 2025-10-09T12:45:00 | N21: 2105 | O21: 2105 | P21: 2095 | Q21: 2099 | S21: 2025-10-09T12:45:00 | T21: 1411 | U21: 1415 | V21: 1403.5 | W21: 1407 | Y21: 2025-10-09T12:45:00 | Z21: 3390 | AA21: 3405 | AB21: 3385 | AC21: 3400 | AE21: 2025-10-09T12:30:00 | AF21: 3380 | AG21: 3405 | AH21: 3380 | AI21: 3405 | AK21: 2025-10-09T12:45:00 | AL21: 3335 | AM21: 3335 | AN21: 3335 | AO21: 3335 | AQ21: 2025-10-09T12:45:00 | AR21: 780 | AS21: 780 | AT21: 779 | AU21: 780 | AW21: 2025-10-09T12:45:00 | AX21: 4160 | AY21: 4160 | AZ21: 4160 | BA21: 4160 | BC21: 2025-10-09T12:45:00 | BD21: 465 | BE21: 466 | BF21: 465 | BG21: 466 | BI21: 2025-10-09T12:45:00 | BJ21: 1155 | BK21: 1155 | BL21: 1155 | BM21: 1155 | BO21: 2025-10-09T12:45:00 | BP21: 1333 | BQ21: 1334 | BR21: 1332 | BS21: 1332 | BU21: 2025-10-09T12:45:00 | BV21: 2651 | BW21: 2653.5 | BX21: 2648 | BY21: 2652.5 | CA21: 2025-10-09T09:00:00 | CB21: 5205 | CC21: 5205 | CD21: 5205 | CE21: 5205 | CG21: 2025-10-09T12:45:00 | CH21: 4035 | CI21: 4040 | CJ21: 4035 | CK21: 4035 | CM21: 2025-10-09T12:45:00 | CN21: 906 | CO21: 906 | CP21: 906 | CQ21: 906 | CS21: 2025-10-09T12:45:00 | CT21: 16860 | CU21: 16980 | CV21: 16780 | CW21: 16920 | CY21: 2025-10-09T12:45:00 | CZ21: 1539 | DA21: 1539 | DB21: 1536 | DC21: 1536 | DE21: 2025-10-09T12:45:00 | DF21: 19 | DG21: 19 | DH21: 19 | DI21: 19 | DK21: 2025-10-09T12:45:00 | DL21: 999 | DM21: 1000 | DN21: 997 | DO21: 997 | DQ21: 2025-10-09T12:45:00 | DR21: 1895 | DS21: 1895 | DT21: 1883 | DU21: 1883 | DW21: 2025-10-09T12:45:00 | DX21: 4305 | DY21: 4310 | DZ21: 4280 | EA21: 4280 | EC21: 2025-10-09T12:45:00 | ED21: 1038 | EE21: 1039 | EF21: 1031 | EG21: 1032 | EI21: 2025-10-09T12:45:00 | EJ21: 533 | EK21: 535 | EL21: 533 | EM21: 534 | EO21: 2025-10-09T12:45:00 | EP21: 1776 | EQ21: 1779 | ER21: 1775 | ES21: 1779 | EU21: 2025-10-09T12:30:00 | EV21: 1984 | EW21: 1989 | EX21: 1983 | EY21: 1987 | FA21: 2025-10-09T12:45:00 | FB21: 905 | FC21: 912 | FD21: 904 | FE21: 906 | FG21: 2025-10-09T12:45:00 | FH21: 1555 | FI21: 1558 | FJ21: 1554 | FK21: 1556 | FM21: 2025-10-09T12:45:00 | FN21: 859 | FO21: 859 | FP21: 858 | FQ21: 859 | FS21: 2025-10-09T12:45:00 | FT21: 1274 | FU21: 1274 | FV21: 1274 | FW21: 1274 | FY21: 2025-10-09T12:45:00 | FZ21: 2811.5 | GA21: 2815.5 | GB21: 2810 | GC21: 2812 | GE21: 2025-10-09T12:45:00 | GF21: 1039 | GG21: 1040 | GH21: 1038 | GI21: 1038 | GK21: 2025-10-09T12:45:00 | GL21: 3000 | GM21: 3002 | GN21: 2997.5 | GO21: 2999 | GQ21: 2025-10-09T12:45:00 | GR21: 143 | GS21: 143 | GT21: 142 | GU21: 143 | GW21: 2025-10-09T12:45:00 | GX21: 6040 | GY21: 6040 | GZ21: 5970 | HA21: 5990 | HC21: 2025-10-09T12:45:00 | HD21: 1690 | HE21: 1690 | HF21: 1690 | HG21: 1690 | HI21: 2025-10-09T12:45:00 | HJ21: 530 | HK21: 531 | HL21: 529 | HM21: 531 | HO21: 2025-10-09T12:45:00 | HP21: 724 | HQ21: 724 | HR21: 721 | HS21: 721 | HU21: 2025-10-09T12:45:00 | HV21: 2724 | HW21: 2725 | HX21: 2719 | HY21: 2719 | IA21: 2025-10-09T12:45:00 | IB21: 217 | IC21: 217 | ID21: 216 | IE21: 217 | IG21: 2025-10-09T12:45:00 | IH21: 3020 | II21: 3020 | IJ21: 3010 | IK21: 3010 | IM21: 2025-10-09T12:45:00 | IN21: 2341 | IO21: 2341 | IP21: 2339 | IQ21: 2340 | IS21: 2025-10-09T12:45:00 | IT21: 3655 | IU21: 3660 | IV21: 3655 | IW21: 3655 | IY21: 2025-10-09T12:45:00 | IZ21: 2528 | JA21: 2528 | JB21: 2527 | JC21: 2527 | JE21: 2025-10-09T12:30:00 | JF21: 6910 | JG21: 6940 | JH21: 6890 | JI21: 6940 | JK21: 2025-10-09T12:45:00 | JL21: 3715 | JM21: 3720 | JN21: 3715 | JO21: 3720 | JQ21: 2025-10-09T12:45:00 | JR21: 1106 | JS21: 1107 | JT21: 1106 | JU21: 1106 | JW21: 2025-10-09T12:45:00 | JX21: 877 | JY21: 880 | JZ21: 876 | KA21: 879 | KC21: 2025-10-09T12:45:00 | KD21: 3988 | KE21: 4010 | KF21: 3986 | KG21: 4010 | KI21: 2025-10-09T12:45:00 | KJ21: 344 | KK21: 344 | KL21: 344 | KM21: 344
A23: ストキャスティング %D 計算
C24: 14日MAX | D24: 14日MIN | E24: ％K | I24: 14日MAX | J24: 14日MIN | K24: ％K | O24: 14日MAX | P24: 14日MIN | Q24: ％K | U24: 14日MAX | V24: 14日MIN | W24: ％K | AA24: 14日MAX | AB24: 14日MIN | AC24: ％K | AG24: 14日MAX | AH24: 14日MIN | AI24: ％K | AM24: 14日MAX | AN24: 14日MIN | AO24: ％K | AS24: 14日MAX | AT24: 14日MIN | AU24: ％K | AY24: 14日MAX | AZ24: 14日MIN | BA24: ％K | BE24: 14日MAX | BF24: 14日MIN | BG24: ％K | BK24: 14日MAX | BL24: 14日MIN | BM24: ％K | BQ24: 14日MAX | BR24: 14日MIN | BS24: ％K | BW24: 14日MAX | BX24: 14日MIN | BY24: ％K | CC24: 14日MAX | CD24: 14日MIN | CE24: ％K | CI24: 14日MAX | CJ24: 14日MIN | CK24: ％K | CO24: 14日MAX | CP24: 14日MIN | CQ24: ％K | CU24: 14日MAX | CV24: 14日MIN | CW24: ％K | DA24: 14日MAX | DB24: 14日MIN | DC24: ％K | DG24: 14日MAX | DH24: 14日MIN | DI24: ％K | DM24: 14日MAX | DN24: 14日MIN | DO24: ％K | DS24: 14日MAX | DT24: 14日MIN | DU24: ％K | DY24: 14日MAX | DZ24: 14日MIN | EA24: ％K | EE24: 14日MAX | EF24: 14日MIN | EG24: ％K | EK24: 14日MAX | EL24: 14日MIN | EM24: ％K | EQ24: 14日MAX | ER24: 14日MIN | ES24: ％K | EW24: 14日MAX | EX24: 14日MIN | EY24: ％K | FC24: 14日MAX | FD24: 14日MIN | FE24: ％K | FI24: 14日MAX | FJ24: 14日MIN | FK24: ％K | FO24: 14日MAX | FP24: 14日MIN | FQ24: ％K | FU24: 14日MAX | FV24: 14日MIN | FW24: ％K | GA24: 14日MAX | GB24: 14日MIN | GC24: ％K | GG24: 14日MAX | GH24: 14日MIN | GI24: ％K | GM24: 14日MAX | GN24: 14日MIN | GO24: ％K | GS24: 14日MAX | GT24: 14日MIN | GU24: ％K | GY24: 14日MAX | GZ24: 14日MIN | HA24: ％K | HE24: 14日MAX | HF24: 14日MIN | HG24: ％K | HK24: 14日MAX | HL24: 14日MIN | HM24: ％K | HQ24: 14日MAX | HR24: 14日MIN | HS24: ％K | HW24: 14日MAX | HX24: 14日MIN | HY24: ％K | IC24: 14日MAX | ID24: 14日MIN | IE24: ％K | II24: 14日MAX | IJ24: 14日MIN | IK24: ％K | IO24: 14日MAX | IP24: 14日MIN | IQ24: ％K | IU24: 14日MAX | IV24: 14日MIN | IW24: ％K | JA24: 14日MAX | JB24: 14日MIN | JC24: ％K | JG24: 14日MAX | JH24: 14日MIN | JI24: ％K | JM24: 14日MAX | JN24: 14日MIN | JO24: ％K | JS24: 14日MAX | JT24: 14日MIN | JU24: ％K | JY24: 14日MAX | JZ24: 14日MIN | KA24: ％K | KE24: 14日MAX | KF24: 14日MIN | KG24: ％K | KK24: 14日MAX | KL24: 14日MIN | KM24: ％K
A25: ３日前 | C25: =MAX(C6:C19) -> 750 | D25: =MIN(D6:D19) -> 740 | E25: =(E19-D25)/(C25-D25)*100 -> -7400 | I25: =MAX(I6:I19) -> 4790 | J25: =MIN(J6:J19) -> 4305 | K25: =(K19-J25)/(I25-J25)*100 -> 12.37113402 | O25: =MAX(O6:O19) -> 2140 | P25: =MIN(P6:P19) -> 1955 | Q25: =(Q19-P25)/(O25-P25)*100 -> 71.89189189 | U25: =MAX(U6:U19) -> 1468.5 | V25: =MIN(V6:V19) -> 1295 | W25: =(W19-V25)/(U25-V25)*100 -> 59.36599424 | AA25: =MAX(AA6:AA19) -> 3560 | AB25: =MIN(AB6:AB19) -> 3330 | AC25: =(AC19-AB25)/(AA25-AB25)*100 -> 15.2173913 | AG25: =MAX(AG6:AG19) -> 3405 | AH25: =MIN(AH6:AH19) -> 3315 | AI25: =(AI19-AH25)/(AG25-AH25)*100 -> 83.33333333 | AM25: =MAX(AM6:AM19) -> 3395 | AN25: =MIN(AN6:AN19) -> 3255 | AO25: =(AO19-AN25)/(AM25-AN25)*100 -> 67.85714286 | AS25: =MAX(AS6:AS19) -> 784 | AT25: =MIN(AT6:AT19) -> 775 | AU25: =(AU19-AT25)/(AS25-AT25)*100 -> 55.55555556 | AY25: =MAX(AY6:AY19) -> 4200 | AZ25: =MIN(AZ6:AZ19) -> 4155 | BA25: =(BA19-AZ25)/(AY25-AZ25)*100 -> 22.22222222 | BE25: =MAX(BE6:BE19) -> 468 | BF25: =MIN(BF6:BF19) -> 442 | BG25: =(BG19-BF25)/(BE25-BF25)*100 -> 92.30769231 | BK25: =MAX(BK6:BK19) -> 1159 | BL25: =MIN(BL6:BL19) -> 1140 | BM25: =(BM19-BL25)/(BK25-BL25)*100 -> -6000 | BQ25: =MAX(BQ6:BQ19) -> 1370 | BR25: =MIN(BR6:BR19) -> 1332 | BS25: =(BS19-BR25)/(BQ25-BR25)*100 -> 23.68421053 | BW25: =MAX(BW6:BW19) -> 2918 | BX25: =MIN(BX6:BX19) -> 2661 | BY25: =(BY19-BX25)/(BW25-BX25)*100 -> 1.556420233 | CC25: =MAX(CC6:CC19) -> 5245 | CD25: =MIN(CD6:CD19) -> 5245 | CE25: =(CE19-CD25)/(CC25-CD25)*100 ->  | CI25: =MAX(CI6:CI19) -> 4075 | CJ25: =MIN(CJ6:CJ19) -> 3975 | CK25: =(CK19-CJ25)/(CI25-CJ25)*100 -> 65 | CO25: =MAX(CO6:CO19) -> 916 | CP25: =MIN(CP6:CP19) -> 892 | CQ25: =(CQ19-CP25)/(CO25-CP25)*100 -> 66.66666667 | CU25: =MAX(CU6:CU19) -> 17280 | CV25: =MIN(CV6:CV19) -> 14860 | CW25: =(CW19-CV25)/(CU25-CV25)*100 -> 99.58677686 | DA25: =MAX(DA6:DA19) -> 1546 | DB25: =MIN(DB6:DB19) -> 1524 | DC25: =(DC19-DB25)/(DA25-DB25)*100 -> 63.63636364 | DG25: =MAX(DG6:DG19) -> 20 | DH25: =MIN(DH6:DH19) -> 18 | DI25: =(DI19-DH25)/(DG25-DH25)*100 -> 100 | DM25: =MAX(DM6:DM19) -> 1015 | DN25: =MIN(DN6:DN19) -> 977 | DO25: =(DO19-DN25)/(DM25-DN25)*100 -> -2571.052632 | DS25: =MAX(DS6:DS19) -> 1986 | DT25: =MIN(DT6:DT19) -> 1902 | DU25: =(DU19-DT25)/(DS25-DT25)*100 -> 5.952380952 | DY25: =MAX(DY6:DY19) -> 4435 | DZ25: =MIN(DZ6:DZ19) -> 4025 | EA25: =(EA19-DZ25)/(DY25-DZ25)*100 -> 73.17073171 | EE25: =MAX(EE6:EE19) -> 1061 | EF25: =MIN(EF6:EF19) -> 1033 | EG25: =(EG19-EF25)/(EE25-EF25)*100 -> 0 | EK25: =MAX(EK6:EK19) -> 536 | EL25: =MIN(EL6:EL19) -> 523 | EM25: =(EM19-EL25)/(EK25-EL25)*100 -> 76.92307692 | EQ25: =MAX(EQ6:EQ19) -> 1830 | ER25: =MIN(ER6:ER19) -> 1766 | ES25: =(ES19-ER25)/(EQ25-ER25)*100 -> 7.8125 | EW25: =MAX(EW6:EW19) -> 1999 | EX25: =MIN(EX6:EX19) -> 1944 | EY25: =(EY19-EX25)/(EW25-EX25)*100 -> 81.81818182 | FC25: =MAX(FC6:FC19) -> 915 | FD25: =MIN(FD6:FD19) -> 898 | FE25: =(FE19-FD25)/(FC25-FD25)*100 -> 41.17647059 | FI25: =MAX(FI6:FI19) -> 1580 | FJ25: =MIN(FJ6:FJ19) -> 1506 | FK25: =(FK19-FJ25)/(FI25-FJ25)*100 -> 68.91891892 | FO25: =MAX(FO6:FO19) -> 862 | FP25: =MIN(FP6:FP19) -> 840 | FQ25: =(FQ19-FP25)/(FO25-FP25)*100 -> -3818.181818 | FU25: =MAX(FU6:FU19) -> 1279 | FV25: =MIN(FV6:FV19) -> 1252 | FW25: =(FW19-FV25)/(FU25-FV25)*100 -> 85.18518519 | GA25: =MAX(GA6:GA19) -> 2788 | GB25: =MIN(GB6:GB19) -> 2699.5 | GC25: =(GC19-GB25)/(GA25-GB25)*100 -> 91.52542373 | GG25: =MAX(GG6:GG19) -> 1060 | GH25: =MIN(GH6:GH19) -> 1036 | GI25: =(GI19-GH25)/(GG25-GH25)*100 -> 4.166666667 | GM25: =MAX(GM6:GM19) -> 3030 | GN25: =MIN(GN6:GN19) -> 2995 | GO25: =(GO19-GN25)/(GM25-GN25)*100 -> 5.714285714 | GS25: =MAX(GS6:GS19) -> 145 | GT25: =MIN(GT6:GT19) -> 142 | GU25: =(GU19-GT25)/(GS25-GT25)*100 -> 0 | GY25: =MAX(GY6:GY19) -> 6130 | GZ25: =MIN(GZ6:GZ19) -> 5730 | HA25: =(HA19-GZ25)/(GY25-GZ25)*100 -> 77.5 | HE25: =MAX(HE6:HE19) -> 1691 | HF25: =MIN(HF6:HF19) -> 1689 | HG25: =(HG19-HF25)/(HE25-HF25)*100 -> -84450 | HK25: =MAX(HK6:HK19) -> 539 | HL25: =MIN(HL6:HL19) -> 529 | HM25: =(HM19-HL25)/(HK25-HL25)*100 -> 10 | HQ25: =MAX(HQ6:HQ19) -> 748 | HR25: =MIN(HR6:HR19) -> 724 | HS25: =(HS19-HR25)/(HQ25-HR25)*100 -> 0 | HW25: =MAX(HW6:HW19) -> 2742 | HX25: =MIN(HX6:HX19) -> 2684 | HY25: =(HY19-HX25)/(HW25-HX25)*100 -> 70.68965517 | IC25: =MAX(IC6:IC19) -> 218 | ID25: =MIN(ID6:ID19) -> 215 | IE25: =(IE19-ID25)/(IC25-ID25)*100 -> 66.66666667 | II25: =MAX(II6:II19) -> 3065 | IJ25: =MIN(IJ6:IJ19) -> 3010 | IK25: =(IK19-IJ25)/(II25-IJ25)*100 -> 9.090909091 | IO25: =MAX(IO6:IO19) -> 2376 | IP25: =MIN(IP6:IP19) -> 2337 | IQ25: =(IQ19-IP25)/(IO25-IP25)*100 -> 12.82051282 | IU25: =MAX(IU6:IU19) -> 3705 | IV25: =MIN(IV6:IV19) -> 3625 | IW25: =(IW19-IV25)/(IU25-IV25)*100 -> 31.25 | JA25: =MAX(JA6:JA19) -> 2529 | JB25: =MIN(JB6:JB19) -> 2526 | JC25: =(JC19-JB25)/(JA25-JB25)*100 -> 33.33333333 | JG25: =MAX(JG6:JG19) -> 7060 | JH25: =MIN(JH6:JH19) -> 6890 | JI25: =(JI19-JH25)/(JG25-JH25)*100 -> 0 | JM25: =MAX(JM6:JM19) -> 3725 | JN25: =MIN(JN6:JN19) -> 3680 | JO25: =(JO19-JN25)/(JM25-JN25)*100 -> 44.44444444 | JS25: =MAX(JS6:JS19) -> 1120 | JT25: =MIN(JT6:JT19) -> 1106 | JU25: =(JU19-JT25)/(JS25-JT25)*100 -> 14.28571429 | JY25: =MAX(JY6:JY19) -> 890 | JZ25: =MIN(JZ6:JZ19) -> 869 | KA25: =(KA19-JZ25)/(JY25-JZ25)*100 -> 47.61904762 | KE25: =MAX(KE6:KE19) -> 4065 | KF25: =MIN(KF6:KF19) -> 3647 | KG25: =(KG19-KF25)/(KE25-KF25)*100 -> 72.96650718 | KK25: =MAX(KK6:KK19) -> 349 | KL25: =MIN(KL6:KL19) -> 344 | KM25: =(KM19-KL25)/(KK25-KL25)*100 -> -6880
A26: ２日前 | C26: =MAX(C7:C20) -> 751 | D26: =MIN(D7:D20) -> 740 | E26: =(E20-D26)/(C26-D26)*100 -> 81.81818182 | I26: =MAX(I7:I20) -> 4790 | J26: =MIN(J7:J20) -> 4305 | K26: =(K20-J26)/(I26-J26)*100 -> 11.34020619 | O26: =MAX(O7:O20) -> 2140 | P26: =MIN(P7:P20) -> 1956 | Q26: =(Q20-P26)/(O26-P26)*100 -> 80.97826087 | U26: =MAX(U7:U20) -> 1468.5 | V26: =MIN(V7:V20) -> 1298 | W26: =(W20-V26)/(U26-V26)*100 -> 65.39589443 | AA26: =MAX(AA7:AA20) -> 3560 | AB26: =MIN(AB7:AB20) -> 3330 | AC26: =(AC20-AB26)/(AA26-AB26)*100 -> 26.08695652 | AG26: =MAX(AG7:AG20) -> 3405 | AH26: =MIN(AH7:AH20) -> 3315 | AI26: =(AI20-AH26)/(AG26-AH26)*100 -> -3683.333333 | AM26: =MAX(AM7:AM20) -> 3395 | AN26: =MIN(AN7:AN20) -> 3255 | AO26: =(AO20-AN26)/(AM26-AN26)*100 -> 57.14285714 | AS26: =MAX(AS7:AS20) -> 784 | AT26: =MIN(AT7:AT20) -> 775 | AU26: =(AU20-AT26)/(AS26-AT26)*100 -> 66.66666667 | AY26: =MAX(AY7:AY20) -> 4200 | AZ26: =MIN(AZ7:AZ20) -> 4155 | BA26: =(BA20-AZ26)/(AY26-AZ26)*100 -> 22.22222222 | BE26: =MAX(BE7:BE20) -> 470 | BF26: =MIN(BF7:BF20) -> 442 | BG26: =(BG20-BF26)/(BE26-BF26)*100 -> 82.14285714 | BK26: =MAX(BK7:BK20) -> 1159 | BL26: =MIN(BL7:BL20) -> 1140 | BM26: =(BM20-BL26)/(BK26-BL26)*100 -> 63.15789474 | BQ26: =MAX(BQ7:BQ20) -> 1370 | BR26: =MIN(BR7:BR20) -> 1325 | BS26: =(BS20-BR26)/(BQ26-BR26)*100 -> 20 | BW26: =MAX(BW7:BW20) -> 2918 | BX26: =MIN(BX7:BX20) -> 2641.5 | BY26: =(BY20-BX26)/(BW26-BX26)*100 -> 3.797468354 | CC26: =MAX(CC7:CC20) -> 5245 | CD26: =MIN(CD7:CD20) -> 5245 | CE26: =(CE20-CD26)/(CC26-CD26)*100 ->  | CI26: =MAX(CI7:CI20) -> 4075 | CJ26: =MIN(CJ7:CJ20) -> 3975 | CK26: =(CK20-CJ26)/(CI26-CJ26)*100 -> 60 | CO26: =MAX(CO7:CO20) -> 916 | CP26: =MIN(CP7:CP20) -> 892 | CQ26: =(CQ20-CP26)/(CO26-CP26)*100 -> 58.33333333 | CU26: =MAX(CU7:CU20) -> 17280 | CV26: =MIN(CV7:CV20) -> 14860 | CW26: =(CW20-CV26)/(CU26-CV26)*100 -> 82.23140496 | DA26: =MAX(DA7:DA20) -> 1546 | DB26: =MIN(DB7:DB20) -> 1524 | DC26: =(DC20-DB26)/(DA26-DB26)*100 -> 63.63636364 | DG26: =MAX(DG7:DG20) -> 20 | DH26: =MIN(DH7:DH20) -> 18 | DI26: =(DI20-DH26)/(DG26-DH26)*100 -> 50 | DM26: =MAX(DM7:DM20) -> 1015 | DN26: =MIN(DN7:DN20) -> 980 | DO26: =(DO20-DN26)/(DM26-DN26)*100 -> 54.28571429 | DS26: =MAX(DS7:DS20) -> 1986 | DT26: =MIN(DT7:DT20) -> 1890 | DU26: =(DU20-DT26)/(DS26-DT26)*100 -> 5.208333333 | DY26: =MAX(DY7:DY20) -> 4435 | DZ26: =MIN(DZ7:DZ20) -> 4025 | EA26: =(EA20-DZ26)/(DY26-DZ26)*100 -> 68.29268293 | EE26: =MAX(EE7:EE20) -> 1061 | EF26: =MIN(EF7:EF20) -> 1033 | EG26: =(EG20-EF26)/(EE26-EF26)*100 -> 14.28571429 | EK26: =MAX(EK7:EK20) -> 536 | EL26: =MIN(EL7:EL20) -> 523 | EM26: =(EM20-EL26)/(EK26-EL26)*100 -> 84.61538462 | EQ26: =MAX(EQ7:EQ20) -> 1830 | ER26: =MIN(ER7:ER20) -> 1766 | ES26: =(ES20-ER26)/(EQ26-ER26)*100 -> 15.625 | EW26: =MAX(EW7:EW20) -> 1999 | EX26: =MIN(EX7:EX20) -> 1944 | EY26: =(EY20-EX26)/(EW26-EX26)*100 -> -3534.545455 | FC26: =MAX(FC7:FC20) -> 915 | FD26: =MIN(FD7:FD20) -> 899 | FE26: =(FE20-FD26)/(FC26-FD26)*100 -> 31.25 | FI26: =MAX(FI7:FI20) -> 1580 | FJ26: =MIN(FJ7:FJ20) -> 1506 | FK26: =(FK20-FJ26)/(FI26-FJ26)*100 -> 68.91891892 | FO26: =MAX(FO7:FO20) -> 863 | FP26: =MIN(FP7:FP20) -> 840 | FQ26: =(FQ20-FP26)/(FO26-FP26)*100 -> 86.95652174 | FU26: =MAX(FU7:FU20) -> 1279 | FV26: =MIN(FV7:FV20) -> 1252 | FW26: =(FW20-FV26)/(FU26-FV26)*100 -> 81.48148148 | GA26: =MAX(GA7:GA20) -> 2815.5 | GB26: =MIN(GB7:GB20) -> 2699.5 | GC26: =(GC20-GB26)/(GA26-GB26)*100 -> 95.68965517 | GG26: =MAX(GG7:GG20) -> 1058 | GH26: =MIN(GH7:GH20) -> 1036 | GI26: =(GI20-GH26)/(GG26-GH26)*100 -> 13.63636364 | GM26: =MAX(GM7:GM20) -> 3023 | GN26: =MIN(GN7:GN20) -> 2995 | GO26: =(GO20-GN26)/(GM26-GN26)*100 -> 17.85714286 | GS26: =MAX(GS7:GS20) -> 145 | GT26: =MIN(GT7:GT20) -> 142 | GU26: =(GU20-GT26)/(GS26-GT26)*100 -> 0 | GY26: =MAX(GY7:GY20) -> 6130 | GZ26: =MIN(GZ7:GZ20) -> 5740 | HA26: =(HA20-GZ26)/(GY26-GZ26)*100 -> 76.92307692 | HE26: =MAX(HE7:HE20) -> 1691 | HF26: =MIN(HF7:HF20) -> 1689 | HG26: =(HG20-HF26)/(HE26-HF26)*100 -> 50 | HK26: =MAX(HK7:HK20) -> 539 | HL26: =MIN(HL7:HL20) -> 529 | HM26: =(HM20-HL26)/(HK26-HL26)*100 -> 10 | HQ26: =MAX(HQ7:HQ20) -> 747 | HR26: =MIN(HR7:HR20) -> 722 | HS26: =(HS20-HR26)/(HQ26-HR26)*100 -> 8 | HW26: =MAX(HW7:HW20) -> 2736 | HX26: =MIN(HX7:HX20) -> 2684 | HY26: =(HY20-HX26)/(HW26-HX26)*100 -> 76.92307692 | IC26: =MAX(IC7:IC20) -> 218 | ID26: =MIN(ID7:ID20) -> 215 | IE26: =(IE20-ID26)/(IC26-ID26)*100 -> 33.33333333 | II26: =MAX(II7:II20) -> 3065 | IJ26: =MIN(IJ7:IJ20) -> 3010 | IK26: =(IK20-IJ26)/(II26-IJ26)*100 -> 9.090909091 | IO26: =MAX(IO7:IO20) -> 2376 | IP26: =MIN(IP7:IP20) -> 2337 | IQ26: =(IQ20-IP26)/(IO26-IP26)*100 -> 7.692307692 | IU26: =MAX(IU7:IU20) -> 3705 | IV26: =MIN(IV7:IV20) -> 3625 | IW26: =(IW20-IV26)/(IU26-IV26)*100 -> 31.25 | JA26: =MAX(JA7:JA20) -> 2529 | JB26: =MIN(JB7:JB20) -> 2526 | JC26: =(JC20-JB26)/(JA26-JB26)*100 -> 66.66666667 | JG26: =MAX(JG7:JG20) -> 7050 | JH26: =MIN(JH7:JH20) -> 6890 | JI26: =(JI20-JH26)/(JG26-JH26)*100 -> -4306.25 | JM26: =MAX(JM7:JM20) -> 3725 | JN26: =MIN(JN7:JN20) -> 3680 | JO26: =(JO20-JN26)/(JM26-JN26)*100 -> 66.66666667 | JS26: =MAX(JS7:JS20) -> 1120 | JT26: =MIN(JT7:JT20) -> 1106 | JU26: =(JU20-JT26)/(JS26-JT26)*100 -> 7.142857143 | JY26: =MAX(JY7:JY20) -> 890 | JZ26: =MIN(JZ7:JZ20) -> 869 | KA26: =(KA20-JZ26)/(JY26-JZ26)*100 -> 38.0952381 | KE26: =MAX(KE7:KE20) -> 4065 | KF26: =MIN(KF7:KF20) -> 3655 | KG26: =(KG20-KF26)/(KE26-KF26)*100 -> 81.46341463 | KK26: =MAX(KK7:KK20) -> 349 | KL26: =MIN(KL7:KL20) -> 344 | KM26: =(KM20-KL26)/(KK26-KL26)*100 -> 20
A27: １日前 | C27: =MAX(C8:C21) -> 751 | D27: =MIN(D8:D21) -> 740 | E27: =IF((E21-D27)/(C27-D27)*100<0,"",(E21-D27)/(C27-D27)*100) -> 90.90909091 | I27: =MAX(I8:I21) -> 4790 | J27: =MIN(J8:J21) -> 4305 | K27: =IF((K21-J27)/(I27-J27)*100<0,"",(K21-J27)/(I27-J27)*100) -> 10.30927835 | O27: =MAX(O8:O21) -> 2140 | P27: =MIN(P8:P21) -> 1956 | Q27: =IF((Q21-P27)/(O27-P27)*100<0,"",(Q21-P27)/(O27-P27)*100) -> 77.7173913 | U27: =MAX(U8:U21) -> 1468.5 | V27: =MIN(V8:V21) -> 1307.5 | W27: =IF((W21-V27)/(U27-V27)*100<0,"",(W21-V27)/(U27-V27)*100) -> 61.80124224 | AA27: =MAX(AA8:AA21) -> 3560 | AB27: =MIN(AB8:AB21) -> 3330 | AC27: =IF((AC21-AB27)/(AA27-AB27)*100<0,"",(AC21-AB27)/(AA27-AB27)*100) -> 30.43478261 | AG27: =MAX(AG8:AG21) -> 3405 | AH27: =MIN(AH8:AH21) -> 3315 | AI27: =IF((AI21-AH27)/(AG27-AH27)*100<0,"",(AI21-AH27)/(AG27-AH27)*100) -> 100 | AM27: =MAX(AM8:AM21) -> 3395 | AN27: =MIN(AN8:AN21) -> 3255 | AO27: =IF((AO21-AN27)/(AM27-AN27)*100<0,"",(AO21-AN27)/(AM27-AN27)*100) -> 57.14285714 | AS27: =MAX(AS8:AS21) -> 784 | AT27: =MIN(AT8:AT21) -> 775 | AU27: =IF((AU21-AT27)/(AS27-AT27)*100<0,"",(AU21-AT27)/(AS27-AT27)*100) -> 55.55555556 | AY27: =MAX(AY8:AY21) -> 4200 | AZ27: =MIN(AZ8:AZ21) -> 4155 | BA27: =IF((BA21-AZ27)/(AY27-AZ27)*100<0,"",(BA21-AZ27)/(AY27-AZ27)*100) -> 11.11111111 | BE27: =MAX(BE8:BE21) -> 470 | BF27: =MIN(BF8:BF21) -> 442 | BG27: =IF((BG21-BF27)/(BE27-BF27)*100<0,"",(BG21-BF27)/(BE27-BF27)*100) -> 85.71428571 | BK27: =MAX(BK8:BK21) -> 1159 | BL27: =MIN(BL8:BL21) -> 1140 | BM27: =IF((BM21-BL27)/(BK27-BL27)*100<0,"",(BM21-BL27)/(BK27-BL27)*100) -> 78.94736842 | BQ27: =MAX(BQ8:BQ21) -> 1370 | BR27: =MIN(BR8:BR21) -> 1325 | BS27: =IF((BS21-BR27)/(BQ27-BR27)*100<0,"",(BS21-BR27)/(BQ27-BR27)*100) -> 15.55555556 | BW27: =MAX(BW8:BW21) -> 2906 | BX27: =MIN(BX8:BX21) -> 2641.5 | BY27: =IF((BY21-BX27)/(BW27-BX27)*100<0,"",(BY21-BX27)/(BW27-BX27)*100) -> 4.15879017 | CC27: =MAX(CC8:CC21) -> 5245 | CD27: =MIN(CD8:CD21) -> 5205 | CE27: =IF((CE21-CD27)/(CC27-CD27)*100<0,"",(CE21-CD27)/(CC27-CD27)*100) -> 0 | CI27: =MAX(CI8:CI21) -> 4075 | CJ27: =MIN(CJ8:CJ21) -> 3990 | CK27: =IF((CK21-CJ27)/(CI27-CJ27)*100<0,"",(CK21-CJ27)/(CI27-CJ27)*100) -> 52.94117647 | CO27: =MAX(CO8:CO21) -> 916 | CP27: =MIN(CP8:CP21) -> 892 | CQ27: =IF((CQ21-CP27)/(CO27-CP27)*100<0,"",(CQ21-CP27)/(CO27-CP27)*100) -> 58.33333333 | CU27: =MAX(CU8:CU21) -> 17280 | CV27: =MIN(CV8:CV21) -> 14910 | CW27: =IF((CW21-CV27)/(CU27-CV27)*100<0,"",(CW21-CV27)/(CU27-CV27)*100) -> 84.81012658 | DA27: =MAX(DA8:DA21) -> 1546 | DB27: =MIN(DB8:DB21) -> 1524 | DC27: =IF((DC21-DB27)/(DA27-DB27)*100<0,"",(DC21-DB27)/(DA27-DB27)*100) -> 54.54545455 | DG27: =MAX(DG8:DG21) -> 20 | DH27: =MIN(DH8:DH21) -> 19 | DI27: =IF((DI21-DH27)/(DG27-DH27)*100<0,"",(DI21-DH27)/(DG27-DH27)*100) -> 0 | DM27: =MAX(DM8:DM21) -> 1015 | DN27: =MIN(DN8:DN21) -> 987 | DO27: =IF((DO21-DN27)/(DM27-DN27)*100<0,"",(DO21-DN27)/(DM27-DN27)*100) -> 35.71428571 | DS27: =MAX(DS8:DS21) -> 1986 | DT27: =MIN(DT8:DT21) -> 1883 | DU27: =IF((DU21-DT27)/(DS27-DT27)*100<0,"",(DU21-DT27)/(DS27-DT27)*100) -> 0 | DY27: =MAX(DY8:DY21) -> 4435 | DZ27: =MIN(DZ8:DZ21) -> 4040 | EA27: =IF((EA21-DZ27)/(DY27-DZ27)*100<0,"",(EA21-DZ27)/(DY27-DZ27)*100) -> 60.75949367 | EE27: =MAX(EE8:EE21) -> 1061 | EF27: =MIN(EF8:EF21) -> 1031 | EG27: =IF((EG21-EF27)/(EE27-EF27)*100<0,"",(EG21-EF27)/(EE27-EF27)*100) -> 3.333333333 | EK27: =MAX(EK8:EK21) -> 536 | EL27: =MIN(EL8:EL21) -> 523 | EM27: =IF((EM21-EL27)/(EK27-EL27)*100<0,"",(EM21-EL27)/(EK27-EL27)*100) -> 84.61538462 | EQ27: =MAX(EQ8:EQ21) -> 1830 | ER27: =MIN(ER8:ER21) -> 1766 | ES27: =IF((ES21-ER27)/(EQ27-ER27)*100<0,"",(ES21-ER27)/(EQ27-ER27)*100) -> 20.3125 | EW27: =MAX(EW8:EW21) -> 1999 | EX27: =MIN(EX8:EX21) -> 1944 | EY27: =IF((EY21-EX27)/(EW27-EX27)*100<0,"",(EY21-EX27)/(EW27-EX27)*100) -> 78.18181818 | FC27: =MAX(FC8:FC21) -> 915 | FD27: =MIN(FD8:FD21) -> 899 | FE27: =IF((FE21-FD27)/(FC27-FD27)*100<0,"",(FE21-FD27)/(FC27-FD27)*100) -> 43.75 | FI27: =MAX(FI8:FI21) -> 1580 | FJ27: =MIN(FJ8:FJ21) -> 1506 | FK27: =IF((FK21-FJ27)/(FI27-FJ27)*100<0,"",(FK21-FJ27)/(FI27-FJ27)*100) -> 67.56756757 | FO27: =MAX(FO8:FO21) -> 863 | FP27: =MIN(FP8:FP21) -> 840 | FQ27: =IF((FQ21-FP27)/(FO27-FP27)*100<0,"",(FQ21-FP27)/(FO27-FP27)*100) -> 82.60869565 | FU27: =MAX(FU8:FU21) -> 1279 | FV27: =MIN(FV8:FV21) -> 1252 | FW27: =IF((FW21-FV27)/(FU27-FV27)*100<0,"",(FW21-FV27)/(FU27-FV27)*100) -> 81.48148148 | GA27: =MAX(GA8:GA21) -> 2815.5 | GB27: =MIN(GB8:GB21) -> 2699.5 | GC27: =IF((GC21-GB27)/(GA27-GB27)*100<0,"",(GC21-GB27)/(GA27-GB27)*100) -> 96.98275862 | GG27: =MAX(GG8:GG21) -> 1056 | GH27: =MIN(GH8:GH21) -> 1036 | GI27: =IF((GI21-GH27)/(GG27-GH27)*100<0,"",(GI21-GH27)/(GG27-GH27)*100) -> 10 | GM27: =MAX(GM8:GM21) -> 3016 | GN27: =MIN(GN8:GN21) -> 2995 | GO27: =IF((GO21-GN27)/(GM27-GN27)*100<0,"",(GO21-GN27)/(GM27-GN27)*100) -> 19.04761905 | GS27: =MAX(GS8:GS21) -> 144 | GT27: =MIN(GT8:GT21) -> 142 | GU27: =IF((GU21-GT27)/(GS27-GT27)*100<0,"",(GU21-GT27)/(GS27-GT27)*100) -> 50 | GY27: =MAX(GY8:GY21) -> 6130 | GZ27: =MIN(GZ8:GZ21) -> 5770 | HA27: =IF((HA21-GZ27)/(GY27-GZ27)*100<0,"",(HA21-GZ27)/(GY27-GZ27)*100) -> 61.11111111 | HE27: =MAX(HE8:HE21) -> 1691 | HF27: =MIN(HF8:HF21) -> 1689 | HG27: =IF((HG21-HF27)/(HE27-HF27)*100<0,"",(HG21-HF27)/(HE27-HF27)*100) -> 50 | HK27: =MAX(HK8:HK21) -> 539 | HL27: =MIN(HL8:HL21) -> 529 | HM27: =IF((HM21-HL27)/(HK27-HL27)*100<0,"",(HM21-HL27)/(HK27-HL27)*100) -> 20 | HQ27: =MAX(HQ8:HQ21) -> 747 | HR27: =MIN(HR8:HR21) -> 721 | HS27: =IF((HS21-HR27)/(HQ27-HR27)*100<0,"",(HS21-HR27)/(HQ27-HR27)*100) -> 0 | HW27: =MAX(HW8:HW21) -> 2732 | HX27: =MIN(HX8:HX21) -> 2684 | HY27: =IF((HY21-HX27)/(HW27-HX27)*100<0,"",(HY21-HX27)/(HW27-HX27)*100) -> 72.91666667 | IC27: =MAX(IC8:IC21) -> 218 | ID27: =MIN(ID8:ID21) -> 215 | IE27: =IF((IE21-ID27)/(IC27-ID27)*100<0,"",(IE21-ID27)/(IC27-ID27)*100) -> 66.66666667 | II27: =MAX(II8:II21) -> 3055 | IJ27: =MIN(IJ8:IJ21) -> 3010 | IK27: =IF((IK21-IJ27)/(II27-IJ27)*100<0,"",(IK21-IJ27)/(II27-IJ27)*100) -> 0 | IO27: =MAX(IO8:IO21) -> 2372 | IP27: =MIN(IP8:IP21) -> 2337 | IQ27: =IF((IQ21-IP27)/(IO27-IP27)*100<0,"",(IQ21-IP27)/(IO27-IP27)*100) -> 8.571428571 | IU27: =MAX(IU8:IU21) -> 3705 | IV27: =MIN(IV8:IV21) -> 3630 | IW27: =IF((IW21-IV27)/(IU27-IV27)*100<0,"",(IW21-IV27)/(IU27-IV27)*100) -> 33.33333333 | JA27: =MAX(JA8:JA21) -> 2529 | JB27: =MIN(JB8:JB21) -> 2526 | JC27: =IF((JC21-JB27)/(JA27-JB27)*100<0,"",(JC21-JB27)/(JA27-JB27)*100) -> 33.33333333 | JG27: =MAX(JG8:JG21) -> 7050 | JH27: =MIN(JH8:JH21) -> 6890 | JI27: =IF((JI21-JH27)/(JG27-JH27)*100<0,"",(JI21-JH27)/(JG27-JH27)*100) -> 31.25 | JM27: =MAX(JM8:JM21) -> 3725 | JN27: =MIN(JN8:JN21) -> 3680 | JO27: =IF((JO21-JN27)/(JM27-JN27)*100<0,"",(JO21-JN27)/(JM27-JN27)*100) -> 88.88888889 | JS27: =MAX(JS8:JS21) -> 1120 | JT27: =MIN(JT8:JT21) -> 1106 | JU27: =IF((JU21-JT27)/(JS27-JT27)*100<0,"",(JU21-JT27)/(JS27-JT27)*100) -> 0 | JY27: =MAX(JY8:JY21) -> 890 | JZ27: =MIN(JZ8:JZ21) -> 869 | KA27: =IF((KA21-JZ27)/(JY27-JZ27)*100<0,"",(KA21-JZ27)/(JY27-JZ27)*100) -> 47.61904762 | KE27: =MAX(KE8:KE21) -> 4065 | KF27: =MIN(KF8:KF21) -> 3680 | KG27: =IF((KG21-KF27)/(KE27-KF27)*100<0,"",(KG21-KF27)/(KE27-KF27)*100) -> 85.71428571 | KK27: =MAX(KK8:KK21) -> 349 | KL27: =MIN(KL8:KL21) -> 344 | KM27: =IF((KM21-KL27)/(KK27-KL27)*100<0,"",(KM21-KL27)/(KK27-KL27)*100) -> 0
D28: ％D | E28: =IF(AVERAGE(E25:E27)<0,"",AVERAGE(E25:E27)) ->  | J28: ％D | K28: =IF(AVERAGE(K25:K27)<0,"",AVERAGE(K25:K27)) -> 11.34020619 | P28: ％D | Q28: =IF(AVERAGE(Q25:Q27)<0,"",AVERAGE(Q25:Q27)) -> 76.86251469 | V28: ％D | W28: =IF(AVERAGE(W25:W27)<0,"",AVERAGE(W25:W27)) -> 62.1877103 | AB28: ％D | AC28: =IF(AVERAGE(AC25:AC27)<0,"",AVERAGE(AC25:AC27)) -> 23.91304348 | AH28: ％D | AI28: =IF(AVERAGE(AI25:AI27)<0,"",AVERAGE(AI25:AI27)) ->  | AN28: ％D | AO28: =IF(AVERAGE(AO25:AO27)<0,"",AVERAGE(AO25:AO27)) -> 60.71428571 | AT28: ％D | AU28: =IF(AVERAGE(AU25:AU27)<0,"",AVERAGE(AU25:AU27)) -> 59.25925926 | AZ28: ％D | BA28: =IF(AVERAGE(BA25:BA27)<0,"",AVERAGE(BA25:BA27)) -> 18.51851852 | BF28: ％D | BG28: =IF(AVERAGE(BG25:BG27)<0,"",AVERAGE(BG25:BG27)) -> 86.72161172 | BL28: ％D | BM28: =IF(AVERAGE(BM25:BM27)<0,"",AVERAGE(BM25:BM27)) ->  | BR28: ％D | BS28: =IF(AVERAGE(BS25:BS27)<0,"",AVERAGE(BS25:BS27)) -> 19.74658869 | BX28: ％D | BY28: =IF(AVERAGE(BY25:BY27)<0,"",AVERAGE(BY25:BY27)) -> 3.170892919 | CD28: ％D | CE28: =IF(AVERAGE(CE25:CE27)<0,"",AVERAGE(CE25:CE27)) ->  | CJ28: ％D | CK28: =IF(AVERAGE(CK25:CK27)<0,"",AVERAGE(CK25:CK27)) -> 59.31372549 | CP28: ％D | CQ28: =IF(AVERAGE(CQ25:CQ27)<0,"",AVERAGE(CQ25:CQ27)) -> 61.11111111 | CV28: ％D | CW28: =IF(AVERAGE(CW25:CW27)<0,"",AVERAGE(CW25:CW27)) -> 88.8761028 | DB28: ％D | DC28: =IF(AVERAGE(DC25:DC27)<0,"",AVERAGE(DC25:DC27)) -> 60.60606061 | DH28: ％D | DI28: =IF(AVERAGE(DI25:DI27)<0,"",AVERAGE(DI25:DI27)) -> 50 | DN28: ％D | DO28: =IF(AVERAGE(DO25:DO27)<0,"",AVERAGE(DO25:DO27)) ->  | DT28: ％D | DU28: =IF(AVERAGE(DU25:DU27)<0,"",AVERAGE(DU25:DU27)) -> 3.720238095 | DZ28: ％D | EA28: =IF(AVERAGE(EA25:EA27)<0,"",AVERAGE(EA25:EA27)) -> 67.4076361 | EF28: ％D | EG28: =IF(AVERAGE(EG25:EG27)<0,"",AVERAGE(EG25:EG27)) -> 5.873015873 | EL28: ％D | EM28: =IF(AVERAGE(EM25:EM27)<0,"",AVERAGE(EM25:EM27)) -> 82.05128205 | ER28: ％D | ES28: =IF(AVERAGE(ES25:ES27)<0,"",AVERAGE(ES25:ES27)) -> 14.58333333 | EX28: ％D | EY28: =IF(AVERAGE(EY25:EY27)<0,"",AVERAGE(EY25:EY27)) ->  | FD28: ％D | FE28: =IF(AVERAGE(FE25:FE27)<0,"",AVERAGE(FE25:FE27)) -> 38.7254902 | FJ28: ％D | FK28: =IF(AVERAGE(FK25:FK27)<0,"",AVERAGE(FK25:FK27)) -> 68.46846847 | FP28: ％D | FQ28: =IF(AVERAGE(FQ25:FQ27)<0,"",AVERAGE(FQ25:FQ27)) ->  | FV28: ％D | FW28: =IF(AVERAGE(FW25:FW27)<0,"",AVERAGE(FW25:FW27)) -> 82.71604938 | GB28: ％D | GC28: =IF(AVERAGE(GC25:GC27)<0,"",AVERAGE(GC25:GC27)) -> 94.73261251 | GH28: ％D | GI28: =IF(AVERAGE(GI25:GI27)<0,"",AVERAGE(GI25:GI27)) -> 9.267676768 | GN28: ％D | GO28: =IF(AVERAGE(GO25:GO27)<0,"",AVERAGE(GO25:GO27)) -> 14.20634921 | GT28: ％D | GU28: =IF(AVERAGE(GU25:GU27)<0,"",AVERAGE(GU25:GU27)) -> 16.66666667 | GZ28: ％D | HA28: =IF(AVERAGE(HA25:HA27)<0,"",AVERAGE(HA25:HA27)) -> 71.84472934 | HF28: ％D | HG28: =IF(AVERAGE(HG25:HG27)<0,"",AVERAGE(HG25:HG27)) ->  | HL28: ％D | HM28: =IF(AVERAGE(HM25:HM27)<0,"",AVERAGE(HM25:HM27)) -> 13.33333333 | HR28: ％D | HS28: =IF(AVERAGE(HS25:HS27)<0,"",AVERAGE(HS25:HS27)) -> 2.666666667 | HX28: ％D | HY28: =IF(AVERAGE(HY25:HY27)<0,"",AVERAGE(HY25:HY27)) -> 73.50979959 | ID28: ％D | IE28: =IF(AVERAGE(IE25:IE27)<0,"",AVERAGE(IE25:IE27)) -> 55.55555556 | IJ28: ％D | IK28: =IF(AVERAGE(IK25:IK27)<0,"",AVERAGE(IK25:IK27)) -> 6.060606061 | IP28: ％D | IQ28: =IF(AVERAGE(IQ25:IQ27)<0,"",AVERAGE(IQ25:IQ27)) -> 9.694749695 | IV28: ％D | IW28: =IF(AVERAGE(IW25:IW27)<0,"",AVERAGE(IW25:IW27)) -> 31.94444444 | JB28: ％D | JC28: =IF(AVERAGE(JC25:JC27)<0,"",AVERAGE(JC25:JC27)) -> 44.44444444 | JH28: ％D | JI28: =IF(AVERAGE(JI25:JI27)<0,"",AVERAGE(JI25:JI27)) ->  | JN28: ％D | JO28: =IF(AVERAGE(JO25:JO27)<0,"",AVERAGE(JO25:JO27)) -> 66.66666667 | JT28: ％D | JU28: =IF(AVERAGE(JU25:JU27)<0,"",AVERAGE(JU25:JU27)) -> 7.142857143 | JZ28: ％D | KA28: =IF(AVERAGE(KA25:KA27)<0,"",AVERAGE(KA25:KA27)) -> 44.44444444 | KF28: ％D | KG28: =IF(AVERAGE(KG25:KG27)<0,"",AVERAGE(KG25:KG27)) -> 80.04806918 | KL28: ％D | KM28: =IF(AVERAGE(KM25:KM27)<0,"",AVERAGE(KM25:KM27)) -> 
